Service Area,Service Division,Expense Type,Expense Code,Detailed Expense Type,Payment Date,Transaction Number,Amount Exc VAT,Supplier Name
Regeneration and Local Services,Environmental Services,Supplies and Services,304221,Equipment and Materials,02/03/2020,3709431-RSIN0327594,"1,649.80",RIGBY TAYLOR LTD.
Regeneration and Local Services,Environmental Services,Supplies and Services,304358,Equipment and Materials,02/03/2020,3709500-INV-2569,"3,280.00",THOMPSONS PLANT HIRE LTD.
Regeneration and Local Services,Environmental Services,Supplies and Services,304259,Equipment and Materials,02/03/2020,3709513-IN0050887,598.85,TUDOR (UK) LTD T/A TUDOR ENVIRONMENTAL.
Regeneration and Local Services,Environmental Services,Supplies and Services,304259,Equipment and Materials,02/03/2020,3709513-IN0050888,569.50,TUDOR (UK) LTD T/A TUDOR ENVIRONMENTAL.
Regeneration and Local Services,Environmental Services,Supplies and Services,328041,Clothing uniforms and laundry E328,02/03/2020,3709499-NSIN00029864,"3,605.49",THOMAS OWEN & SONS (NEWCASTLE) LTD.
Regeneration and Local Services,Environmental Services,Third Party Payments,430101,Rendered by Private Contractors,02/03/2020,3709186-IV1245428,873.32,DIRECT TYRE MANAGEMENT LTD (DTM).
Regeneration and Local Services,Culture Sport and Tourism,Supplies and Services,304337,Equipment and Materials,02/03/2020,3709555-I-0635245,782.88,ZOGGS INTERNATIONAL LTD.
Regeneration and Local Services,Environmental Services,Third Party Payments,430101,Rendered by Private Contractors,02/03/2020,3709186-IV1236005,"1,873.07",DIRECT TYRE MANAGEMENT LTD (DTM).
Regeneration and Local Services,Environmental Services,Third Party Payments,430101,Rendered by Private Contractors,02/03/2020,3709186-IV1242328,"2,617.07",DIRECT TYRE MANAGEMENT LTD (DTM).
Regeneration and Local Services,Environmental Services,Third Party Payments,430100,Rendered by Private Contractors,02/03/2020,3709204-INV-614,"2,100.00",ECO ENTERPRISES LTD.
Regeneration and Local Services,Technical Services CM0300,Construction work A908,908112,Capital - Drainage,02/03/2020,3709413-18306,"4,125.69",PRM FABRICATIONS LTD.
Regeneration and Local Services,Environmental Services,Third Party Payments,460305,Contract Payments,02/03/2020,3709143-125IN070220-111DCW,950.00,CAMPBELL SINCLAIR T/A NORTH EASTERN TREE COMPANY.
Regeneration and Local Services,Environmental Services,Third Party Payments,460305,Contract Payments,02/03/2020,3709548-1110,671.00,WOODCRAFT (UK) LTD.
Regeneration and Local Services,Culture Sport and Tourism,Supplies and Services,384199,Miscellaneous Expenses,02/03/2020,3709319-698,"2,500.00",LUNA CREATIVE LTD.
Regeneration and Local Services,Culture Sport and Tourism,Supplies and Services,304259,Equipment and Materials,02/03/2020,3709435-SI630870-1,593.75,RLSS UK ENTERPRISES LTD T/A LIFESAVERS DIRECT.
Regeneration and Local Services,Culture Sport and Tourism,Supplies and Services,304259,Equipment and Materials,02/03/2020,3709472-00371750,"1,179.20",STAGE ELECTRICS PARTNERSHIP LTD.
Regeneration and Local Services,Technical Services CM0300,Stock A926,926900,Stock in hand-Inventory system,02/03/2020,3709206-059-259849,"1,020.00",EDMUNDSON ELECTRICAL LTD.
Regeneration and Local Services,Technical Services CM0300,Stock A926,926900,Stock in hand-Inventory system,02/03/2020,3709295-0113/00028710,611.48,JT DOVE LTD.
Regeneration and Local Services,Technical Services CM0300,Stock A926,926900,Stock in hand-Inventory system,02/03/2020,3709388-XL252117,"2,443.68",PARK ELECTRICAL DISTRIBUTORS LTD.
Regeneration and Local Services,Technical Services CM0300,Third Party Payments,430100,Rendered by Private Contractors,02/03/2020,3709377-PAYMENTREFERENCES,969.79,NORTHERN POWERGRID (NORTHEAST) LTD.
Regeneration and Local Services,Technical Services CM0300,Third Party Payments,430100,Rendered by Private Contractors,02/03/2020,3709419-12434,"4,239.92",QUANTUM POWER CONNECTIONS LTD.
Regeneration and Local Services,Technical Services CM0300,Supplies and Services,338027,Services,02/03/2020,3709469-19/050,"3,566.20",SPENCE & DOWER LLP.
Regeneration and Local Services,Technical Services CM0300,Supplies and Services,304221,Equipment and Materials,02/03/2020,3709080-29477411,"1,912.96",AGGREGATE INDUSTRIES UK LTD.
Regeneration and Local Services,Technical Services CM0300,Supplies and Services,304221,Equipment and Materials,02/03/2020,3709080-29477412,750.00,AGGREGATE INDUSTRIES UK LTD.
Regeneration and Local Services,Technical Services CM0300,Supplies and Services,304221,Equipment and Materials,02/03/2020,3709080-29477413,752.00,AGGREGATE INDUSTRIES UK LTD.
Regeneration and Local Services,Technical Services CM0300,Supplies and Services,304221,Equipment and Materials,02/03/2020,3709080-29478327,521.11,AGGREGATE INDUSTRIES UK LTD.
Regeneration and Local Services,Technical Services CM0300,Supplies and Services,304221,Equipment and Materials,02/03/2020,3709080-29483691,999.00,AGGREGATE INDUSTRIES UK LTD.
Regeneration and Local Services,Technical Services CM0300,Supplies and Services,304221,Equipment and Materials,02/03/2020,3709080-29483693,"2,358.48",AGGREGATE INDUSTRIES UK LTD.
Regeneration and Local Services,Technical Services CM0300,Supplies and Services,304221,Equipment and Materials,02/03/2020,3709080-29483696,741.00,AGGREGATE INDUSTRIES UK LTD.
Regeneration and Local Services,Technical Services CM0300,Supplies and Services,304221,Equipment and Materials,02/03/2020,3709080-29483697,"1,204.14",AGGREGATE INDUSTRIES UK LTD.
Regeneration and Local Services,Technical Services CM0300,Supplies and Services,304221,Equipment and Materials,02/03/2020,3709080-29483698,"1,768.56",AGGREGATE INDUSTRIES UK LTD.
Regeneration and Local Services,Technical Services CM0300,Supplies and Services,304221,Equipment and Materials,02/03/2020,3709080-29484641,"1,040.93",AGGREGATE INDUSTRIES UK LTD.
Regeneration and Local Services,Technical Services CM0300,Supplies and Services,304221,Equipment and Materials,02/03/2020,3709214-2002\034,"3,834.19",EPPLETON QUARRY PRODUCTS LTD.
Regeneration and Local Services,Technical Services CM0300,Supplies and Services,304221,Equipment and Materials,02/03/2020,3709214-2002\038,"1,168.83",EPPLETON QUARRY PRODUCTS LTD.
Regeneration and Local Services,Technical Services CM0300,Supplies and Services,304221,Equipment and Materials,02/03/2020,3709219-ES3972,804.00,EVERSHED PRODUCTS.
Regeneration and Local Services,Technical Services CM0300,Supplies and Services,304357,Equipment and Materials,02/03/2020,3709236-DCCAGREED160220,"21,846.28",GAP GROUP LTD.
Regeneration and Local Services,Technical Services CM0300,Supplies and Services,304221,Equipment and Materials,02/03/2020,3709246-06/046691,829.40,GREENHAM TRADING LTD.
Regeneration and Local Services,Technical Services CM0300,Supplies and Services,304358,Equipment and Materials,02/03/2020,3709290-30321,"1,291.00",JOHN R BUTTERFIELD LTD.
Regeneration and Local Services,Technical Services CM0300,Supplies and Services,304358,Equipment and Materials,02/03/2020,3709290-30338,"1,181.00",JOHN R BUTTERFIELD LTD.
Regeneration and Local Services,Technical Services CM0300,Supplies and Services,304358,Equipment and Materials,02/03/2020,3709290-30365,996.00,JOHN R BUTTERFIELD LTD.
Regeneration and Local Services,Technical Services CM0300,Supplies and Services,304358,Equipment and Materials,02/03/2020,3709290-30370,"1,181.00",JOHN R BUTTERFIELD LTD.
Regeneration and Local Services,Technical Services CM0300,Supplies and Services,304358,Equipment and Materials,02/03/2020,3709290-30385,"1,184.00",JOHN R BUTTERFIELD LTD.
Regeneration and Local Services,Technical Services CM0300,Supplies and Services,304358,Equipment and Materials,02/03/2020,3709290-30386,"1,471.50",JOHN R BUTTERFIELD LTD.
Regeneration and Local Services,Technical Services CM0300,Supplies and Services,304358,Equipment and Materials,02/03/2020,3709290-30387,"1,244.00",JOHN R BUTTERFIELD LTD.
Regeneration and Local Services,Technical Services CM0300,Supplies and Services,304358,Equipment and Materials,02/03/2020,3709290-30388,897.00,JOHN R BUTTERFIELD LTD.
Regeneration and Local Services,Technical Services CM0300,Supplies and Services,304358,Equipment and Materials,02/03/2020,3709290-30390,888.00,JOHN R BUTTERFIELD LTD.
Regeneration and Local Services,Technical Services CM0300,Supplies and Services,304358,Equipment and Materials,02/03/2020,3709290-30392,"1,110.00",JOHN R BUTTERFIELD LTD.
Regeneration and Local Services,Technical Services CM0300,Supplies and Services,304358,Equipment and Materials,02/03/2020,3709290-30394,"1,051.00",JOHN R BUTTERFIELD LTD.
Regeneration and Local Services,Technical Services CM0300,Supplies and Services,304358,Equipment and Materials,02/03/2020,3709290-30397,545.00,JOHN R BUTTERFIELD LTD.
Regeneration and Local Services,Technical Services CM0300,Supplies and Services,304358,Equipment and Materials,02/03/2020,3709290-30406,"1,236.00",JOHN R BUTTERFIELD LTD.
Regeneration and Local Services,Technical Services CM0300,Supplies and Services,304358,Equipment and Materials,02/03/2020,3709290-30407,"1,036.00",JOHN R BUTTERFIELD LTD.
Regeneration and Local Services,Technical Services CM0300,Supplies and Services,304358,Equipment and Materials,02/03/2020,3709290-30408,"1,450.00",JOHN R BUTTERFIELD LTD.
Regeneration and Local Services,Technical Services CM0300,Supplies and Services,304358,Equipment and Materials,02/03/2020,3709290-30409,"1,303.50",JOHN R BUTTERFIELD LTD.
Regeneration and Local Services,Technical Services CM0300,Supplies and Services,304358,Equipment and Materials,02/03/2020,3709290-30411,897.00,JOHN R BUTTERFIELD LTD.
Regeneration and Local Services,Technical Services CM0300,Supplies and Services,304358,Equipment and Materials,02/03/2020,3709290-30414,"1,110.00",JOHN R BUTTERFIELD LTD.
Regeneration and Local Services,Technical Services CM0300,Supplies and Services,304358,Equipment and Materials,02/03/2020,3709290-30415,888.00,JOHN R BUTTERFIELD LTD.
Regeneration and Local Services,Technical Services CM0300,Supplies and Services,304358,Equipment and Materials,02/03/2020,3709290-30416,806.00,JOHN R BUTTERFIELD LTD.
Regeneration and Local Services,Technical Services CM0300,Supplies and Services,304358,Equipment and Materials,02/03/2020,3709290-30418,"1,551.00",JOHN R BUTTERFIELD LTD.
Regeneration and Local Services,Technical Services CM0300,Supplies and Services,304358,Equipment and Materials,02/03/2020,3709300-3135,950.00,KEVIN SNOWDON GROUNDWORKS LTD.
Regeneration and Local Services,Technical Services CM0300,Supplies and Services,304358,Equipment and Materials,02/03/2020,3709300-3144,950.00,KEVIN SNOWDON GROUNDWORKS LTD.
Regeneration and Local Services,Technical Services CM0300,Supplies and Services,304358,Equipment and Materials,02/03/2020,3709300-3154,"1,206.00",KEVIN SNOWDON GROUNDWORKS LTD.
Regeneration and Local Services,Technical Services CM0300,Supplies and Services,304358,Equipment and Materials,02/03/2020,3709300-3156,"1,206.00",KEVIN SNOWDON GROUNDWORKS LTD.
Regeneration and Local Services,Technical Services CM0300,Supplies and Services,304358,Equipment and Materials,02/03/2020,3709300-3157,"1,206.00",KEVIN SNOWDON GROUNDWORKS LTD.
Regeneration and Local Services,Technical Services CM0300,Supplies and Services,304358,Equipment and Materials,02/03/2020,3709300-3158,"1,170.00",KEVIN SNOWDON GROUNDWORKS LTD.
Regeneration and Local Services,Technical Services CM0300,Supplies and Services,304358,Equipment and Materials,02/03/2020,3709300-3159,"1,230.00",KEVIN SNOWDON GROUNDWORKS LTD.
Regeneration and Local Services,Technical Services CM0300,Supplies and Services,304358,Equipment and Materials,02/03/2020,3709300-3160,"1,230.00",KEVIN SNOWDON GROUNDWORKS LTD.
Regeneration and Local Services,Technical Services CM0300,Supplies and Services,304358,Equipment and Materials,02/03/2020,3709300-3161,925.00,KEVIN SNOWDON GROUNDWORKS LTD.
Regeneration and Local Services,Technical Services CM0300,Supplies and Services,304358,Equipment and Materials,02/03/2020,3709300-3163,925.00,KEVIN SNOWDON GROUNDWORKS LTD.
Regeneration and Local Services,Technical Services CM0300,Supplies and Services,304358,Equipment and Materials,02/03/2020,3709300-3164,951.00,KEVIN SNOWDON GROUNDWORKS LTD.
Regeneration and Local Services,Technical Services CM0300,Supplies and Services,304358,Equipment and Materials,02/03/2020,3709300-3165,925.00,KEVIN SNOWDON GROUNDWORKS LTD.
Regeneration and Local Services,Technical Services CM0300,Supplies and Services,304358,Equipment and Materials,02/03/2020,3709355-NC/113/BW,"2,337.50",NEDCO CONTRACTS (NE) LTD.
Regeneration and Local Services,Technical Services CM0300,Supplies and Services,304358,Equipment and Materials,02/03/2020,3709355-NC/114/BW,"2,437.50",NEDCO CONTRACTS (NE) LTD.
Regeneration and Local Services,Technical Services CM0300,Supplies and Services,304358,Equipment and Materials,02/03/2020,3709355-NC/115/BW,"2,062.50",NEDCO CONTRACTS (NE) LTD.
Regeneration and Local Services,Technical Services CM0300,Supplies and Services,304221,Equipment and Materials,02/03/2020,3709368-025951,882.00,NORTH EAST CONCRETE LTD.
Regeneration and Local Services,Technical Services CM0300,Supplies and Services,304221,Equipment and Materials,02/03/2020,3709413-18307,"1,270.50",PRM FABRICATIONS LTD.
Regeneration and Local Services,Technical Services CM0300,Supplies and Services,304221,Equipment and Materials,02/03/2020,3709427-SI2030063,"4,976.00",REDIWELD RUBBER & PLASTICS LTD.
Regeneration and Local Services,Technical Services CM0300,Supplies and Services,304221,Equipment and Materials,02/03/2020,3709480-9041457956,582.38,TARMAC TRADING LTD.
Regeneration and Local Services,Technical Services CM0300,Supplies and Services,304358,Equipment and Materials,02/03/2020,3709531-47647,"2,535.00",W MARLEY AGRICULTURAL CONTRACTORS LTD.
Regeneration and Local Services,Technical Services CM0300,Supplies and Services,304358,Equipment and Materials,02/03/2020,3709531-47674,"2,535.00",W MARLEY AGRICULTURAL CONTRACTORS LTD.
Regeneration and Local Services,Technical Services CM0300,Supplies and Services,304358,Equipment and Materials,02/03/2020,3709531-47712,"2,040.00",W MARLEY AGRICULTURAL CONTRACTORS LTD.
Regeneration and Local Services,Corporate Property and Land,Supplies and Services,304221,Equipment and Materials,02/03/2020,3709328-57926635,"1,767.49",MAGNET LTD.
Regeneration and Local Services,Corporate Property and Land,Supplies and Services,304221,Equipment and Materials,02/03/2020,3709249-J7214,"3,591.24",GROVE REED.
Regeneration and Local Services,Corporate Property and Land,Third Party Payments,430100,Rendered by Private Contractors,02/03/2020,3709382-4788,"12,556.72",ORA PROPERTY SERVICES LTD.
Regeneration and Local Services,Corporate Property and Land,Third Party Payments,430100,Rendered by Private Contractors,02/03/2020,3709217-163035,"10,592.33",ESH CONSTRUCTION LTD FORMERLY LUMSDEN & CARROLL CONSTRUCTION LTD.
Regeneration and Local Services,Corporate Property and Land,Supplies and Services,304221,Equipment and Materials,02/03/2020,3709295-0213/00027722,"2,292.41",JT DOVE LTD.
Regeneration and Local Services,Corporate Property and Land,Third Party Payments,430100,Rendered by Private Contractors,02/03/2020,3709434-55736,"1,150.00",RJ UTILITY SERVICES LTD.
Regeneration and Local Services,Corporate Property and Land,Third Party Payments,430100,Rendered by Private Contractors,02/03/2020,3709434-55738,"4,395.00",RJ UTILITY SERVICES LTD.
Regeneration and Local Services,Corporate Property and Land,Supplies and Services,304221,Equipment and Materials,02/03/2020,3709457-0000102602,515.00,SHORTS INDUSTRIES LTD T/A SHORTS LIFTS.
Regeneration and Local Services,Corporate Property and Land,Supplies and Services,304221,Equipment and Materials,02/03/2020,3709490-M51832,"1,500.00",THAMES VALLEY CONTROL.
Regeneration and Local Services,Business Durham CL0850,Supplies and Services,344033,Telephones,02/03/2020,3709495-004522733,"1,074.99",THE PHONE CO-OP.
Regeneration and Local Services,Culture Sport and Tourism,Supplies and Services,384199,Miscellaneous Expenses,02/03/2020,3709510-TRAV43309,"1,348.00",TRAVMEDIA (UK) LTD.
Regeneration and Local Services,Development and Housing,Supplies and Services,338035,Services,02/03/2020,3709160-805456309,575.00,CITY & GUILDS OF LONDON INSTITUTE.
Regeneration and Local Services,Business Durham CL0850,Third Party Payments,460305,Contract Payments,02/03/2020,3709520-RED-02-2020-220,"4,155.71",UMI COMMERCIAL LTD.
Regeneration and Local Services,Development and Housing,Supplies and Services,342033,Computers and Communications,02/03/2020,3709550-KV81032,"1,156.93",XMA LTD.
Regeneration and Local Services,Transport and Contracted Services,Third Party Payments,430106,Rendered by Private Contractors,02/03/2020,3709094-116720,"31,218.01",ARRIVA NORTHUMBRIA LTD.
Regeneration and Local Services,Corporate Property and Land,Supplies and Services,338066,Services,02/03/2020,3709443-NEW12929,997.50,SANDERSON WEATHERALL LLP.
Adult and Health Services,Head of Adults,Premises,145023,Cleaning and Domestic Supplies,02/03/2020,3709164-19920,"1,150.00",COLIN JOBLING T/A RAINBOW INTERNATIONAL.
Adult and Health Services,Head of Adults,Supplies and Services,338042,Services,02/03/2020,3709183-354809/INVSRG117,520.00,DERE STREET BARRISTERS.
Adult and Health Services,Head of Adults,Third Party Payments,478151,Purchase of Care,02/03/2020,3709072-1068,"1,543.08",ACCEPT CARE LTD.
Adult and Health Services,Head of Adults,Supplies and Services,338066,Services,02/03/2020,3709187-712462,532.87,DR IBRAHAM ZURMI.
Adult and Health Services,Commissioning inc Supporting People,Supplies and Services,338089,Services,02/03/2020,3709227-2507,"2,390.00",FIRST IN TRAINING LTD.
Regeneration and Local Services,Culture Sport and Tourism,Fees,901004,Capital - Detailed Design,02/03/2020,3709071-116364834,"1,897.50",AC ENTERTAINMENT TECHNOLOGIES.
Regeneration and Local Services,Culture Sport and Tourism,Fees,901004,Capital - Detailed Design,02/03/2020,3709071-116364839,"2,607.76",AC ENTERTAINMENT TECHNOLOGIES.
Regeneration and Local Services,Culture Sport and Tourism,Supplies and Services,304259,Equipment and Materials,02/03/2020,3709071-116364838,"1,285.05",AC ENTERTAINMENT TECHNOLOGIES.
Regeneration and Local Services,Culture Sport and Tourism,Supplies and Services,338047,Services,02/03/2020,3709387-R2231853,"1,475.00",PARAMOUNT PICTURES UK.
Regeneration and Local Services,Culture Sport and Tourism,Supplies and Services,338047,Services,02/03/2020,3709522-22314334991-1,"1,946.77",UNIVERSAL PICTURES INTERNATIONAL UK & EIRE LTD.
Regeneration and Local Services,Culture Sport and Tourism,Supplies and Services,384199,Miscellaneous Expenses,02/03/2020,3709172-FEB-MARCH2020,950.00,REDACTED - PAYMENT TO INDIVIDUAL
Regeneration and Local Services,Culture Sport and Tourism,Supplies and Services,338047,Services,02/03/2020,3709494-PH01411,"2,571.27",THE JIVE ACES.
Regeneration and Local Services,Culture Sport and Tourism,Supplies and Services,338047,Services,02/03/2020,3709509-00100020,700.42,TRAFALGAR RELEASING LTD.
Regeneration and Local Services,Culture Sport and Tourism,Supplies and Services,384199,Miscellaneous Expenses,02/03/2020,3709149-6744,600.00,CATHEDRAL LOCK & SAFE SERVICES LTD.
Adult and Health Services,Public Health CC0450,Third Party Payments,460803,Contract Payments,02/03/2020,3709133-DZJM/00000262NRT,529.71,BOOTS THE CHEMISTS LTD.*
Adult and Health Services,Public Health CC0450,Third Party Payments,460803,Contract Payments,02/03/2020,3709138-DXNF/00000196NRT,563.49,BRITTON & ROBSON LTD.
Adult and Health Services,Public Health CC0450,Third Party Payments,460803,Contract Payments,02/03/2020,3709375-DTXL/00000244NRT,549.83,NORTHERN PHARMACY GROUP LTD T/A CROOK PHARMACY.
Adult and Health Services,Public Health CC0450,Third Party Payments,460803,Contract Payments,02/03/2020,3709254-4100660251-FEB2020,"4,321.41",HARBOUR SUPPORT SERVICES.
Transformation and Partnerships,Partnerships & Community Engagement Div.,Supplies and Services,384871,Miscellaneous Expenses,02/03/2020,3709201-TAP-03-2020-001,"2,017.74",DURHAM UNIVERSITY.
Resources BK0010,Digital and Customer Services,Vehicles Equipment Furniture and Fittings,912701,Computer equipment,02/03/2020,3709530-NU10405,584.00,VODAFONE LTD.
Resources BK0010,Digital and Customer Services,Supplies and Services,304303,Equipment and Materials,02/03/2020,3709250-INV0178411,"4,643.73",GV MULTIMEDIA LTD.
Resources BK0010,Digital and Customer Services,Supplies and Services,304303,Equipment and Materials,02/03/2020,3709506-129690,598.20,TP ELECTRICAL SUPPLIES & FIXINGS LTD.
Resources BK0010,Digital and Customer Services,Supplies and Services,344015,Telephones,02/03/2020,3709530-NT05429,"1,192.00",VODAFONE LTD.
Resources BK0010,Digital and Customer Services,Supplies and Services,344015,Telephones,02/03/2020,3709530-NU10407,730.00,VODAFONE LTD.
Resources BK0010,Corporate Finance & Commercial Services,Supplies and Services,338221,Services,02/03/2020,3709258-SF-050926,"1,019.34",HEALTH ASSURED LTD.
Resources BK0010,Finance & Transactional Services,Supplies and Services,338064,Services,02/03/2020,3709369-29875,"15,615.00",NORTH EAST REGIONAL EMPLOYERS ORGANISATION (NEREO).
Resources BK0010,Finance & Transactional Services,Intangible Assets,917003,Software capitalised implementation fees,02/03/2020,3709552-IN0076966,"2,188.80",ZELLIS UK LTD.
Resources BK0010,People & Talent Management,Supplies and Services,338066,Services,02/03/2020,3709534-755365,592.00,WARD HADAWAY.
Resources BK0010,People & Talent Management,Supplies and Services,342051,Computers and Communications,02/03/2020,3709306-6170,750.00,LEARNING NEXUS LTD.
Children and Young Peoples Services,Head of Education and Skills,Supplies and Services,338027,Services,02/03/2020,3709078-PASI139,"5,931.91",ADVANCE LEARNING PARTNERSHIP.
Children and Young Peoples Services,Head of Education and Skills,Supplies and Services,338027,Services,02/03/2020,3709468-EPINAY-286,"1,335.26",SOUTH TYNESIDE COUNCIL.
Children and Young Peoples Services,Head of Education and Skills,Supplies and Services,338027,Services,02/03/2020,3709477-2807028956,550.00,SUNDERLAND CITY COUNCIL.
Children and Young Peoples Services,Head of Education and Skills,Supplies and Services,384199,Miscellaneous Expenses,02/03/2020,3709221-0000000235,521.75,EXCEL ACADEMY PARTNERSHIP T/A FRAMWELLGATE SCHOOL DURHAM.
Resources BK0010,Digital and Customer Services,Stock A926,926900,Stock in hand-Inventory system,02/03/2020,3709250-INV0178409,"1,809.09",GV MULTIMEDIA LTD.
Children and Young Peoples Services,Head of Education and Skills,Supplies and Services,304259,Equipment and Materials,02/03/2020,3709256-960864708,729.00,HCL SAFETY LTD.
Children and Young Peoples Services,Head of Education and Skills,Construction work A908,908105,Construction work,02/03/2020,3709409-900873731,"2,719.00",PORTAKABIN LTD.
Children and Young Peoples Services,Head of Education and Skills,Supplies and Services,338027,Services,02/03/2020,3709339-DCC3010,"1,710.00",MIKE REDSHAW EDUCATION CONSULTANT.
Children and Young Peoples Services,Head of Education and Skills,Supplies and Services,338027,Services,02/03/2020,3709350-0021,"1,750.00",MRS NATALIE ANNE DALTON (EDUCATIONAL CONSULTANT).
Children and Young Peoples Services,Head of Early Help Inclusion & Vulnerable Children.,Supplies and Services,384199,Miscellaneous Expenses,02/03/2020,3709515-4100684838,575.00,TYNE VALLEY FLOORING & CARPETS.
Regeneration and Local Services,Environmental Services,Supplies and Services,340001,Postages E340,03/03/2020,3710503-9060291915,"24,282.28",ROYAL MAIL GROUP PLC.
Regeneration and Local Services,Environmental Services,Transport,215022,Running Costs of Vehicles,03/03/2020,3710475-549730,527.60,OIL NRG LTD.
Regeneration and Local Services,Environmental Services,Transport,215022,Running Costs of Vehicles,03/03/2020,3710475-549742,527.60,OIL NRG LTD.
Regeneration and Local Services,Technical Services CM0300,Stock A926,926900,Stock in hand-Inventory system,03/03/2020,3710562-103095,"1,344.00",TOTAL RENTAL SOLUTIONS.
Regeneration and Local Services,Technical Services CM0300,Stock A926,926900,Stock in hand-Inventory system,03/03/2020,3710562-103096,"4,630.00",TOTAL RENTAL SOLUTIONS.
Regeneration and Local Services,Technical Services CM0300,Supplies and Services,304221,Equipment and Materials,03/03/2020,3710285-BMPR/296/BJW,"1,446.00",BISHOP MIDDLEHAM PLANT & RECYCLING LTD.
Regeneration and Local Services,Technical Services CM0300,Supplies and Services,304337,Equipment and Materials,03/03/2020,3710285-BMPR/297/BJW,846.00,BISHOP MIDDLEHAM PLANT & RECYCLING LTD.
Regeneration and Local Services,Technical Services CM0300,Supplies and Services,304221,Equipment and Materials,03/03/2020,3710285-BMPR/298/BJW,"1,780.00",BISHOP MIDDLEHAM PLANT & RECYCLING LTD.
Regeneration and Local Services,Corporate Property and Land,Supplies and Services,304221,Equipment and Materials,03/03/2020,3710569-04020490,550.00,UK ELECTRIC LTD.
Regeneration and Local Services,Culture Sport and Tourism,Supplies and Services,384199,Miscellaneous Expenses,03/03/2020,3710443-NSAINTS2,"4,275.00",LUKE WATERSON.
Regeneration and Local Services,Environmental Services,Cap Exp on Grants & Other Financial Assistance (REFCUS),918501,Exp assets not owned by authority,03/03/2020,3710309-54875,"6,633.00",CHEVIOT TREES LTD.
Regeneration and Local Services,Transport and Contracted Services,Third Party Payments,430106,Rendered by Private Contractors,03/03/2020,3710365-PUBLICSERVICEFEB20,"3,580.60",FERRYHILL VILLAGE TRAVEL.
Regeneration and Local Services,Business Durham CL0850,Supplies and Services,338027,Services,03/03/2020,3710301-J0016,"1,540,374.22",BUCKINGHAMSHIRE PROPERTIES LTD.
Regeneration and Local Services,Business Durham CL0850,Supplies and Services,338027,Services,03/03/2020,3710301-J0017,"14,204.54",BUCKINGHAMSHIRE PROPERTIES LTD.
Adult and Health Services,Head of Adults,Transport,230005,Contract Hire,03/03/2020,3710403-358,694.88,I CLYDESDALE T/A BURNOPFIELD TAXIS.
Adult and Health Services,Head of Adults,Transport,230005,Contract Hire,03/03/2020,3710263-22013,534.75,24/7 TAXI SERVICES LTD.
Adult and Health Services,Head of Adults,Transport,230005,Contract Hire,03/03/2020,3710396-06/FEB,621.00,HARDIP SINGH MAHIL T/A AMBER CARS.
Adult and Health Services,Head of Adults,Transport,230005,Contract Hire,03/03/2020,3710454-EDB102-20,771.31,MR CT WALKER T/A CW TAXIS.
Adult and Health Services,Head of Adults,Supplies and Services,338042,Services,03/03/2020,3710340-348365/INVSRG118,550.00,DERE STREET BARRISTERS.
Regeneration and Local Services,Culture Sport and Tourism,Supplies and Services,312013,Newspapers books and periodicals E312,03/03/2020,3710289-40896,752.96,BOLINDA DIGITAL LTD.
Regeneration and Local Services,Culture Sport and Tourism,Supplies and Services,338047,Services,03/03/2020,3710318-9722,"2,300.42",COMEDY STORE MANAGEMENT T/A THE COMEDY STORE LTD.
Transformation and Partnerships,Partnerships & Community Engagement Div.,Cap Exp on Grants & Other Financial Assistance (REFCUS),918004,Contributions to other bodies 918004,03/03/2020,3710511-VOUCHER19AB-GAMP010,"6,951.00",SEDGEFIELD WATER POLO CLUB.
Transformation and Partnerships,Partnerships & Community Engagement Div.,Cap Exp on Grants & Other Financial Assistance (REFCUS),918004,Contributions to other bodies 918004,03/03/2020,3710293-VOUCHER19NB-TEES018,"10,000.00",BOWES FOOTBALL CLUB.
Transformation and Partnerships,Partnerships & Community Engagement Div.,Cap Exp on Grants & Other Financial Assistance (REFCUS),918004,Contributions to other bodies 918004,03/03/2020,3710296-VOUCHER19NB-3TWN021,"2,000.00",BRANCEPETH COMMUNITY ASSOCIATION.
Transformation and Partnerships,Partnerships & Community Engagement Div.,Cap Exp on Grants & Other Financial Assistance (REFCUS),918004,Contributions to other bodies 918004,03/03/2020,3710447-VOUCHER19NB-TEES023,"1,782.34",MARWOOD PARISH COUNCIL.
Transformation and Partnerships,Partnerships & Community Engagement Div.,Cap Exp on Grants & Other Financial Assistance (REFCUS),918004,Contributions to other bodies 918004,03/03/2020,3710510-VOUCHER19NB-EDUR041,"5,000.00",SEAHAM EASTLEA & DISTRICT COMMUNITY ASSOCIATION.
Transformation and Partnerships,Partnerships & Community Engagement Div.,Supplies and Services,384086,Miscellaneous Expenses,03/03/2020,3710530-VOUCHERCOCI03-19,600.00,SOUTH HETTON HERITAGE GROUP.
Resources BK0010,Finance & Transactional Services,Supplies and Services,304252,Equipment and Materials,03/03/2020,3710463-92610558,545.00,QUADIENT FINANCE UK LTD FORMERLY NEOPOST LTD.
Resources BK0010,Digital and Customer Services,Supplies and Services,342033,Computers and Communications,03/03/2020,3710339-7402594322,"1,039.36",DELL COMPUTER CORPORATION LTD.
Resources BK0010,Digital and Customer Services,Supplies and Services,342051,Computers and Communications,03/03/2020,3710581-UOTR4621929,"3,932.00",WESTERN UNION BUSINESS SOLUTIONS.
Resources BK0010,Digital and Customer Services,Supplies and Services,372009,Subscriptions E372,03/03/2020,3710581-UOTR4621942,929.86,WESTERN UNION BUSINESS SOLUTIONS.
Children and Young Peoples Services,Head of Early Help Inclusion & Vulnerable Children.,Transport,230007,Contract Hire,03/03/2020,3710422-189,826.00,JOHN ROBSON T/A ACE TAXIS.
Children and Young Peoples Services,Head of Early Help Inclusion & Vulnerable Children.,Transport,230007,Contract Hire,03/03/2020,3710427-010220,"1,307.56",KEVIN EDMUNDSON.
Resources BK0010,Digital and Customer Services,Supplies and Services,342051,Computers and Communications,03/03/2020,3710581-UOTR4621932,"4,041.74",WESTERN UNION BUSINESS SOLUTIONS.
Children and Young Peoples Services,Head of Education and Skills,Transport,230007,Contract Hire,03/03/2020,3710315-1166,788.99,CLIVE HUBERY.
Children and Young Peoples Services,Head of Education and Skills,Transport,230034,Contract Hire,03/03/2020,3710453-218,"1,104.00",MR BRIAN JOHNSON T/A BRYS TAXIS.
Children and Young Peoples Services,Head of Education and Skills,Transport,230012,Contract Hire,03/03/2020,3710454-CHPK02-20,"1,312.76",MR CT WALKER T/A CW TAXIS.
Children and Young Peoples Services,Head of Education and Skills,Transport,230012,Contract Hire,03/03/2020,3710263-22019,"2,027.60",24/7 TAXI SERVICES LTD.
Children and Young Peoples Services,Head of Education and Skills,Transport,230009,Contract Hire,03/03/2020,3710375-17,"1,036.00",G ANGHEL T/A A TAXI.
Children and Young Peoples Services,Head of Education and Skills,Transport,230008,Contract Hire,03/03/2020,3710560-2151,"1,776.00",TONY RIDLEY T/A COLORS TAXIS LTD.
Children and Young Peoples Services,Head of Education and Skills,Transport,230007,Contract Hire,03/03/2020,3710415-2979,"2,024.00",JEFF ANDERSON COACHES LTD.
Children and Young Peoples Services,Head of Education and Skills,Transport,230034,Contract Hire,03/03/2020,3710263-22002,"1,406.00",24/7 TAXI SERVICES LTD.
Children and Young Peoples Services,Head of Education and Skills,Transport,230007,Contract Hire,03/03/2020,3710263-22005,757.02,24/7 TAXI SERVICES LTD.
Children and Young Peoples Services,Head of Education and Skills,Transport,230007,Contract Hire,03/03/2020,3710270-235,"1,000.00",ALANS TAXIS BARNARD CASTLE.
Children and Young Peoples Services,Head of Education and Skills,Transport,230007,Contract Hire,03/03/2020,3710270-238,"1,980.00",ALANS TAXIS BARNARD CASTLE.
Children and Young Peoples Services,Head of Education and Skills,Transport,230007,Contract Hire,03/03/2020,3710415-2978,"1,201.17",JEFF ANDERSON COACHES LTD.
Children and Young Peoples Services,Head of Education and Skills,Transport,230007,Contract Hire,03/03/2020,3710279-28220,720.00,AVALON TAXIS.
Children and Young Peoples Services,Head of Education and Skills,Transport,230034,Contract Hire,03/03/2020,3710263-22004/2,941.39,24/7 TAXI SERVICES LTD.
Children and Young Peoples Services,Head of Education and Skills,Transport,230008,Contract Hire,03/03/2020,3710263-22006,"1,924.00",24/7 TAXI SERVICES LTD.
Children and Young Peoples Services,Head of Education and Skills,Transport,230008,Contract Hire,03/03/2020,3710263-22008,"2,149.26",24/7 TAXI SERVICES LTD.
Children and Young Peoples Services,Head of Education and Skills,Transport,230008,Contract Hire,03/03/2020,3710329-110111,"2,812.00",CROFT BUSINESS SERVICES (UK) LTD T/A CROFT TAXIS.
Children and Young Peoples Services,Head of Education and Skills,Transport,230006,Contract Hire,03/03/2020,3710329-110113,"3,305.73",CROFT BUSINESS SERVICES (UK) LTD T/A CROFT TAXIS.
Children and Young Peoples Services,Head of Education and Skills,Transport,230008,Contract Hire,03/03/2020,3710329-110114,"2,470.12",CROFT BUSINESS SERVICES (UK) LTD T/A CROFT TAXIS.
Children and Young Peoples Services,Head of Education and Skills,Transport,230008,Contract Hire,03/03/2020,3710375-18,"1,184.00",G ANGHEL T/A A TAXI.
Children and Young Peoples Services,Head of Education and Skills,Transport,230034,Contract Hire,03/03/2020,3710403-356,"1,250.60",I CLYDESDALE T/A BURNOPFIELD TAXIS.
Children and Young Peoples Services,Head of Education and Skills,Transport,230008,Contract Hire,03/03/2020,3710422-190,"1,935.00",JOHN ROBSON T/A ACE TAXIS.
Children and Young Peoples Services,Head of Education and Skills,Transport,230008,Contract Hire,03/03/2020,3710485-55,"1,330.94",PHILLIP BOYD T/A FILS TAXIS.
Children and Young Peoples Services,Head of Education and Skills,Transport,230034,Contract Hire,03/03/2020,3710263-22001,"1,776.00",24/7 TAXI SERVICES LTD.
Children and Young Peoples Services,Head of Education and Skills,Transport,230008,Contract Hire,03/03/2020,3710329-1101222,"2,046.53",CROFT BUSINESS SERVICES (UK) LTD T/A CROFT TAXIS.
Children and Young Peoples Services,Head of Education and Skills,Transport,230008,Contract Hire,03/03/2020,3710329-110123,"2,083.42",CROFT BUSINESS SERVICES (UK) LTD T/A CROFT TAXIS.
Children and Young Peoples Services,Head of Education and Skills,Transport,230008,Contract Hire,03/03/2020,3710263-22010,"1,922.09",24/7 TAXI SERVICES LTD.
Children and Young Peoples Services,Head of Education and Skills,Transport,230008,Contract Hire,03/03/2020,3710278-05,"2,525.40",AUCKLAND TRAVEL.
Children and Young Peoples Services,Head of Education and Skills,Transport,230008,Contract Hire,03/03/2020,3710288-28840,"2,966.00",BLUELINE TAXIS.
Children and Young Peoples Services,Head of Education and Skills,Transport,230008,Contract Hire,03/03/2020,3710329-110117,"1,750.54",CROFT BUSINESS SERVICES (UK) LTD T/A CROFT TAXIS.
Children and Young Peoples Services,Head of Education and Skills,Transport,230008,Contract Hire,03/03/2020,3710329-110121,"1,904.91",CROFT BUSINESS SERVICES (UK) LTD T/A CROFT TAXIS.
Children and Young Peoples Services,Head of Education and Skills,Transport,230008,Contract Hire,03/03/2020,3710403-359,"1,068.20",I CLYDESDALE T/A BURNOPFIELD TAXIS.
Children and Young Peoples Services,Head of Education and Skills,Transport,230008,Contract Hire,03/03/2020,3710263-22011,"2,391.56",24/7 TAXI SERVICES LTD.
Children and Young Peoples Services,Head of Education and Skills,Transport,230008,Contract Hire,03/03/2020,3710263-22018,"2,220.00",24/7 TAXI SERVICES LTD.
Children and Young Peoples Services,Head of Education and Skills,Transport,230008,Contract Hire,03/03/2020,3710329-110118,"2,637.66",CROFT BUSINESS SERVICES (UK) LTD T/A CROFT TAXIS.
Children and Young Peoples Services,Head of Education and Skills,Transport,230008,Contract Hire,03/03/2020,3710379-12102/R-N019,"2,896.00",GATESHEAD CENTRAL TAXIS LTD.
Children and Young Peoples Services,Head of Education and Skills,Transport,230008,Contract Hire,03/03/2020,3710263-22012,"1,480.00",24/7 TAXI SERVICES LTD.
Children and Young Peoples Services,Head of Education and Skills,Transport,230008,Contract Hire,03/03/2020,3710294-N036/FEB,"1,392.84",BOWES TRAVEL.
Children and Young Peoples Services,Head of Education and Skills,Transport,230008,Contract Hire,03/03/2020,3710329-110119,"1,938.80",CROFT BUSINESS SERVICES (UK) LTD T/A CROFT TAXIS.
Children and Young Peoples Services,Head of Education and Skills,Transport,230008,Contract Hire,03/03/2020,3710403-355,"2,540.40",I CLYDESDALE T/A BURNOPFIELD TAXIS.
Children and Young Peoples Services,Head of Education and Skills,Transport,230008,Contract Hire,03/03/2020,3710560-2149/2,"1,168.00",TONY RIDLEY T/A COLORS TAXIS LTD.
Children and Young Peoples Services,Head of Education and Skills,Transport,230008,Contract Hire,03/03/2020,3710560-2150,"1,241.00",TONY RIDLEY T/A COLORS TAXIS LTD.
Children and Young Peoples Services,Head of Education and Skills,Transport,230008,Contract Hire,03/03/2020,3710415-2975,"1,347.24",JEFF ANDERSON COACHES LTD.
Children and Young Peoples Services,Head of Education and Skills,Transport,230008,Contract Hire,03/03/2020,3710415-2976,"1,271.17",JEFF ANDERSON COACHES LTD.
Children and Young Peoples Services,Head of Education and Skills,Transport,230008,Contract Hire,03/03/2020,3710560-2149,"3,053.24",TONY RIDLEY T/A COLORS TAXIS LTD.
Children and Young Peoples Services,Head of Education and Skills,Transport,230008,Contract Hire,03/03/2020,3710579-15812,"2,117.25",WEARDALE MOTOR SERVICES LTD.
Children and Young Peoples Services,Head of Education and Skills,Transport,230008,Contract Hire,03/03/2020,3710369-202,"1,112.96",FRANK ATKINSON T/A FJ MINIBUS TRAVEL.
Children and Young Peoples Services,Head of Education and Skills,Transport,230006,Contract Hire,03/03/2020,3710329-110110,"2,928.00",CROFT BUSINESS SERVICES (UK) LTD T/A CROFT TAXIS.
Children and Young Peoples Services,Head of Education and Skills,Transport,230008,Contract Hire,03/03/2020,3710379-12102/R-A001,"2,888.00",GATESHEAD CENTRAL TAXIS LTD.
Children and Young Peoples Services,Head of Education and Skills,Transport,230008,Contract Hire,03/03/2020,3710379-12102/R-A008,"3,496.00",GATESHEAD CENTRAL TAXIS LTD.
Children and Young Peoples Services,Head of Education and Skills,Transport,230008,Contract Hire,03/03/2020,3710379-12102/R-A015,"2,736.00",GATESHEAD CENTRAL TAXIS LTD.
Children and Young Peoples Services,Head of Education and Skills,Transport,230006,Contract Hire,03/03/2020,3710379-12102/R-A052,"1,540.00",GATESHEAD CENTRAL TAXIS LTD.
Children and Young Peoples Services,Head of Education and Skills,Transport,230008,Contract Hire,03/03/2020,3710379-12102/R-A056,"2,580.20",GATESHEAD CENTRAL TAXIS LTD.
Children and Young Peoples Services,Head of Education and Skills,Transport,230008,Contract Hire,03/03/2020,3710379-12102/R-A066,"2,976.00",GATESHEAD CENTRAL TAXIS LTD.
Children and Young Peoples Services,Head of Education and Skills,Transport,230006,Contract Hire,03/03/2020,3710403-357,"1,722.98",I CLYDESDALE T/A BURNOPFIELD TAXIS.
Children and Young Peoples Services,Head of Education and Skills,Transport,230008,Contract Hire,03/03/2020,3710379-12102/R-A045,"4,400.00",GATESHEAD CENTRAL TAXIS LTD.
Children and Young Peoples Services,Head of Education and Skills,Transport,230008,Contract Hire,03/03/2020,3710379-12102/R-A048,"2,400.00",GATESHEAD CENTRAL TAXIS LTD.
Children and Young Peoples Services,Head of Education and Skills,Transport,230008,Contract Hire,03/03/2020,3710403-354,"3,150.00",I CLYDESDALE T/A BURNOPFIELD TAXIS.
Children and Young Peoples Services,Head of Education and Skills,Transport,230006,Contract Hire,03/03/2020,3710446-INV01/2017,"2,160.87",MARK & JOHN CHISHOLM T/A (CHEVRON).
Children and Young Peoples Services,Head of Education and Skills,Transport,230010,Contract Hire,03/03/2020,3710329-110115,"2,639.72",CROFT BUSINESS SERVICES (UK) LTD T/A CROFT TAXIS.
Children and Young Peoples Services,Head of Education and Skills,Transport,230010,Contract Hire,03/03/2020,3710403-350,"2,240.00",I CLYDESDALE T/A BURNOPFIELD TAXIS.
Children and Young Peoples Services,Head of Education and Skills,Transport,230006,Contract Hire,03/03/2020,3710263-22014,"1,027.92",24/7 TAXI SERVICES LTD.
Children and Young Peoples Services,Head of Education and Skills,Transport,230006,Contract Hire,03/03/2020,3710264-6/FEB,900.00,A & C TAXIS.
Children and Young Peoples Services,Head of Education and Skills,Transport,230006,Contract Hire,03/03/2020,3710396-38,"1,035.00",HARDIP SINGH MAHIL T/A AMBER CARS.
Children and Young Peoples Services,Head of Education and Skills,Supplies and Services,338099,Services,03/03/2020,3710581-UOTR4621936,760.06,WESTERN UNION BUSINESS SOLUTIONS.
Children and Young Peoples Services,Head of Childrens Social Care,Third Party Payments,440038,Other third party payments E440,03/03/2020,3710502-5238,"11,384.52",ROC FAMILY SUPPORT LTD.
Children and Young Peoples Services,Head of Childrens Social Care,Third Party Payments,440038,Other third party payments E440,03/03/2020,3710502-5240,"9,820.24",ROC FAMILY SUPPORT LTD.
Children and Young Peoples Services,Head of Childrens Social Care,Third Party Payments,440038,Other third party payments E440,03/03/2020,3710502-5241,557.90,ROC FAMILY SUPPORT LTD.
Children and Young Peoples Services,Head of Childrens Social Care,Third Party Payments,425021,Rendered by Voluntary Organisations,03/03/2020,3710502-5223,"33,472.00",ROC FAMILY SUPPORT LTD.
Children and Young Peoples Services,Head of Childrens Social Care,Third Party Payments,440046,Other third party payments E440,03/03/2020,3710577-INV-1975,"6,680.72",WE CARE RECRUITMENT SOLUTIONS LTD.
Children and Young Peoples Services,Head of Childrens Social Care,Third Party Payments,440046,Other third party payments E440,03/03/2020,3710577-INV-1979,"6,363.52",WE CARE RECRUITMENT SOLUTIONS LTD.
Children and Young Peoples Services,Head of Childrens Social Care,Transport,230005,Contract Hire,03/03/2020,3710540-SI-410,772.00,STEVEN PRATT T/A PTL TAXIS DURHAM.
Children and Young Peoples Services,Head of Childrens Social Care,Transport,230005,Contract Hire,03/03/2020,3710540-SI-413,995.00,STEVEN PRATT T/A PTL TAXIS DURHAM.
Children and Young Peoples Services,Head of Childrens Social Care,Transport,230005,Contract Hire,03/03/2020,3710540-SI-414,560.00,STEVEN PRATT T/A PTL TAXIS DURHAM.
Children and Young Peoples Services,Head of Childrens Social Care,Transport,230005,Contract Hire,03/03/2020,3710540-SI-416,589.50,STEVEN PRATT T/A PTL TAXIS DURHAM.
Children and Young Peoples Services,Head of Childrens Social Care,Transport,230005,Contract Hire,03/03/2020,3710329-109656,882.26,CROFT BUSINESS SERVICES (UK) LTD T/A CROFT TAXIS.
Children and Young Peoples Services,Head of Childrens Social Care,Supplies and Services,338044,Services,03/03/2020,3710435-161266,890.58,LEXTOX.
Children and Young Peoples Services,Head of Childrens Social Care,Transport,230005,Contract Hire,03/03/2020,3710540-SI-407,660.00,STEVEN PRATT T/A PTL TAXIS DURHAM.
Children and Young Peoples Services,Head of Childrens Social Care,Transport,230005,Contract Hire,03/03/2020,3710329-109666,554.96,CROFT BUSINESS SERVICES (UK) LTD T/A CROFT TAXIS.
Children and Young Peoples Services,Head of Childrens Social Care,Transport,230005,Contract Hire,03/03/2020,3710540-SI-418,699.50,STEVEN PRATT T/A PTL TAXIS DURHAM.
Children and Young Peoples Services,Head of Childrens Social Care,Transport,230005,Contract Hire,03/03/2020,3710540-SI-408,"1,178.50",STEVEN PRATT T/A PTL TAXIS DURHAM.
Dedicated Schools Grant BG0015,DSG Early Years Block,Transfer Payments,510030,School Children,04/03/2020,3710871-18416,"1,303.50",REDACTED - PAYMENT TO INDIVIDUAL
Dedicated Schools Grant BG0015,DSG Early Years Block,Transfer Payments,510030,School Children,04/03/2020,3710899-18420,632.25,REDACTED - PAYMENT TO INDIVIDUAL
Regeneration and Local Services,Environmental Services,Supplies and Services,304221,Equipment and Materials,04/03/2020,3710648-200223,560.10,BRAMBLEDOWN LANDSCAPE SERVICES LTD.
Regeneration and Local Services,Environmental Services,Supplies and Services,304221,Equipment and Materials,04/03/2020,3710648-200224,649.00,BRAMBLEDOWN LANDSCAPE SERVICES LTD.
Regeneration and Local Services,Environmental Services,Third Party Payments,430100,Rendered by Private Contractors,04/03/2020,3710836-2730,"2,040.00",IAN C LIDDLE T/A IC LIDDLE SERVICES.
Regeneration and Local Services,Environmental Services,Transport,210057,Repair and Maintenance of Vehicles,04/03/2020,3710726-96386059,762.01,DENNIS EAGLE LTD T/A TERBERG MATEC (UK) LTD.
Regeneration and Local Services,Environmental Services,Transport,215005,Running Costs of Vehicles,04/03/2020,3710948-550830,"13,698.04",OIL NRG LTD.
Regeneration and Local Services,Technical Services CM0300,Third Party Payments,430127,Rendered by Private Contractors,04/03/2020,3710713-043,"1,911.50",D & L HOPPS.
Regeneration and Local Services,Environmental Services,Transport,210057,Repair and Maintenance of Vehicles,04/03/2020,3710934-21846717,870.91,NORTH EAST TRUCK & VAN LTD.
Regeneration and Local Services,Environmental Services,Transport,215005,Running Costs of Vehicles,04/03/2020,3710948-549467,"13,985.60",OIL NRG LTD.
Regeneration and Local Services,Environmental Services,Transport,215022,Running Costs of Vehicles,04/03/2020,3710948-549470,"2,080.40",OIL NRG LTD.
Regeneration and Local Services,Environmental Services,Transport,210057,Repair and Maintenance of Vehicles,04/03/2020,3711122-16462,773.14,VERSALIFT DISTRIBUTORS (UK) LTD.
Regeneration and Local Services,Corporate Property and Land,Supplies and Services,384199,Miscellaneous Expenses,04/03/2020,3710863-DEMOLITIONOFGARAGES,"76,054.15",JOHN WADE (HAULAGE) LTD.
Regeneration and Local Services,Corporate Property and Land,Premises,120037,Energy Costs,04/03/2020,3710600-10552,"1,988.16",AFTERWOOD LTD.
Regeneration and Local Services,Corporate Property and Land,Premises,145023,Cleaning and Domestic Supplies,04/03/2020,3710809-06/047138,"1,579.20",GREENHAM TRADING LTD.
Regeneration and Local Services,Environmental Services,Supplies and Services,342051,Computers and Communications,04/03/2020,3710758-2849,"11,059.00",EHS DATA LTD.
Regeneration and Local Services,Environmental Services,Supplies and Services,342051,Computers and Communications,04/03/2020,3710758-2898,"11,935.00",EHS DATA LTD.
Regeneration and Local Services,Culture Sport and Tourism,Supplies and Services,384199,Miscellaneous Expenses,04/03/2020,3710622-INV-000000550,"65,000.00",ARTICHOKE TRUST.
Regeneration and Local Services,Environmental Services,Transport,215005,Running Costs of Vehicles,04/03/2020,3710948-549746,"5,885.12",OIL NRG LTD.
Regeneration and Local Services,Environmental Services,Transport,215005,Running Costs of Vehicles,04/03/2020,3710948-549744,"1,992.40",OIL NRG LTD.
Regeneration and Local Services,Culture Sport and Tourism,Supplies and Services,384199,Miscellaneous Expenses,04/03/2020,3710607-7376,"2,230.00",ALROSE PRODUCTIONS LTD.
Regeneration and Local Services,Technical Services CM0300,Stock A926,926900,Stock in hand-Inventory system,04/03/2020,3710691-234761,631.20,COLAS LTD.
Regeneration and Local Services,Technical Services CM0300,Stock A926,926900,Stock in hand-Inventory system,04/03/2020,3710809-06/043942,961.08,GREENHAM TRADING LTD.
Regeneration and Local Services,Technical Services CM0300,Stock A926,926900,Stock in hand-Inventory system,04/03/2020,3710841-720770,"2,489.20",INSTARMAC GROUP PLC.
Regeneration and Local Services,Technical Services CM0300,Stock A926,926900,Stock in hand-Inventory system,04/03/2020,3710868-0113/00029716,879.12,JT DOVE LTD.
Regeneration and Local Services,Technical Services CM0300,Stock A926,926900,Stock in hand-Inventory system,04/03/2020,3710868-0113/00029718,648.00,JT DOVE LTD.
Regeneration and Local Services,Technical Services CM0300,Stock A926,926900,Stock in hand-Inventory system,04/03/2020,3710957-TH332059,"1,961.40",PARK ELECTRICAL DISTRIBUTORS LTD.
Regeneration and Local Services,Technical Services CM0300,Stock A926,926900,Stock in hand-Inventory system,04/03/2020,3710957-XL252265,"1,042.80",PARK ELECTRICAL DISTRIBUTORS LTD.
Regeneration and Local Services,Technical Services CM0300,Stock A926,926900,Stock in hand-Inventory system,04/03/2020,3710957-XL252274,635.00,PARK ELECTRICAL DISTRIBUTORS LTD.
Regeneration and Local Services,Technical Services CM0300,Stock A926,926900,Stock in hand-Inventory system,04/03/2020,3710957-XL252275,"3,408.48",PARK ELECTRICAL DISTRIBUTORS LTD.
Regeneration and Local Services,Technical Services CM0300,Stock A926,926900,Stock in hand-Inventory system,04/03/2020,3711093-NSIN00030068,825.00,THOMAS OWEN & SONS (NEWCASTLE) LTD.
Regeneration and Local Services,Technical Services CM0300,Third Party Payments,430100,Rendered by Private Contractors,04/03/2020,3710991-12440,822.34,QUANTUM POWER CONNECTIONS LTD.
Regeneration and Local Services,Technical Services CM0300,Third Party Payments,430100,Rendered by Private Contractors,04/03/2020,3710991-12442,"1,068.82",QUANTUM POWER CONNECTIONS LTD.
Regeneration and Local Services,Technical Services CM0300,Supplies and Services,338066,Services,04/03/2020,3710738-0013,846.00,DUNELM TESTING LTD.
Regeneration and Local Services,Technical Services CM0300,Supplies and Services,304221,Equipment and Materials,04/03/2020,3710601-29445223,736.00,AGGREGATE INDUSTRIES UK LTD.
Regeneration and Local Services,Technical Services CM0300,Supplies and Services,304221,Equipment and Materials,04/03/2020,3710601-29483692,"1,209.02",AGGREGATE INDUSTRIES UK LTD.
Regeneration and Local Services,Technical Services CM0300,Supplies and Services,304221,Equipment and Materials,04/03/2020,3710601-29483694,982.00,AGGREGATE INDUSTRIES UK LTD.
Regeneration and Local Services,Technical Services CM0300,Supplies and Services,304221,Equipment and Materials,04/03/2020,3710601-29491979,957.46,AGGREGATE INDUSTRIES UK LTD.
Regeneration and Local Services,Technical Services CM0300,Supplies and Services,304221,Equipment and Materials,04/03/2020,3710601-29491982,"1,772.72",AGGREGATE INDUSTRIES UK LTD.
Regeneration and Local Services,Technical Services CM0300,Supplies and Services,304221,Equipment and Materials,04/03/2020,3710601-29491984,741.00,AGGREGATE INDUSTRIES UK LTD.
Regeneration and Local Services,Technical Services CM0300,Supplies and Services,304221,Equipment and Materials,04/03/2020,3710601-29491985,"1,207.80",AGGREGATE INDUSTRIES UK LTD.
Regeneration and Local Services,Technical Services CM0300,Supplies and Services,304221,Equipment and Materials,04/03/2020,3710601-29491986,974.22,AGGREGATE INDUSTRIES UK LTD.
Regeneration and Local Services,Technical Services CM0300,Supplies and Services,304221,Equipment and Materials,04/03/2020,3710601-29491987,619.76,AGGREGATE INDUSTRIES UK LTD.
Regeneration and Local Services,Technical Services CM0300,Supplies and Services,304358,Equipment and Materials,04/03/2020,3710668-1747,"4,291.28",CG SIMPSON & SON.
Regeneration and Local Services,Technical Services CM0300,Third Party Payments,430101,Rendered by Private Contractors,04/03/2020,3710825-3059,"4,830.00",HIGHWAY CONSTRUCTION SERVICES LTD.
Regeneration and Local Services,Technical Services CM0300,Third Party Payments,430101,Rendered by Private Contractors,04/03/2020,3710825-3060,"2,500.00",HIGHWAY CONSTRUCTION SERVICES LTD.
Regeneration and Local Services,Technical Services CM0300,Supplies and Services,304358,Equipment and Materials,04/03/2020,3710846-1651/2019,"1,822.00",J & JG GILL & SONS LTD.
Regeneration and Local Services,Technical Services CM0300,Supplies and Services,304358,Equipment and Materials,04/03/2020,3710846-1653/2019,"1,103.50",J & JG GILL & SONS LTD.
Regeneration and Local Services,Technical Services CM0300,Supplies and Services,304358,Equipment and Materials,04/03/2020,3710846-1706/2019,"1,971.50",J & JG GILL & SONS LTD.
Regeneration and Local Services,Technical Services CM0300,Supplies and Services,304358,Equipment and Materials,04/03/2020,3710862-30412,888.00,JOHN R BUTTERFIELD LTD.
Regeneration and Local Services,Technical Services CM0300,Supplies and Services,304358,Equipment and Materials,04/03/2020,3710862-30417,649.00,JOHN R BUTTERFIELD LTD.
Regeneration and Local Services,Technical Services CM0300,Supplies and Services,304358,Equipment and Materials,04/03/2020,3710862-30427,"1,236.00",JOHN R BUTTERFIELD LTD.
Regeneration and Local Services,Technical Services CM0300,Supplies and Services,304358,Equipment and Materials,04/03/2020,3710862-30428,"1,036.00",JOHN R BUTTERFIELD LTD.
Regeneration and Local Services,Technical Services CM0300,Supplies and Services,304358,Equipment and Materials,04/03/2020,3710862-30429,"1,184.00",JOHN R BUTTERFIELD LTD.
Regeneration and Local Services,Technical Services CM0300,Supplies and Services,304358,Equipment and Materials,04/03/2020,3710862-30431,"1,220.00",JOHN R BUTTERFIELD LTD.
Regeneration and Local Services,Technical Services CM0300,Supplies and Services,304358,Equipment and Materials,04/03/2020,3710862-30433,888.00,JOHN R BUTTERFIELD LTD.
Regeneration and Local Services,Technical Services CM0300,Supplies and Services,304358,Equipment and Materials,04/03/2020,3710862-30435,"1,155.00",JOHN R BUTTERFIELD LTD.
Regeneration and Local Services,Technical Services CM0300,Supplies and Services,304358,Equipment and Materials,04/03/2020,3710862-30436,888.00,JOHN R BUTTERFIELD LTD.
Regeneration and Local Services,Technical Services CM0300,Supplies and Services,304358,Equipment and Materials,04/03/2020,3710862-30437,649.00,JOHN R BUTTERFIELD LTD.
Regeneration and Local Services,Technical Services CM0300,Supplies and Services,304221,Equipment and Materials,04/03/2020,3710868-0104/00025469,"2,898.00",JT DOVE LTD.
Regeneration and Local Services,Technical Services CM0300,Supplies and Services,304221,Equipment and Materials,04/03/2020,3710868-0104/00029715,"1,955.83",JT DOVE LTD.
Regeneration and Local Services,Technical Services CM0300,Supplies and Services,304221,Equipment and Materials,04/03/2020,3710868-0113/00017969,538.60,JT DOVE LTD.
Regeneration and Local Services,Technical Services CM0300,Supplies and Services,340001,Postages E340,04/03/2020,3710868-0113/00024544,"1,449.00",JT DOVE LTD.
Regeneration and Local Services,Technical Services CM0300,Supplies and Services,304221,Equipment and Materials,04/03/2020,3710868-0113/00025474,579.63,JT DOVE LTD.
Regeneration and Local Services,Technical Services CM0300,Supplies and Services,304358,Equipment and Materials,04/03/2020,3710901-5878,"2,908.00",MAKEPEACE MOTORS.
Regeneration and Local Services,Technical Services CM0300,Supplies and Services,304358,Equipment and Materials,04/03/2020,3710901-5879,"2,737.00",MAKEPEACE MOTORS.
Regeneration and Local Services,Technical Services CM0300,Third Party Payments,430100,Rendered by Private Contractors,04/03/2020,3710987-128100,550.00,PROTECTOR SECURITY GROUP LTD.
Regeneration and Local Services,Technical Services CM0300,Third Party Payments,430100,Rendered by Private Contractors,04/03/2020,3710987-128276,550.00,PROTECTOR SECURITY GROUP LTD.
Regeneration and Local Services,Technical Services CM0300,Third Party Payments,430100,Rendered by Private Contractors,04/03/2020,3710987-129077,550.00,PROTECTOR SECURITY GROUP LTD.
Regeneration and Local Services,Technical Services CM0300,Third Party Payments,430100,Rendered by Private Contractors,04/03/2020,3710987-129283,550.00,PROTECTOR SECURITY GROUP LTD.
Regeneration and Local Services,Technical Services CM0300,Third Party Payments,430100,Rendered by Private Contractors,04/03/2020,3710987-129459,550.00,PROTECTOR SECURITY GROUP LTD.
Regeneration and Local Services,Technical Services CM0300,Third Party Payments,430100,Rendered by Private Contractors,04/03/2020,3710987-129703,550.00,PROTECTOR SECURITY GROUP LTD.
Regeneration and Local Services,Technical Services CM0300,Supplies and Services,304358,Equipment and Materials,04/03/2020,3711017-2072,"1,040.50",S & R LANDSCAPES.
Regeneration and Local Services,Technical Services CM0300,Supplies and Services,304358,Equipment and Materials,04/03/2020,3711017-2074,795.50,S & R LANDSCAPES.
Regeneration and Local Services,Technical Services CM0300,Supplies and Services,304358,Equipment and Materials,04/03/2020,3711017-2077,"1,027.75",S & R LANDSCAPES.
Regeneration and Local Services,Technical Services CM0300,Supplies and Services,304358,Equipment and Materials,04/03/2020,3711017-2080,842.00,S & R LANDSCAPES.
Regeneration and Local Services,Technical Services CM0300,Third Party Payments,430100,Rendered by Private Contractors,04/03/2020,3711067-31269,"1,650.00",SURVEY OPERATIONS LTD.
Regeneration and Local Services,Technical Services CM0300,Supplies and Services,304221,Equipment and Materials,04/03/2020,3711072-9041476941,"1,173.88",TARMAC TRADING LTD.
Regeneration and Local Services,Technical Services CM0300,Supplies and Services,304221,Equipment and Materials,04/03/2020,3711072-9041485960,666.00,TARMAC TRADING LTD.
Regeneration and Local Services,Technical Services CM0300,Supplies and Services,304221,Equipment and Materials,04/03/2020,3711098-112127,"1,555.00",TOFCO LTD.
Regeneration and Local Services,Technical Services CM0300,Supplies and Services,304221,Equipment and Materials,04/03/2020,3711137-13141,864.00,WILF HUSBAND PLANT HIRE.
Regeneration and Local Services,Corporate Property and Land,Third Party Payments,430100,Rendered by Private Contractors,04/03/2020,3710787-11188,"2,145.00",FROSTREE LTD.
Regeneration and Local Services,Corporate Property and Land,Third Party Payments,430100,Rendered by Private Contractors,04/03/2020,3710869-AH-000070-11,"1,100.00",JTL SCAFFOLDING LTD.
Regeneration and Local Services,Corporate Property and Land,Supplies and Services,304221,Equipment and Materials,04/03/2020,3710868-0113/00029714,532.62,JT DOVE LTD.
Regeneration and Local Services,Corporate Property and Land,Supplies and Services,304221,Equipment and Materials,04/03/2020,3711112-04020401,650.75,UK ELECTRIC LTD.
Regeneration and Local Services,Corporate Property and Land,Supplies and Services,304221,Equipment and Materials,04/03/2020,3710782-0002/00027097,712.04,FLAME HEATING SPARES LTD.
Regeneration and Local Services,Corporate Property and Land,Supplies and Services,304221,Equipment and Materials,04/03/2020,3710782-0002/00029983,505.16,FLAME HEATING SPARES LTD.
Regeneration and Local Services,Corporate Property and Land,Third Party Payments,430100,Rendered by Private Contractors,04/03/2020,3710767-SIN/20-081208-BD,586.00,ENGINEERING PRECISION SOLUTIONS LTD T/A CYRUS-BRADFORD.
Regeneration and Local Services,Corporate Property and Land,Supplies and Services,304221,Equipment and Materials,04/03/2020,3710897-4752504,"2,070.90",LONDON GENERAL SALES LTD.
Regeneration and Local Services,Corporate Property and Land,Third Party Payments,430100,Rendered by Private Contractors,04/03/2020,3710725-NE045-1,"1,722.78",DELTA WIRING SOLUTIONS LTD.
Regeneration and Local Services,Corporate Property and Land,Third Party Payments,430100,Rendered by Private Contractors,04/03/2020,3710725-NE038-1,"5,845.96",DELTA WIRING SOLUTIONS LTD.
Regeneration and Local Services,Development and Housing,Supplies and Services,338066,Services,04/03/2020,3710794-GEN1100A,"28,000.00",GENECON  LTD.
Regeneration and Local Services,Business Durham CL0850,Premises,135005,Water Services,04/03/2020,3711131-21416074001-6780502,"1,520.02",WAVE (AWBN).
Regeneration and Local Services,Business Durham CL0850,Premises,135005,Water Services,04/03/2020,3711131-888888994646668197,"2,206.61",WAVE (AWBN).
Regeneration and Local Services,Corporate Property and Land,Supplies and Services,304083,Equipment and Materials,04/03/2020,3710930-20728922,628.99,NISBETS PLC.
Regeneration and Local Services,Culture Sport and Tourism,Supplies and Services,384199,Miscellaneous Expenses,04/03/2020,3711039-50,900.00,SIMON JUGOVIC FINK (ILLUSTRATOR).
Regeneration and Local Services,Development and Housing,Supplies and Services,338035,Services,04/03/2020,3710990-390952,"1,045.00",QUALSAFE.COM.
Regeneration and Local Services,Environmental Services,Supplies and Services,384199,Miscellaneous Expenses,04/03/2020,3711116-9100079733,"5,000.00",UNIVERSITY OF NEWCASTLE UPON TYNE.
Regeneration and Local Services,Environmental Services,Cap Exp on Grants & Other Financial Assistance (REFCUS),918501,Exp assets not owned by authority,04/03/2020,3710696-C0571-10/02/2020,"42,600.00",CONSERVEFOR.
Regeneration and Local Services,Environmental Services,Cap Exp on Grants & Other Financial Assistance (REFCUS),918501,Exp assets not owned by authority,04/03/2020,3710696-CO570,"56,250.00",CONSERVEFOR.
Regeneration and Local Services,Environmental Services,Supplies and Services,338066,Services,04/03/2020,3711034-INV1-8158,"1,200.00",SHOCK THE SENSES LTD.
Regeneration and Local Services,Environmental Services,Supplies and Services,384199,Miscellaneous Expenses,04/03/2020,3711079-963A,"22,051.30",TERRA FIRMA ENVIRONMENTAL LTD.
Regeneration and Local Services,Transport and Contracted Services,Third Party Payments,430106,Rendered by Private Contractors,04/03/2020,3710802-72954,"93,153.05",GO GATESHEAD LTD.
Regeneration and Local Services,Transport and Contracted Services,Third Party Payments,430100,Rendered by Private Contractors,04/03/2020,3710620-CONCFAREPAY19-6JANV1,"794,557.00",ARRIVA DURHAM COUNTY LTD.
Regeneration and Local Services,Transport and Contracted Services,Third Party Payments,430100,Rendered by Private Contractors,04/03/2020,3710710-CONCFAREPAY19-6JANV1,566.17,CUMBRIA CLASSIC COACHES LTD.
Regeneration and Local Services,Transport and Contracted Services,Third Party Payments,430100,Rendered by Private Contractors,04/03/2020,3710802-CONCFAREPAY19-6JANV1,"754,929.00",GO GATESHEAD LTD.
Regeneration and Local Services,Transport and Contracted Services,Third Party Payments,430100,Rendered by Private Contractors,04/03/2020,3710807-CONCFAREPAY19-6JANV1,757.28,GRAHAMS MOTOR SERVICES LTD.
Regeneration and Local Services,Transport and Contracted Services,Third Party Payments,430100,Rendered by Private Contractors,04/03/2020,3710828-CONCFAREPAY19-6JANV1,946.77,HODGSONS COACH OPERATORS LTD.
Regeneration and Local Services,Transport and Contracted Services,Third Party Payments,430107,Rendered by Private Contractors,04/03/2020,3710938-CONCFAREPAY19-6JANV1,"1,875.33",NORTHERN TRAINS LTD.
Regeneration and Local Services,Transport and Contracted Services,Third Party Payments,430100,Rendered by Private Contractors,04/03/2020,3711022-CONCFAREPAY19-6JANV1,"24,604.89",SCARLET BAND BUS & COACH LTD.
Regeneration and Local Services,Transport and Contracted Services,Third Party Payments,430100,Rendered by Private Contractors,04/03/2020,3711049-CONCFAREPAY19-6JANV1,"8,146.08",STANLEY TRAVEL (NORTH EAST) LTD.
Regeneration and Local Services,Transport and Contracted Services,Third Party Payments,430100,Rendered by Private Contractors,04/03/2020,3711134-CONCFAREPAY19-6JANV1,"35,111.51",WEARDALE MOTOR SERVICES LTD.
Regeneration and Local Services,Transport and Contracted Services,Third Party Payments,430100,Rendered by Private Contractors,04/03/2020,3711134-CONCFAREPAY19-6JANV1X21,"1,994.25",WEARDALE MOTOR SERVICES LTD.
Regeneration and Local Services,Transport and Contracted Services,Intangible Assets,917001,Software capitalised licence fees,04/03/2020,3710912-IN00430832,"296,104.00",MOTT MACDONALD LTD.
Regeneration and Local Services,Environmental Services,Construction work A908,908105,Construction work,04/03/2020,3710737-EDRF-FUNDING-BID,"27,312.50",DUNELM GEOTECHNICAL & ENVIRONMENTAL LTD.
Adult and Health Services,Head of Adults,Transport,230005,Contract Hire,04/03/2020,3710859-14/FEB,900.00,JOHN CRAKE & SONS MINI BUSES LTD.
Adult and Health Services,Head of Adults,Third Party Payments,474101,Purchase of Care,04/03/2020,3710880-CAS-03-2020-005,"54,208.72",KINGSWAY CARE HOME LTD.
Adult and Health Services,Head of Adults,Transport,230005,Contract Hire,04/03/2020,3710961-93,720.00,PAUL B TAXIS.
Adult and Health Services,Head of Adults,Supplies and Services,338365,Services,04/03/2020,3711078-4810017089,"4,770.00",TEES ESK & WEAR VALLEYS NHS FOUNDATION TRUST.
Adult and Health Services,Head of Adults,Transport,230005,Contract Hire,04/03/2020,3710834-IR2002011,617.00,I & R EXECUTIVE TRAVEL.
Adult and Health Services,Head of Adults,Transport,230005,Contract Hire,04/03/2020,3710834-IR2002012,640.00,I & R EXECUTIVE TRAVEL.
Adult and Health Services,Head of Adults,Transport,230005,Contract Hire,04/03/2020,3710859-15/FEB,900.00,JOHN CRAKE & SONS MINI BUSES LTD.
Adult and Health Services,Head of Adults,Transport,230005,Contract Hire,04/03/2020,3710859-17/FEB,"1,600.00",JOHN CRAKE & SONS MINI BUSES LTD.
Adult and Health Services,Head of Adults,Transport,230005,Contract Hire,04/03/2020,3710885-006,"1,785.00",KULDEEP MAHIL T/A KOLARS CAB.
Adult and Health Services,Head of Adults,Transport,230005,Contract Hire,04/03/2020,3710969-0928,"1,271.85",PETER`S PRIVATE HIRE/PETER BEST.
Adult and Health Services,Head of Adults,Transport,230005,Contract Hire,04/03/2020,3710834-IR2002006,"1,425.00",I & R EXECUTIVE TRAVEL.
Adult and Health Services,Head of Adults,Transport,230005,Contract Hire,04/03/2020,3710970-DM204/2,990.00,PETER`S TAXIS.
Children and Young Peoples Services,Childrens Services Operational Support,Supplies and Services,338094,Services,04/03/2020,3711143-1021,"4,785.00",XCEL CONFERENCE & EVENTS (INNOVATE COUNTY DURHAM) LTD.
Children and Young Peoples Services,Head of Childrens Social Care,Employees,080025,Agency Staff,04/03/2020,3710795-2436538,"93,965.73",GEOMETRIC RESULTS INTERNATIONAL.
Regeneration and Local Services,Culture Sport and Tourism,Supplies and Services,312013,Newspapers books and periodicals E312,04/03/2020,3710626-6269303,571.45,ASKEWS & HOLTS LIBRARY SERVICES LTD.
Regeneration and Local Services,Culture Sport and Tourism,Supplies and Services,304259,Equipment and Materials,04/03/2020,3710607-7378,"1,212.00",ALROSE PRODUCTIONS LTD.
Regeneration and Local Services,Culture Sport and Tourism,Supplies and Services,384199,Miscellaneous Expenses,04/03/2020,3710607-7377,"1,650.00",ALROSE PRODUCTIONS LTD.
Adult and Health Services,Head of Adults,Supplies and Services,304259,Equipment and Materials,04/03/2020,3710942-98169460,629.00,NOTTINGHAM REHAB LTD.
Adult and Health Services,Public Health CC0450,Supplies and Services,384199,Miscellaneous Expenses,04/03/2020,3710941-914729802,"15,000.00",NORTHUMBRIAN WATER LTD.
Adult and Health Services,Public Health CC0450,Third Party Payments,460803,Contract Payments,04/03/2020,3710817-DCC011-06/02/2020,"40,200.00",HARBOUR SUPPORT SERVICES.
Transformation and Partnerships,Partnerships & Community Engagement Div.,Supplies and Services,384871,Miscellaneous Expenses,04/03/2020,3711132-CLSFARAH,"1,062.00",WAYMAN DEVELOPMENTS LTD T/A CHILDSPLAY PRIVATE NURSERY.
Resources BK0010,Corporate Finance & Commercial Services,Supplies and Services,312075,Newspapers books and periodicals E312,04/03/2020,3710891-I0600570C,505.98,LEXISNEXIS BUTTERWORTHS.
Resources BK0010,Corporate Finance & Commercial Services,Supplies and Services,342033,Computers and Communications,04/03/2020,3710637-101760,"4,770.00",BEYOND SYSTEMS LTD.
Resources BK0010,Finance & Transactional Services,Supplies and Services,338066,Services,04/03/2020,3710939-91429803,"10,537.50",NORTHGATE PUBLIC SERVICES (UK) LTD.
Resources BK0010,Digital and Customer Services,Supplies and Services,304303,Equipment and Materials,04/03/2020,3710811-INV0178416,"1,128.87",GV MULTIMEDIA LTD.
Resources BK0010,Digital and Customer Services,Supplies and Services,342033,Computers and Communications,04/03/2020,3711071-132528,673.14,SWITCHSHOP LTD.
Resources BK0010,Legal & Democratic Services,Supplies and Services,338102,Services,04/03/2020,3710610-006705,"13,375.00",ANALYTICAL SERVICES INTERNATIONAL LTD.
Transformation and Partnerships,Business Support,Supplies and Services,340001,Postages E340,04/03/2020,3711015-9060329219,"12,924.52",ROYAL MAIL GROUP PLC.
Resources BK0010,Corporate Finance & Commercial Services,Supplies and Services,352001,Conference Expenses,04/03/2020,3710606-71896,526.50,ALLWAG PROMOTIONS LTD.
Dedicated Schools Grant BG0015,DSG Early Years Block,Transfer Payments,510030,School Children,04/03/2020,3710598-18396,"1,501.50",ADVENTURE VALLEY DAY NURSERY LTD.
Dedicated Schools Grant BG0015,DSG Early Years Block,Transfer Payments,510030,School Children,04/03/2020,3710639-18397,656.10,BISHOP AUCKLAND COLLEGE NURSERY.
Dedicated Schools Grant BG0015,DSG Early Years Block,Transfer Payments,510030,School Children,04/03/2020,3710640-18398,659.13,BISHOP IAN RAMSEY PRE SCHOOL.
Dedicated Schools Grant BG0015,DSG Early Years Block,Transfer Payments,510030,School Children,04/03/2020,3710655-18400,"1,320.00",BUSY BEES (DURHAM) LTD.
Dedicated Schools Grant BG0015,DSG Early Years Block,Transfer Payments,510030,School Children,04/03/2020,3710663-18401,"1,320.00",CASTLE KINDERGARTEN LTD.
Dedicated Schools Grant BG0015,DSG Early Years Block,Transfer Payments,510030,School Children,04/03/2020,3710675-18435,560.00,CHORISTER SCHOOL.
Dedicated Schools Grant BG0015,DSG Early Years Block,Transfer Payments,510030,School Children,04/03/2020,3710684-18403,"1,320.00",CLEVER CLOGS DAY NURSERY (DURHAM) LTD.
Dedicated Schools Grant BG0015,DSG Early Years Block,Transfer Payments,510030,School Children,04/03/2020,3710704-18405,"1,059.60",COUNDON & LEEHOLME EARLY YEARS CENTRE LTD.
Dedicated Schools Grant BG0015,DSG Early Years Block,Transfer Payments,510030,School Children,04/03/2020,3710731-18407,"4,180.00",DO RE MI DAY NURSERY.
Dedicated Schools Grant BG0015,DSG Early Years Block,Transfer Payments,510030,School Children,04/03/2020,3710762-18409,516.60,EMERALDS LITTLE GEMS DAYCARE LTD.
Dedicated Schools Grant BG0015,DSG Early Years Block,Transfer Payments,510030,School Children,04/03/2020,3710813-18419,561.60,H WATSON-GREENWELL T/A LITTLE STARS NURSERY (ST BEDES).
Dedicated Schools Grant BG0015,DSG Early Years Block,Transfer Payments,510030,School Children,04/03/2020,3710832-18410,504.00,HOUSE OF EDEN LTD.
Dedicated Schools Grant BG0015,DSG Early Years Block,Transfer Payments,510030,School Children,04/03/2020,3710833-18411,899.10,HOWLETCH & SHOTTON CHILDCARE LTD.
Dedicated Schools Grant BG0015,DSG Early Years Block,Transfer Payments,510030,School Children,04/03/2020,3710875-18417,"2,749.50",KIDS 1ST NURSERIES DURHAM.
Dedicated Schools Grant BG0015,DSG Early Years Block,Transfer Payments,510030,School Children,04/03/2020,3710876-18418,"3,813.00",KIDZ VILLAGE LTD.
Dedicated Schools Grant BG0015,DSG Early Years Block,Transfer Payments,510030,School Children,04/03/2020,3710937-18421,592.20,NORTHERN SAINTS CATHOLIC EDUCATION TRUST (NSCET).
Dedicated Schools Grant BG0015,DSG Early Years Block,Transfer Payments,510030,School Children,04/03/2020,3711006-18425,"2,523.00",RIBBON DAYCARE.
Dedicated Schools Grant BG0015,DSG Early Years Block,Transfer Payments,510030,School Children,04/03/2020,3711028-18426,643.50,SEAHAM HOUSE DAY NURSERY.
Dedicated Schools Grant BG0015,DSG Early Years Block,Transfer Payments,510030,School Children,04/03/2020,3711029-18427,"1,518.75",SEASIDE LANE NURSERY.
Dedicated Schools Grant BG0015,DSG Early Years Block,Transfer Payments,510030,School Children,04/03/2020,3711059-18433,592.20,SUNSHINE DAY NURSERY LTD.
Dedicated Schools Grant BG0015,DSG Early Years Block,Transfer Payments,510030,School Children,04/03/2020,3711061-18434,615.00,SUNSHINE DAY NURSERY LTD.
Dedicated Schools Grant BG0015,DSG Early Years Block,Transfer Payments,510030,School Children,04/03/2020,3711095-18437,987.75,TILLY MINTS CHERUBS DAY NURSERY LTD.
Dedicated Schools Grant BG0015,DSG Early Years Block,Transfer Payments,510030,School Children,04/03/2020,3711097-18412,615.00,TM NURSERY ENTERPRISES LTD T/A JACK IN THE BOX DAYCARE.
Dedicated Schools Grant BG0015,DSG Early Years Block,Transfer Payments,510030,School Children,04/03/2020,3711101-18438,"2,004.75",TOTS `R` US.
Dedicated Schools Grant BG0015,DSG Early Years Block,Transfer Payments,510032,School Children,04/03/2020,3710598-18349,765.00,ADVENTURE VALLEY DAY NURSERY LTD.
Dedicated Schools Grant BG0015,DSG Early Years Block,Transfer Payments,510032,School Children,04/03/2020,3710653-18351,"1,560.60",BRIGHT STAR NURSERY.
Dedicated Schools Grant BG0015,DSG Early Years Block,Transfer Payments,510032,School Children,04/03/2020,3710655-18353,535.50,BUSY BEES (DURHAM) LTD.
Dedicated Schools Grant BG0015,DSG Early Years Block,Transfer Payments,510032,School Children,04/03/2020,3710663-18355,566.10,CASTLE KINDERGARTEN LTD.
Dedicated Schools Grant BG0015,DSG Early Years Block,Transfer Payments,510032,School Children,04/03/2020,3710704-18356,612.00,COUNDON & LEEHOLME EARLY YEARS CENTRE LTD.
Dedicated Schools Grant BG0015,DSG Early Years Block,Transfer Payments,510032,School Children,04/03/2020,3710721-18381,726.75,DAYPARK LTD T/A YELLOW WELLIES.
Dedicated Schools Grant BG0015,DSG Early Years Block,Transfer Payments,510032,School Children,04/03/2020,3710746-18357,719.10,EARLY LEARNERS PRIVATE DAY NURSERY.
Dedicated Schools Grant BG0015,DSG Early Years Block,Transfer Payments,510032,School Children,04/03/2020,3710748-18369,566.10,EAST DURHAM COLLEGE.
Dedicated Schools Grant BG0015,DSG Early Years Block,Transfer Payments,510032,School Children,04/03/2020,3710762-18358,719.10,EMERALDS LITTLE GEMS DAYCARE LTD.
Dedicated Schools Grant BG0015,DSG Early Years Block,Transfer Payments,510032,School Children,04/03/2020,3710762-18359,841.50,EMERALDS LITTLE GEMS DAYCARE LTD.
Dedicated Schools Grant BG0015,DSG Early Years Block,Transfer Payments,510032,School Children,04/03/2020,3710813-18364,765.00,H WATSON-GREENWELL T/A LITTLE STARS NURSERY (ST BEDES).
Dedicated Schools Grant BG0015,DSG Early Years Block,Transfer Payments,510032,School Children,04/03/2020,3710816-18350,841.50,HAPPYTIMES DAYCARE.
Dedicated Schools Grant BG0015,DSG Early Years Block,Transfer Payments,510032,School Children,04/03/2020,3710876-18361,"1,224.00",KIDZ VILLAGE LTD.
Dedicated Schools Grant BG0015,DSG Early Years Block,Transfer Payments,510032,School Children,04/03/2020,3710877-18362,535.50,KIDZONE.
Dedicated Schools Grant BG0015,DSG Early Years Block,Transfer Payments,510032,School Children,04/03/2020,3710893-18363,535.50,LITTLE ACORNS NORTH EAST LTD.
Dedicated Schools Grant BG0015,DSG Early Years Block,Transfer Payments,510032,School Children,04/03/2020,3710940-18368,841.50,NORTHUMBRIAN TRUST DAY NURSERIES LTD.
Dedicated Schools Grant BG0015,DSG Early Years Block,Transfer Payments,510032,School Children,04/03/2020,3711028-18371,765.00,SEAHAM HOUSE DAY NURSERY.
Dedicated Schools Grant BG0015,DSG Early Years Block,Transfer Payments,510032,School Children,04/03/2020,3711029-18372,"1,178.10",SEASIDE LANE NURSERY.
Dedicated Schools Grant BG0015,DSG Early Years Block,Transfer Payments,510032,School Children,04/03/2020,3711055-18374,566.10,STEPPING STONES DAY NURSERY (DURHAM).
Dedicated Schools Grant BG0015,DSG Early Years Block,Transfer Payments,510032,School Children,04/03/2020,3711059-18376,"1,254.60",SUNSHINE DAY NURSERY LTD.
Dedicated Schools Grant BG0015,DSG Early Years Block,Transfer Payments,510032,School Children,04/03/2020,3711060-18375,688.50,SUNSHINE DAY NURSERY LTD.
Dedicated Schools Grant BG0015,DSG Early Years Block,Transfer Payments,510032,School Children,04/03/2020,3711101-18378,841.50,TOTS `R` US.
Dedicated Schools Grant BG0015,DSG Early Years Block,Transfer Payments,510032,School Children,04/03/2020,3711109-18373,918.00,TUDHOE LEARNING TRUST T/A SOUTH HETTON PRIMARY SCHOOL.
Dedicated Schools Grant BG0015,DSG Early Years Block,Transfer Payments,510032,School Children,04/03/2020,3711119-18380,612.00,USHAW MOOR DAYCARE.
Dedicated Schools Grant BG0015,DSG Early Years Block,Transfer Payments,510032,School Children,04/03/2020,3711144-18382,918.00,YORK HOUSE NURSERY.
Children and Young Peoples Services,Head of Education and Skills,Transport,230034,Contract Hire,04/03/2020,3710970-3422/2,750.00,PETER`S TAXIS.
Children and Young Peoples Services,Head of Education and Skills,Transport,230007,Contract Hire,04/03/2020,3710932-INV-6470,"1,706.10",NORTH EAST COACHWAYS LTD.
Children and Young Peoples Services,Head of Education and Skills,Transport,230007,Contract Hire,04/03/2020,3710715-397,592.00,DA TRAVEL.
Children and Young Peoples Services,Head of Education and Skills,Transport,230034,Contract Hire,04/03/2020,3710918-4355-JAN20,764.75,MR JOHN ADAMS T/A JA TAXIS (DURHAM).
Children and Young Peoples Services,Head of Education and Skills,Transport,230012,Contract Hire,04/03/2020,3710896-4782,"1,125.00",LOCAL TRANSPORT LTD.
Children and Young Peoples Services,Head of Education and Skills,Transport,230012,Contract Hire,04/03/2020,3710910-KDC-0122020,"2,052.45",MJ TIMNEY T/A KDC & C&M TAXIS.
Children and Young Peoples Services,Head of Education and Skills,Transport,230007,Contract Hire,04/03/2020,3710969-0925,"1,668.10",PETER`S PRIVATE HIRE/PETER BEST.
Children and Young Peoples Services,Head of Education and Skills,Transport,230034,Contract Hire,04/03/2020,3710969-0933,"1,080.00",PETER`S PRIVATE HIRE/PETER BEST.
Children and Young Peoples Services,Head of Education and Skills,Transport,230008,Contract Hire,04/03/2020,3710643-E013/2,"1,393.24",BLACKHALL TAXIS.
Children and Young Peoples Services,Head of Education and Skills,Transport,230008,Contract Hire,04/03/2020,3710729-006-E040,"2,164.50",DEXTERS PRIVATE HIRE.
Children and Young Peoples Services,Head of Education and Skills,Transport,230009,Contract Hire,04/03/2020,3710865-7231-2-06,975.00,JOVIAL PRIVATE HIRE.
Children and Young Peoples Services,Head of Education and Skills,Transport,230034,Contract Hire,04/03/2020,3710619-FEB2020-1,"1,184.00",ARMSTRONG`S TAXIS.
Children and Young Peoples Services,Head of Education and Skills,Transport,230007,Contract Hire,04/03/2020,3710641-050,"1,800.00",BL CARS.
Children and Young Peoples Services,Head of Education and Skills,Transport,230007,Contract Hire,04/03/2020,3710966-1233/FEB,"1,191.21",PETER NAYLOR.
Children and Young Peoples Services,Head of Education and Skills,Transport,230012,Contract Hire,04/03/2020,3710715-395,872.16,DA TRAVEL.
Children and Young Peoples Services,Head of Education and Skills,Transport,230007,Contract Hire,04/03/2020,3710788-22139,"2,205.20",GARNETTS LTD (COACHES).
Children and Young Peoples Services,Head of Education and Skills,Transport,230003,Contract Hire,04/03/2020,3710788-22135-3020,"2,160.00",GARNETTS LTD (COACHES).
Children and Young Peoples Services,Head of Education and Skills,Transport,230003,Contract Hire,04/03/2020,3710788-22135-3024,"1,785.00",GARNETTS LTD (COACHES).
Children and Young Peoples Services,Head of Education and Skills,Transport,230003,Contract Hire,04/03/2020,3710788-22135-3027,"1,905.00",GARNETTS LTD (COACHES).
Children and Young Peoples Services,Head of Education and Skills,Transport,230003,Contract Hire,04/03/2020,3710788-22135-3028,"2,085.00",GARNETTS LTD (COACHES).
Children and Young Peoples Services,Head of Education and Skills,Transport,230007,Contract Hire,04/03/2020,3710788-22135-3029,"2,145.00",GARNETTS LTD (COACHES).
Children and Young Peoples Services,Head of Education and Skills,Transport,230007,Contract Hire,04/03/2020,3710788-22135-3199,"2,040.00",GARNETTS LTD (COACHES).
Children and Young Peoples Services,Head of Education and Skills,Transport,230035,Contract Hire,04/03/2020,3710602-27,690.00,AJT CARS (TAXIS).
Children and Young Peoples Services,Head of Education and Skills,Transport,230007,Contract Hire,04/03/2020,3710788-22133,"1,705.54",GARNETTS LTD (COACHES).
Children and Young Peoples Services,Head of Education and Skills,Transport,230008,Contract Hire,04/03/2020,3710903-KW1001,700.00,MARK O`NEILL T/A KWIK CABS.
Children and Young Peoples Services,Head of Education and Skills,Transport,230007,Contract Hire,04/03/2020,3710788-22138,"4,691.60",GARNETTS LTD (COACHES).
Children and Young Peoples Services,Head of Education and Skills,Transport,230007,Contract Hire,04/03/2020,3710802-72843,"6,139.92",GO GATESHEAD LTD.
Children and Young Peoples Services,Head of Education and Skills,Transport,230034,Contract Hire,04/03/2020,3710803-63,975.39,GP TAXIS.
Children and Young Peoples Services,Head of Education and Skills,Transport,230007,Contract Hire,04/03/2020,3710788-22140-4227,"2,685.00",GARNETTS LTD (COACHES).
Children and Young Peoples Services,Head of Education and Skills,Transport,230007,Contract Hire,04/03/2020,3710788-22140-4404,"10,740.00",GARNETTS LTD (COACHES).
Children and Young Peoples Services,Head of Education and Skills,Transport,230007,Contract Hire,04/03/2020,3710690-C/11159,"2,681.40",COCHRANES T/A KELVIN TRAVEL.
Children and Young Peoples Services,Head of Education and Skills,Transport,230007,Contract Hire,04/03/2020,3710788-22144,"3,735.00",GARNETTS LTD (COACHES).
Children and Young Peoples Services,Head of Education and Skills,Transport,230009,Contract Hire,04/03/2020,3710627-290220,"1,776.00",AVALON TAXIS.
Children and Young Peoples Services,Head of Education and Skills,Transport,230007,Contract Hire,04/03/2020,3710932-INV-6472,"1,850.00",NORTH EAST COACHWAYS LTD.
Children and Young Peoples Services,Head of Education and Skills,Transport,230003,Contract Hire,04/03/2020,3710932-INV-6467,"2,664.00",NORTH EAST COACHWAYS LTD.
Children and Young Peoples Services,Head of Education and Skills,Transport,230007,Contract Hire,04/03/2020,3710788-22143,"3,675.00",GARNETTS LTD (COACHES).
Children and Young Peoples Services,Head of Education and Skills,Transport,230007,Contract Hire,04/03/2020,3710932-INV-6467/FEB,"2,761.65",NORTH EAST COACHWAYS LTD.
Children and Young Peoples Services,Head of Education and Skills,Transport,230007,Contract Hire,04/03/2020,3710932-INV-6471,"1,650.00",NORTH EAST COACHWAYS LTD.
Children and Young Peoples Services,Head of Education and Skills,Transport,230034,Contract Hire,04/03/2020,3710967-649,"1,602.90",PETERLEE EXECUTIVE CARS.
Children and Young Peoples Services,Head of Education and Skills,Transport,230003,Contract Hire,04/03/2020,3710932-INV-6469,"1,628.00",NORTH EAST COACHWAYS LTD.
Children and Young Peoples Services,Head of Education and Skills,Transport,230008,Contract Hire,04/03/2020,3710714-1668,"1,036.00",DA TAXIS.
Children and Young Peoples Services,Head of Education and Skills,Transport,230008,Contract Hire,04/03/2020,3710926-61,"1,317.62",NEIL PASSMOOR T/A NEIL`S TAXI.
Children and Young Peoples Services,Head of Education and Skills,Transport,230008,Contract Hire,04/03/2020,3710963-DCC293,"1,273.05",PAUL`S TAXIS..
Children and Young Peoples Services,Head of Education and Skills,Transport,230034,Contract Hire,04/03/2020,3710966-6037/FEB,998.40,PETER NAYLOR.
Children and Young Peoples Services,Head of Education and Skills,Transport,230008,Contract Hire,04/03/2020,3710970-A042/2,"1,200.00",PETER`S TAXIS.
Children and Young Peoples Services,Head of Education and Skills,Transport,230007,Contract Hire,04/03/2020,3711020-SKS1920-034,600.00,SAMUEL KINGS SCHOOL.
Children and Young Peoples Services,Head of Education and Skills,Transport,230007,Contract Hire,04/03/2020,3710966-1237/2,822.88,PETER NAYLOR.
Children and Young Peoples Services,Head of Education and Skills,Transport,230034,Contract Hire,04/03/2020,3710790-GS006/2020,"1,036.00",GARY JACKSON PRIVATE HIRE.
Children and Young Peoples Services,Head of Education and Skills,Transport,230007,Contract Hire,04/03/2020,3710790-ST006,807.11,GARY JACKSON PRIVATE HIRE.
Children and Young Peoples Services,Head of Education and Skills,Transport,230008,Contract Hire,04/03/2020,3710916-EL102-20,"1,392.82",MR CT WALKER T/A CW TAXIS.
Children and Young Peoples Services,Head of Education and Skills,Transport,230008,Contract Hire,04/03/2020,3710776-N090-FEB,"1,628.00",FAIR FARE TRAVEL (TAXIS).
Children and Young Peoples Services,Head of Education and Skills,Transport,230008,Contract Hire,04/03/2020,3710792-M038-FEB,"1,600.47",GAVIN ELLIOTT T/A LOCATION TAXIS.
Children and Young Peoples Services,Head of Education and Skills,Transport,230008,Contract Hire,04/03/2020,3710917-E048-FEB,"1,387.00",MR DOMINICK JONES T/A DJ PRIVATE HIRE.
Children and Young Peoples Services,Head of Education and Skills,Transport,230008,Contract Hire,04/03/2020,3710619-FEB2020-02,"1,051.96",ARMSTRONG`S TAXIS.
Children and Young Peoples Services,Head of Education and Skills,Transport,230008,Contract Hire,04/03/2020,3710834-IR2002007,"1,694.40",I & R EXECUTIVE TRAVEL.
Children and Young Peoples Services,Head of Education and Skills,Transport,230008,Contract Hire,04/03/2020,3710896-4783,"1,425.00",LOCAL TRANSPORT LTD.
Children and Young Peoples Services,Head of Education and Skills,Transport,230008,Contract Hire,04/03/2020,3710896-4784,"1,725.00",LOCAL TRANSPORT LTD.
Children and Young Peoples Services,Head of Education and Skills,Transport,230008,Contract Hire,04/03/2020,3710896-4785,"1,177.50",LOCAL TRANSPORT LTD.
Children and Young Peoples Services,Head of Education and Skills,Transport,230008,Contract Hire,04/03/2020,3710914-6-M019,"1,290.00",MR BW YOUNG T/A ESH TAXIS.
Children and Young Peoples Services,Head of Education and Skills,Transport,230008,Contract Hire,04/03/2020,3710969-0926,"2,669.88",PETER`S PRIVATE HIRE/PETER BEST.
Children and Young Peoples Services,Head of Education and Skills,Transport,230008,Contract Hire,04/03/2020,3710969-0927,"1,429.97",PETER`S PRIVATE HIRE/PETER BEST.
Children and Young Peoples Services,Head of Education and Skills,Transport,230008,Contract Hire,04/03/2020,3710969-0930,550.85,PETER`S PRIVATE HIRE/PETER BEST.
Children and Young Peoples Services,Head of Education and Skills,Transport,230008,Contract Hire,04/03/2020,3710969-0934,"1,243.20",PETER`S PRIVATE HIRE/PETER BEST.
Children and Young Peoples Services,Head of Education and Skills,Transport,230007,Contract Hire,04/03/2020,3710970-N103/2,990.00,PETER`S TAXIS.
Children and Young Peoples Services,Head of Education and Skills,Transport,230008,Contract Hire,04/03/2020,3710865-E00506,"1,481.60",JOVIAL PRIVATE HIRE.
Children and Young Peoples Services,Head of Education and Skills,Transport,230008,Contract Hire,04/03/2020,3710865-M00929,"1,157.78",JOVIAL PRIVATE HIRE.
Children and Young Peoples Services,Head of Education and Skills,Transport,230008,Contract Hire,04/03/2020,3710865-M01728,681.37,JOVIAL PRIVATE HIRE.
Children and Young Peoples Services,Head of Education and Skills,Transport,230008,Contract Hire,04/03/2020,3710870-1057,"1,795.80",K & R TAXIS (STANLEY).
Children and Young Peoples Services,Head of Education and Skills,Transport,230008,Contract Hire,04/03/2020,3710870-1058,"1,941.80",K & R TAXIS (STANLEY).
Children and Young Peoples Services,Head of Education and Skills,Transport,230008,Contract Hire,04/03/2020,3710870-1060,"1,547.60",K & R TAXIS (STANLEY).
Children and Young Peoples Services,Head of Education and Skills,Transport,230008,Contract Hire,04/03/2020,3710870-1061,"1,835.20",K & R TAXIS (STANLEY).
Children and Young Peoples Services,Head of Education and Skills,Transport,230006,Contract Hire,04/03/2020,3710916-DT202-20,656.94,MR CT WALKER T/A CW TAXIS.
Children and Young Peoples Services,Head of Education and Skills,Transport,230016,Contract Hire,04/03/2020,3710916-DT402-20,889.42,MR CT WALKER T/A CW TAXIS.
Children and Young Peoples Services,Head of Education and Skills,Transport,230008,Contract Hire,04/03/2020,3710714-1666,"1,184.00",DA TAXIS.
Children and Young Peoples Services,Head of Education and Skills,Transport,230008,Contract Hire,04/03/2020,3710714-1667,"1,628.00",DA TAXIS.
Children and Young Peoples Services,Head of Education and Skills,Transport,230010,Contract Hire,04/03/2020,3710592-83,"2,900.00",A HJ JOBLING T/A CASTLE TAXIS.
Children and Young Peoples Services,Head of Education and Skills,Transport,230010,Contract Hire,04/03/2020,3710796-23,"1,200.00",GERARD MCLOUGHLIN T/A GMAC TAXIS.
Children and Young Peoples Services,Head of Education and Skills,Transport,230006,Contract Hire,04/03/2020,3710633-6/2,"1,521.00",BELMONT TAXIS.
Children and Young Peoples Services,Head of Education and Skills,Transport,230006,Contract Hire,04/03/2020,3710642-85/2020,947.00,BL TAXIS.
Children and Young Peoples Services,Head of Education and Skills,Transport,230016,Contract Hire,04/03/2020,3710715-393,"1,062.50",DA TRAVEL.
Children and Young Peoples Services,Head of Education and Skills,Transport,230006,Contract Hire,04/03/2020,3710715-394,800.00,DA TRAVEL.
Children and Young Peoples Services,Head of Education and Skills,Transport,230006,Contract Hire,04/03/2020,3710969-0931,607.50,PETER`S PRIVATE HIRE/PETER BEST.
Children and Young Peoples Services,Head of Education and Skills,Transport,230006,Contract Hire,04/03/2020,3710969-0932,"1,344.00",PETER`S PRIVATE HIRE/PETER BEST.
Children and Young Peoples Services,Head of Education and Skills,Transport,230006,Contract Hire,04/03/2020,3710970-F711/2,900.00,PETER`S TAXIS.
Children and Young Peoples Services,Head of Education and Skills,Transport,230006,Contract Hire,04/03/2020,3710970-F789/2,"1,665.00",PETER`S TAXIS.
Children and Young Peoples Services,Head of Education and Skills,Transport,230006,Contract Hire,04/03/2020,3710967-650,672.00,PETERLEE EXECUTIVE CARS.
Children and Young Peoples Services,Head of Education and Skills,Transport,230006,Contract Hire,04/03/2020,3711056-039,960.00,STEVEN HENDERSON T/A HENDYS TAXIS.
Children and Young Peoples Services,Head of Education and Skills,Supplies and Services,372009,Subscriptions E372,04/03/2020,3711146-INV-S008234,975.00,YOUNG CITIZENS T/A THE CITIZENSHIP FOUNDATION.
Dedicated Schools Grant BG0015,DSG High Needs Block,Transport,230011,Contract Hire,04/03/2020,3710619-FEB2020-03,529.20,ARMSTRONG`S TAXIS.
Dedicated Schools Grant BG0015,DSG High Needs Block,Supplies and Services,304259,Equipment and Materials,04/03/2020,3710611-255011,696.00,ANN ARBOR PUBLISHERS.
Children and Young Peoples Services,Head of Childrens Social Care,Third Party Payments,440046,Other third party payments E440,04/03/2020,3711133-INV-0093,"5,055.68",WE CARE RECRUITMENT SOLUTIONS LTD.
Children and Young Peoples Services,Head of Childrens Social Care,Transport,230005,Contract Hire,04/03/2020,3710708-110013,796.80,CROFT BUSINESS SERVICES (UK) LTD T/A CROFT TAXIS.
Children and Young Peoples Services,Head of Childrens Social Care,Transport,230005,Contract Hire,04/03/2020,3710708-110054,796.80,CROFT BUSINESS SERVICES (UK) LTD T/A CROFT TAXIS.
Children and Young Peoples Services,Head of Childrens Social Care,Transport,230005,Contract Hire,04/03/2020,3711057-SI-390,869.00,STEVEN PRATT T/A PTL TAXIS DURHAM.
Children and Young Peoples Services,Head of Childrens Social Care,Transport,230005,Contract Hire,04/03/2020,3711057-SI-393,760.00,STEVEN PRATT T/A PTL TAXIS DURHAM.
Children and Young Peoples Services,Head of Childrens Social Care,Transport,230005,Contract Hire,04/03/2020,3711057-SI-396,560.00,STEVEN PRATT T/A PTL TAXIS DURHAM.
Children and Young Peoples Services,Head of Childrens Social Care,Transport,230005,Contract Hire,04/03/2020,3711057-SI-399,515.00,STEVEN PRATT T/A PTL TAXIS DURHAM.
Children and Young Peoples Services,Head of Childrens Social Care,Supplies and Services,384534,Miscellaneous Expenses,04/03/2020,313606-CAS-02-2020-019.,570.00,NEW SEAHAM CHRIST CHURCH PCC.
Children and Young Peoples Services,Head of Childrens Social Care,Transport,230005,Contract Hire,04/03/2020,3710708-110010,508.56,CROFT BUSINESS SERVICES (UK) LTD T/A CROFT TAXIS.
Children and Young Peoples Services,Head of Childrens Social Care,Transport,230005,Contract Hire,04/03/2020,3710708-110011,536.52,CROFT BUSINESS SERVICES (UK) LTD T/A CROFT TAXIS.
Children and Young Peoples Services,Head of Childrens Social Care,Transport,230005,Contract Hire,04/03/2020,3710708-110057,536.52,CROFT BUSINESS SERVICES (UK) LTD T/A CROFT TAXIS.
Children and Young Peoples Services,Head of Childrens Social Care,Transport,230005,Contract Hire,04/03/2020,3710708-110079,536.52,CROFT BUSINESS SERVICES (UK) LTD T/A CROFT TAXIS.
Children and Young Peoples Services,Head of Childrens Social Care,Transport,230005,Contract Hire,04/03/2020,3710708-110009,"1,187.53",CROFT BUSINESS SERVICES (UK) LTD T/A CROFT TAXIS.
Children and Young Peoples Services,Head of Childrens Social Care,Transport,230005,Contract Hire,04/03/2020,3710708-110043,950.70,CROFT BUSINESS SERVICES (UK) LTD T/A CROFT TAXIS.
Children and Young Peoples Services,Head of Childrens Social Care,Transport,230005,Contract Hire,04/03/2020,3710708-110078,"1,584.50",CROFT BUSINESS SERVICES (UK) LTD T/A CROFT TAXIS.
Children and Young Peoples Services,Head of Childrens Social Care,Transport,230005,Contract Hire,04/03/2020,3711057-SI-389,653.40,STEVEN PRATT T/A PTL TAXIS DURHAM.
Children and Young Peoples Services,Head of Childrens Social Care,Transport,230005,Contract Hire,04/03/2020,3711057-SI-402,699.50,STEVEN PRATT T/A PTL TAXIS DURHAM.
Children and Young Peoples Services,Head of Childrens Social Care,Transport,230005,Contract Hire,04/03/2020,3710708-110083,"1,135.60",CROFT BUSINESS SERVICES (UK) LTD T/A CROFT TAXIS.
Children and Young Peoples Services,Head of Childrens Social Care,Transport,230005,Contract Hire,04/03/2020,3711057-SI-391,"1,034.00",STEVEN PRATT T/A PTL TAXIS DURHAM.
Non-Service Specific,Insurances,Expenditure 8INSEX,810012,Insurance Expenditure,04/03/2020,3710936-DI20334130,"1,087.25",NORTHERN POWERGRID (NORTHEAST) LTD.
Non-Service Specific,Non Service Specific-Financing,Long Term Debtors,924001,Car loans,04/03/2020,3710621-116743,620.00,ARRIVA NORTHUMBRIA LTD.
Regeneration and Local Services,Environmental Services,Transport,215005,Running Costs of Vehicles,05/03/2020,3711306-550836,"1,083.69",OIL NRG LTD.
Regeneration and Local Services,Culture Sport and Tourism,Supplies and Services,304337,Equipment and Materials,05/03/2020,3711362-SWINV031675,589.50,SWIM ENGLAND TRADING LTD.
Regeneration and Local Services,Technical Services CM0300,Third Party Payments,430128,Rendered by Private Contractors,05/03/2020,3711228-1066,585.00,GH STOBBS.
Regeneration and Local Services,Environmental Services,Supplies and Services,304221,Equipment and Materials,05/03/2020,3711164-97801268,906.86,BALL COLEGRAVE LTD.
Regeneration and Local Services,Environmental Services,Third Party Payments,430119,Rendered by Private Contractors,05/03/2020,3711234-114379,"3,246.66",HARPERS ENVIRONMENTAL LTD.
Regeneration and Local Services,Environmental Services,Third Party Payments,430119,Rendered by Private Contractors,05/03/2020,3711234-114889,"3,559.16",HARPERS ENVIRONMENTAL LTD.
Regeneration and Local Services,Environmental Services,Third Party Payments,430119,Rendered by Private Contractors,05/03/2020,3711235-114890,"11,390.67",HARPERS ENVIRONMENTAL LTD.
Regeneration and Local Services,Environmental Services,Third Party Payments,430119,Rendered by Private Contractors,05/03/2020,3711234-114380,"6,781.14",HARPERS ENVIRONMENTAL LTD.
Regeneration and Local Services,Culture Sport and Tourism,Supplies and Services,338047,Services,05/03/2020,3711188-INSTALLATION002,750.00,COLOUR BURST.
Regeneration and Local Services,Culture Sport and Tourism,Supplies and Services,384199,Miscellaneous Expenses,05/03/2020,3711394-24609,"1,000.00",VIPER FILM & TELEVISION LTD T/A JOHN NOEL MANAGEMENT.
Regeneration and Local Services,Technical Services CM0300,Stock A926,926900,Stock in hand-Inventory system,05/03/2020,3711217-78SI/70089,"1,064.00",ENCON INSULATION LTD.
Regeneration and Local Services,Technical Services CM0300,Stock A926,926900,Stock in hand-Inventory system,05/03/2020,3711231-06/046439,"1,110.60",GREENHAM TRADING LTD.
Regeneration and Local Services,Technical Services CM0300,Stock A926,926900,Stock in hand-Inventory system,05/03/2020,3711262-0113/00030910,545.38,JT DOVE LTD.
Regeneration and Local Services,Technical Services CM0300,Third Party Payments,430100,Rendered by Private Contractors,05/03/2020,3711301-DI20335557,"1,193.50",NORTHERN POWERGRID (NORTHEAST) LTD.
Regeneration and Local Services,Technical Services CM0300,Third Party Payments,430100,Rendered by Private Contractors,05/03/2020,3711329-163876,649.50,PREMIER TRAFFIC MANAGEMENT LTD.
Regeneration and Local Services,Technical Services CM0300,Supplies and Services,304221,Equipment and Materials,05/03/2020,3711331-236587,"2,646.94",PUDSEY DIAMOND ENGINEERING LTD.
Regeneration and Local Services,Technical Services CM0300,Third Party Payments,430100,Rendered by Private Contractors,05/03/2020,3711333-12446,970.46,QUANTUM POWER CONNECTIONS LTD.
Regeneration and Local Services,Technical Services CM0300,Supplies and Services,304221,Equipment and Materials,05/03/2020,3711152-29445220,"3,946.00",AGGREGATE INDUSTRIES UK LTD.
Regeneration and Local Services,Technical Services CM0300,Supplies and Services,304221,Equipment and Materials,05/03/2020,3711152-29445222,698.88,AGGREGATE INDUSTRIES UK LTD.
Regeneration and Local Services,Technical Services CM0300,Supplies and Services,304221,Equipment and Materials,05/03/2020,3711152-29452802,"3,903.00",AGGREGATE INDUSTRIES UK LTD.
Regeneration and Local Services,Technical Services CM0300,Supplies and Services,304221,Equipment and Materials,05/03/2020,3711152-29470986,928.42,AGGREGATE INDUSTRIES UK LTD.
Regeneration and Local Services,Technical Services CM0300,Supplies and Services,304221,Equipment and Materials,05/03/2020,3711152-29483695,"1,222.44",AGGREGATE INDUSTRIES UK LTD.
Regeneration and Local Services,Technical Services CM0300,Supplies and Services,304221,Equipment and Materials,05/03/2020,3711152-29491978,"1,094.34",AGGREGATE INDUSTRIES UK LTD.
Regeneration and Local Services,Technical Services CM0300,Supplies and Services,304221,Equipment and Materials,05/03/2020,3711152-29491980,516.20,AGGREGATE INDUSTRIES UK LTD.
Regeneration and Local Services,Technical Services CM0300,Supplies and Services,304221,Equipment and Materials,05/03/2020,3711152-29497379,803.78,AGGREGATE INDUSTRIES UK LTD.
Regeneration and Local Services,Technical Services CM0300,Supplies and Services,304221,Equipment and Materials,05/03/2020,3711152-29497381,"1,205.36",AGGREGATE INDUSTRIES UK LTD.
Regeneration and Local Services,Technical Services CM0300,Supplies and Services,304221,Equipment and Materials,05/03/2020,3711152-29497383,645.38,AGGREGATE INDUSTRIES UK LTD.
Regeneration and Local Services,Technical Services CM0300,Supplies and Services,304221,Equipment and Materials,05/03/2020,3711152-29498192,768.71,AGGREGATE INDUSTRIES UK LTD.
Regeneration and Local Services,Technical Services CM0300,Supplies and Services,304221,Equipment and Materials,05/03/2020,3711152-29498194,713.49,AGGREGATE INDUSTRIES UK LTD.
Regeneration and Local Services,Technical Services CM0300,Third Party Payments,430100,Rendered by Private Contractors,05/03/2020,3711168-207R00376A,646.10,BIFFA WASTE SERVICES LTD.
Regeneration and Local Services,Technical Services CM0300,Third Party Payments,430100,Rendered by Private Contractors,05/03/2020,3711168-207R00395A,"1,017.10",BIFFA WASTE SERVICES LTD.
Regeneration and Local Services,Technical Services CM0300,Supplies and Services,304221,Equipment and Materials,05/03/2020,3711262-0104/00030907,"1,591.89",JT DOVE LTD.
Regeneration and Local Services,Technical Services CM0300,Supplies and Services,304221,Equipment and Materials,05/03/2020,3711262-0104/00030912,"1,737.62",JT DOVE LTD.
Regeneration and Local Services,Technical Services CM0300,Supplies and Services,304221,Equipment and Materials,05/03/2020,3711262-0113/00027719,852.00,JT DOVE LTD.
Regeneration and Local Services,Technical Services CM0300,Supplies and Services,304221,Equipment and Materials,05/03/2020,3711262-0113/00030908,"1,278.00",JT DOVE LTD.
Regeneration and Local Services,Technical Services CM0300,Supplies and Services,304221,Equipment and Materials,05/03/2020,3711262-0120/00030911,721.92,JT DOVE LTD.
Regeneration and Local Services,Technical Services CM0300,Third Party Payments,430100,Rendered by Private Contractors,05/03/2020,3711329-163877,"6,194.90",PREMIER TRAFFIC MANAGEMENT LTD.
Regeneration and Local Services,Technical Services CM0300,Third Party Payments,430100,Rendered by Private Contractors,05/03/2020,3711346-20859,"55,794.52",SEYMOUR (CIVIL ENGINEERING CONTRACTORS) LTD.
Regeneration and Local Services,Corporate Property and Land,Third Party Payments,430100,Rendered by Private Contractors,05/03/2020,3711179-6746,"3,885.19",CATHEDRAL LOCK & SAFE SERVICES LTD.
Regeneration and Local Services,Corporate Property and Land,Third Party Payments,430100,Rendered by Private Contractors,05/03/2020,3711276-101134,910.00,LUCION ENVIRONMENTAL LLP LTD.
Regeneration and Local Services,Corporate Property and Land,Supplies and Services,304221,Equipment and Materials,05/03/2020,3711184-DRM/197047A,"1,293.00",CITY ELECTRICAL FACTORS LTD.
Regeneration and Local Services,Corporate Property and Land,Supplies and Services,304221,Equipment and Materials,05/03/2020,3711364-339211,675.75,T CROSSLING & CO LTD.
Regeneration and Local Services,Corporate Property and Land,Third Party Payments,430100,Rendered by Private Contractors,05/03/2020,3711223-16610,"3,000.00",FT LEISURE LTD.
Regeneration and Local Services,Corporate Property and Land,Third Party Payments,430100,Rendered by Private Contractors,05/03/2020,3711223-16611,"3,000.00",FT LEISURE LTD.
Regeneration and Local Services,Corporate Property and Land,Third Party Payments,430100,Rendered by Private Contractors,05/03/2020,3711223-16612,"25,000.00",FT LEISURE LTD.
Regeneration and Local Services,Technical Services CM0300,Supplies and Services,328041,Clothing uniforms and laundry E328,05/03/2020,3711268-85945,745.00,KING SCIENTIFIC.
Regeneration and Local Services,Business Durham CL0850,Premises,120021,Energy Costs,05/03/2020,3711192-15017159,"1,123.60",CORONA ENERGY RETAIL 2 LTD.
Regeneration and Local Services,Business Durham CL0850,Premises,120009,Energy Costs,05/03/2020,3711215-000007305097,"2,655.95",EDF ENERGY CUSTOMERS PLC T/A EDF ENERGY.
Regeneration and Local Services,Business Durham CL0850,Premises,120021,Energy Costs,05/03/2020,3711192-15017303,732.73,CORONA ENERGY RETAIL 2 LTD.
Regeneration and Local Services,Business Durham CL0850,Premises,120021,Energy Costs,05/03/2020,3711192-15017304,884.15,CORONA ENERGY RETAIL 2 LTD.
Regeneration and Local Services,Business Durham CL0850,Premises,120021,Energy Costs,05/03/2020,3711193-15017761,586.43,CORONA ENERGY RETAIL 2 LTD.
Regeneration and Local Services,Business Durham CL0850,Premises,120021,Energy Costs,05/03/2020,3711193-15017341,872.19,CORONA ENERGY RETAIL 2 LTD.
Regeneration and Local Services,Business Durham CL0850,Premises,120021,Energy Costs,05/03/2020,3711193-15017366,"1,577.05",CORONA ENERGY RETAIL 2 LTD.
Regeneration and Local Services,Culture Sport and Tourism,Supplies and Services,384199,Miscellaneous Expenses,05/03/2020,3711174-INV56073,550.50,BRISSCO (EQUIPMENT) LTD T/A BRISSCO SIGNS & GRAPHICS.
Regeneration and Local Services,Culture Sport and Tourism,Supplies and Services,384199,Miscellaneous Expenses,05/03/2020,3711250-PPSI11302,616.66,INTERNATIONAL CENTRE FOR LIFE TRUST.
Regeneration and Local Services,Business Durham CL0850,Supplies and Services,384199,Miscellaneous Expenses,05/03/2020,3711151-ACE/SALVUS2020-003,833.40,ACE MOTORCYCLE TRAINING (NE) LTD.
Regeneration and Local Services,Business Durham CL0850,Third Party Payments,460305,Contract Payments,05/03/2020,3711388-INV-13721,"39,087.50",UMI COMMERCIAL LTD.
Regeneration and Local Services,Business Durham CL0850,Third Party Payments,460305,Contract Payments,05/03/2020,3711388-RED-02-2020-031,"5,879.59",UMI COMMERCIAL LTD.
Regeneration and Local Services,Transport and Contracted Services,Third Party Payments,430106,Rendered by Private Contractors,05/03/2020,3711239-17395,"3,847.89",HODGSONS COACH OPERATORS LTD.
Regeneration and Local Services,Transport and Contracted Services,Third Party Payments,430106,Rendered by Private Contractors,05/03/2020,3711345-3033,"122,731.80",SCARLET BAND BUS & COACH LTD.
Adult and Health Services,Head of Adults,Transport,230005,Contract Hire,05/03/2020,3711397-7318/2,544.00,WEARDALE PRIVATE HIRE.
Adult and Health Services,Head of Adults,Transport,230005,Contract Hire,05/03/2020,3711161-DCC5FEB20,"1,254.04",ATLAS TAXIS BISHOP AUCKLAND.
Adult and Health Services,Head of Adults,Transport,230005,Contract Hire,05/03/2020,3711263-1063,"2,042.40",K & R TAXIS (STANLEY).
Adult and Health Services,Head of Adults,Transport,230005,Contract Hire,05/03/2020,3711259-01022020,"1,130.40",JOHN HUBBLE T/A HUBB`S TAXIS.
Adult and Health Services,Head of Adults,Transport,230005,Contract Hire,05/03/2020,3711314-DM170,680.00,PAUL WILSON.
Adult and Health Services,Head of Adults,Transport,230005,Contract Hire,05/03/2020,3711340-SED112/18,"1,854.40",S & S TRAVEL LTD.
Adult and Health Services,Head of Adults,Transport,230005,Contract Hire,05/03/2020,3711351-2029,"1,607.20",SIMONS TAXIS.
Adult and Health Services,Head of Adults,Third Party Payments,470101,Purchase of Care,05/03/2020,3711404-9013988,"101,945.33",WITHERSLACK GROUP LTD.
Adult and Health Services,Head of Adults,Third Party Payments,478151,Purchase of Care,05/03/2020,3711208-INV-0441,"1,612.80",DEACONSTAR LTD.
Adult and Health Services,Head of Adults,Third Party Payments,478151,Purchase of Care,05/03/2020,3711208-INV-0442,"1,761.76",DEACONSTAR LTD.
Children and Young Peoples Services,Childrens Services Operational Support,Supplies and Services,338089,Services,05/03/2020,3711380-1095,"13,112.75",TRACEY HILL TRAINING & CONSULTANCY LTD.
Children and Young Peoples Services,Childrens Services Operational Support,Supplies and Services,338089,Services,05/03/2020,3711330-2600,"1,100.00",PRICE TRAINING LTD.
Regeneration and Local Services,Culture Sport and Tourism,Fees,901004,Capital - Detailed Design,05/03/2020,3711153-168277,770.00,ALBANY OFFICE EQUIPMENT (WHOLESALE) LTD.
Regeneration and Local Services,Culture Sport and Tourism,Supplies and Services,312013,Newspapers books and periodicals E312,05/03/2020,3711308-XI13488380,"13,338.00",OXFORD JOURNALS.
Adult and Health Services,Head of Adults,Third Party Payments,479112,Purchase of Care,05/03/2020,3711158-3391990567,"2,370.00",ARJO UK LTD.
Adult and Health Services,Public Health CC0450,Third Party Payments,460803,Contract Payments,05/03/2020,3711355-2821B,"123,500.00",SOLUTIONS 4 HEALTH LTD.
Transformation and Partnerships,Communications Management,Supplies and Services,312010,Newspapers books and periodicals E312,05/03/2020,3711316-02463,525.00,PEAR COMMUNICATIONS.
Resources BK0010,Digital and Customer Services,Supplies and Services,344131,Telephones,05/03/2020,3711363-132545,"4,660.00",SWITCHSHOP LTD.
Resources BK0010,Digital and Customer Services,Vehicles Equipment Furniture and Fittings,912701,Computer equipment,05/03/2020,3711395-NU39519,730.00,VODAFONE LTD.
Resources BK0010,Digital and Customer Services,Supplies and Services,304639,Equipment and Materials,05/03/2020,3711224-6355,"9,724.00",FULL CONTROL NETWORKS.
Resources BK0010,Digital and Customer Services,Supplies and Services,342033,Computers and Communications,05/03/2020,3711406-KV83254,"3,698.86",XMA LTD.
Resources BK0010,Digital and Customer Services,Supplies and Services,342225,Computers and Communications,05/03/2020,3711363-132536,624.00,SWITCHSHOP LTD.
Resources BK0010,Digital and Customer Services,Supplies and Services,342033,Computers and Communications,05/03/2020,3711363-132538,950.75,SWITCHSHOP LTD.
Resources BK0010,Digital and Customer Services,Supplies and Services,342033,Computers and Communications,05/03/2020,3711363-132539,950.75,SWITCHSHOP LTD.
Resources BK0010,Legal & Democratic Services,Supplies and Services,384199,Miscellaneous Expenses,05/03/2020,3711370-80062438,527.34,THE BIG WORD.
Resources BK0010,Legal & Democratic Services,Supplies and Services,338042,Services,05/03/2020,3711384-HENDERSON,500.00,TRINITY CHAMBERS.
Resources BK0010,Digital and Customer Services,Stock A926,926900,Stock in hand-Inventory system,05/03/2020,3711249-4721919,"2,460.00",INSIGHT DIRECT (UK) LTD.
Dedicated Schools Grant BG0015,DSG High Needs Block,Supplies and Services,384199,Miscellaneous Expenses,05/03/2020,3711347-30,"2,700.00",SHARON HOWARD T/A SH COUNSELLING SERVICES.
Children and Young Peoples Services,Head of Education and Skills,Transfer Payments,510027,School Children,05/03/2020,3711360-21124,"3,476.88",SUNSHINE DAY NURSERY LTD.
Children and Young Peoples Services,Head of Education and Skills,Transport,230007,Contract Hire,05/03/2020,3711162-04088,503.20,ATLAS TAXIS CONSETT.
Children and Young Peoples Services,Head of Education and Skills,Transport,230034,Contract Hire,05/03/2020,3711265-CTD021/20,740.00,KEVIN WALKER T/A CENTRAL TAXIS.
Children and Young Peoples Services,Head of Education and Skills,Transport,230035,Contract Hire,05/03/2020,3711397-7324,662.40,WEARDALE PRIVATE HIRE.
Children and Young Peoples Services,Head of Education and Skills,Transport,230007,Contract Hire,05/03/2020,3711187-C/11162,"2,700.00",COCHRANES T/A KELVIN TRAVEL.
Children and Young Peoples Services,Head of Education and Skills,Transport,230012,Contract Hire,05/03/2020,3711326-1340,"1,050.80",PODA TAXIS LTD.
Children and Young Peoples Services,Head of Education and Skills,Transport,230008,Contract Hire,05/03/2020,3711320-651,"1,036.00",PETERLEE EXECUTIVE CARS.
Children and Young Peoples Services,Head of Education and Skills,Construction work A908,908105,Construction work,05/03/2020,3711342-5237,740.00,SAFE STRIP UK LTD.
Children and Young Peoples Services,Head of Education and Skills,Transport,230007,Contract Hire,05/03/2020,3711288-093,960.00,MR LJ TARRY T/A TARRY`S TAXI`S.
Children and Young Peoples Services,Head of Education and Skills,Transport,230034,Contract Hire,05/03/2020,3711320-652,750.00,PETERLEE EXECUTIVE CARS.
Children and Young Peoples Services,Head of Education and Skills,Transport,230007,Contract Hire,05/03/2020,3711319-22,841.50,PETER NAYLOR.
Children and Young Peoples Services,Head of Education and Skills,Transport,230009,Contract Hire,05/03/2020,3711314-7311/FEB,"1,650.00",PAUL WILSON.
Children and Young Peoples Services,Head of Education and Skills,Transport,230007,Contract Hire,05/03/2020,3711397-7323,626.47,WEARDALE PRIVATE HIRE.
Children and Young Peoples Services,Head of Education and Skills,Transport,230035,Contract Hire,05/03/2020,3711367-DCC/2020/013,730.80,TAYLOR`S TAXIS.
Children and Young Peoples Services,Head of Education and Skills,Construction work A908,908105,Construction work,05/03/2020,3711328-900873735,"13,094.99",PORTAKABIN LTD.
Children and Young Peoples Services,Head of Education and Skills,Transport,230009,Contract Hire,05/03/2020,3711172-006/FEB,600.00,BOWBURN TAXIS.
Children and Young Peoples Services,Head of Education and Skills,Transport,230009,Contract Hire,05/03/2020,3711162-04091,546.00,ATLAS TAXIS CONSETT.
Children and Young Peoples Services,Head of Education and Skills,Transport,230034,Contract Hire,05/03/2020,3711367-DCC/2020/012,"1,226.10",TAYLOR`S TAXIS.
Children and Young Peoples Services,Head of Education and Skills,Transport,230007,Contract Hire,05/03/2020,3711322-0924,"1,271.77",PETER`S PRIVATE HIRE/PETER BEST.
Children and Young Peoples Services,Head of Education and Skills,Transport,230007,Contract Hire,05/03/2020,3711335-1412,"2,277.39",ROBERTS TOURS.
Children and Young Peoples Services,Head of Education and Skills,Transport,230007,Contract Hire,05/03/2020,3711335-1413,"1,801.60",ROBERTS TOURS.
Children and Young Peoples Services,Head of Education and Skills,Transport,230007,Contract Hire,05/03/2020,3711335-1414,"2,159.02",ROBERTS TOURS.
Children and Young Peoples Services,Head of Education and Skills,Transport,230007,Contract Hire,05/03/2020,3711254-5566,526.73,J YOUNG T/A VIP TAXIS.
Children and Young Peoples Services,Head of Education and Skills,Transport,230034,Contract Hire,05/03/2020,3711150-22003,"1,184.00",24/7 TAXI SERVICES LTD.
Children and Young Peoples Services,Head of Education and Skills,Transport,230003,Contract Hire,05/03/2020,3711187-C/11160,"2,072.00",COCHRANES T/A KELVIN TRAVEL.
Children and Young Peoples Services,Head of Education and Skills,Transport,230003,Contract Hire,05/03/2020,3711187-C/11161,"2,197.80",COCHRANES T/A KELVIN TRAVEL.
Children and Young Peoples Services,Head of Education and Skills,Transport,230008,Contract Hire,05/03/2020,3711183-556,"1,932.04",CHIPPERS TAXIS.
Children and Young Peoples Services,Head of Education and Skills,Transport,230008,Contract Hire,05/03/2020,3711254-5564,"1,320.00",J YOUNG T/A VIP TAXIS.
Children and Young Peoples Services,Head of Education and Skills,Transport,230008,Contract Hire,05/03/2020,3711254-5568,900.00,J YOUNG T/A VIP TAXIS.
Children and Young Peoples Services,Head of Education and Skills,Transport,230008,Contract Hire,05/03/2020,3711273-FEBA060,"1,500.00",LION CABS.
Children and Young Peoples Services,Head of Education and Skills,Transport,230008,Contract Hire,05/03/2020,3711277-38,"1,743.60",M&C`S CABS LTD.
Children and Young Peoples Services,Head of Education and Skills,Transport,230007,Contract Hire,05/03/2020,3711291-02/2020/RS,"1,051.20",MR RICHARD STANDLEY T/A RS TAXI SERVICES.
Children and Young Peoples Services,Head of Education and Skills,Transport,230007,Contract Hire,05/03/2020,3711344-SKS1920-102FEB,600.00,SAMUEL KINGS SCHOOL.
Children and Young Peoples Services,Head of Education and Skills,Transport,230007,Contract Hire,05/03/2020,3711344-SKS1920-120JAN,760.00,SAMUEL KINGS SCHOOL.
Children and Young Peoples Services,Head of Education and Skills,Transport,230006,Contract Hire,05/03/2020,3711349-75433,780.00,SHOTTON PRIVATE HIRE.
Children and Young Peoples Services,Head of Education and Skills,Transport,230007,Contract Hire,05/03/2020,3711162-04090,580.90,ATLAS TAXIS CONSETT.
Children and Young Peoples Services,Head of Education and Skills,Transport,230034,Contract Hire,05/03/2020,3711289-1254/327-FEB,"1,142.57",MR MARK WILE T/A HARRY`S TAXIS.
Children and Young Peoples Services,Head of Education and Skills,Transport,230003,Contract Hire,05/03/2020,3711356-55332,"2,486.40",STANLEY TRAVEL (NORTH EAST) LTD.
Children and Young Peoples Services,Head of Education and Skills,Transport,230003,Contract Hire,05/03/2020,3711356-55333,"2,220.00",STANLEY TRAVEL (NORTH EAST) LTD.
Children and Young Peoples Services,Head of Education and Skills,Transport,230003,Contract Hire,05/03/2020,3711356-55334,"1,302.40",STANLEY TRAVEL (NORTH EAST) LTD.
Children and Young Peoples Services,Head of Education and Skills,Transport,230003,Contract Hire,05/03/2020,3711356-55335,"2,738.00",STANLEY TRAVEL (NORTH EAST) LTD.
Children and Young Peoples Services,Head of Education and Skills,Transport,230003,Contract Hire,05/03/2020,3711356-55336,"2,738.00",STANLEY TRAVEL (NORTH EAST) LTD.
Children and Young Peoples Services,Head of Education and Skills,Supplies and Services,384199,Miscellaneous Expenses,05/03/2020,3711221-06,"6,555.00",FIRST POINT TRAINING LTD T/A DURHAMWORKS.
Children and Young Peoples Services,Head of Education and Skills,Transport,230008,Contract Hire,05/03/2020,3711195-110120,"1,868.99",CROFT BUSINESS SERVICES (UK) LTD T/A CROFT TAXIS.
Children and Young Peoples Services,Head of Education and Skills,Transport,230008,Contract Hire,05/03/2020,3711367-DCC/2020/007,"1,307.83",TAYLOR`S TAXIS.
Children and Young Peoples Services,Head of Education and Skills,Transport,230008,Contract Hire,05/03/2020,3711367-DCC/2020/009,"1,628.40",TAYLOR`S TAXIS.
Children and Young Peoples Services,Head of Education and Skills,Transport,230008,Contract Hire,05/03/2020,3711397-7329,"2,534.36",WEARDALE PRIVATE HIRE.
Children and Young Peoples Services,Head of Education and Skills,Transport,230008,Contract Hire,05/03/2020,3711287-EL202-20,"1,713.32",MR CT WALKER T/A CW TAXIS.
Children and Young Peoples Services,Head of Education and Skills,Transport,230008,Contract Hire,05/03/2020,3711290-26A-FEB,"1,032.06",MR RAYMOND RENWICK T/A RAY`S TAXIS & MINIBUSES.
Children and Young Peoples Services,Head of Education and Skills,Transport,230008,Contract Hire,05/03/2020,3711356-55338,"2,057.20",STANLEY TRAVEL (NORTH EAST) LTD.
Children and Young Peoples Services,Head of Education and Skills,Transport,230008,Contract Hire,05/03/2020,3711161-DCC04FEB20,"2,444.00",ATLAS TAXIS BISHOP AUCKLAND.
Children and Young Peoples Services,Head of Education and Skills,Transport,230008,Contract Hire,05/03/2020,3711315-DCC294,"2,167.61",PAUL`S TAXIS..
Children and Young Peoples Services,Head of Education and Skills,Transport,230008,Contract Hire,05/03/2020,3711338-6-FEB,"1,480.00",ROUTE 1.
Children and Young Peoples Services,Head of Education and Skills,Transport,230008,Contract Hire,05/03/2020,3711367-DCC/2020/011,"2,157.99",TAYLOR`S TAXIS.
Children and Young Peoples Services,Head of Education and Skills,Transport,230008,Contract Hire,05/03/2020,3711315-DCC292,992.19,PAUL`S TAXIS..
Children and Young Peoples Services,Head of Education and Skills,Transport,230008,Contract Hire,05/03/2020,3711183-6/FEB,802.20,CHIPPERS TAXIS.
Children and Young Peoples Services,Head of Education and Skills,Transport,230008,Contract Hire,05/03/2020,3711349-75429,"1,776.00",SHOTTON PRIVATE HIRE.
Children and Young Peoples Services,Head of Education and Skills,Transport,230008,Contract Hire,05/03/2020,3711367-DCC/2020/008,"1,450.40",TAYLOR`S TAXIS.
Children and Young Peoples Services,Head of Education and Skills,Transport,230016,Contract Hire,05/03/2020,3711247-IR2002005,"1,471.38",I & R EXECUTIVE TRAVEL.
Children and Young Peoples Services,Head of Education and Skills,Transport,230008,Contract Hire,05/03/2020,3711260-M01528,913.81,JOVIAL PRIVATE HIRE.
Children and Young Peoples Services,Head of Education and Skills,Transport,230008,Contract Hire,05/03/2020,3711263-1059,"2,321.40",K & R TAXIS (STANLEY).
Children and Young Peoples Services,Head of Education and Skills,Transport,230008,Contract Hire,05/03/2020,3711290-25B-FEB,"1,256.07",MR RAYMOND RENWICK T/A RAY`S TAXIS & MINIBUSES.
Children and Young Peoples Services,Head of Education and Skills,Transport,230008,Contract Hire,05/03/2020,3711326-1341,942.02,PODA TAXIS LTD.
Children and Young Peoples Services,Head of Education and Skills,Transport,230008,Contract Hire,05/03/2020,3711326-1342,"2,107.66",PODA TAXIS LTD.
Children and Young Peoples Services,Head of Education and Skills,Transport,230008,Contract Hire,05/03/2020,3711349-75422,"1,702.00",SHOTTON PRIVATE HIRE.
Children and Young Peoples Services,Head of Education and Skills,Transport,230008,Contract Hire,05/03/2020,3711285-0006-W036,"1,166.00",MR A MILLWARD T/A SWISS CABS PRIVATE HIRE.
Children and Young Peoples Services,Head of Education and Skills,Transport,230008,Contract Hire,05/03/2020,3711340-S009/06,"2,104.56",S & S TRAVEL LTD.
Children and Young Peoples Services,Head of Education and Skills,Transport,230008,Contract Hire,05/03/2020,3711340-W032/06,"2,072.00",S & S TRAVEL LTD.
Children and Young Peoples Services,Head of Education and Skills,Transport,230008,Contract Hire,05/03/2020,3711340-W042/06,"1,628.00",S & S TRAVEL LTD.
Children and Young Peoples Services,Head of Education and Skills,Transport,230008,Contract Hire,05/03/2020,3711397-7328,"1,835.20",WEARDALE PRIVATE HIRE.
Children and Young Peoples Services,Head of Education and Skills,Transport,230008,Contract Hire,05/03/2020,3711161-DCC11FEB20,"1,184.00",ATLAS TAXIS BISHOP AUCKLAND.
Children and Young Peoples Services,Head of Education and Skills,Transport,230008,Contract Hire,05/03/2020,3711161-DCC12FEB20,"1,554.00",ATLAS TAXIS BISHOP AUCKLAND.
Children and Young Peoples Services,Head of Education and Skills,Transport,230008,Contract Hire,05/03/2020,3711161-DCC13FEB20,"1,776.00",ATLAS TAXIS BISHOP AUCKLAND.
Children and Young Peoples Services,Head of Education and Skills,Transport,230008,Contract Hire,05/03/2020,3711340-S017/40,"1,675.95",S & S TRAVEL LTD.
Children and Young Peoples Services,Head of Education and Skills,Transport,230008,Contract Hire,05/03/2020,3711340-S027/06,"1,929.92",S & S TRAVEL LTD.
Children and Young Peoples Services,Head of Education and Skills,Transport,230008,Contract Hire,05/03/2020,3711340-W067/06FEB,"1,628.00",S & S TRAVEL LTD.
Children and Young Peoples Services,Head of Education and Skills,Transport,230008,Contract Hire,05/03/2020,3711340-W076/06,"1,855.92",S & S TRAVEL LTD.
Dedicated Schools Grant BG0015,DSG High Needs Block,Third Party Payments,425005,Rendered by Voluntary Organisations,05/03/2020,3711317-42539,"145,676.62",PERCY HEDLEY FOUNDATION.
Dedicated Schools Grant BG0015,DSG High Needs Block,Third Party Payments,425005,Rendered by Voluntary Organisations,05/03/2020,3711317-43225,"21,761.45",PERCY HEDLEY FOUNDATION.
Dedicated Schools Grant BG0015,DSG High Needs Block,Third Party Payments,440080,Other third party payments E440,05/03/2020,3711317-43226,"20,090.27",PERCY HEDLEY FOUNDATION.
Dedicated Schools Grant BG0015,DSG High Needs Block,Third Party Payments,425005,Rendered by Voluntary Organisations,05/03/2020,3711317-43229,"44,946.99",PERCY HEDLEY FOUNDATION.
Dedicated Schools Grant BG0015,DSG High Needs Block,Third Party Payments,425005,Rendered by Voluntary Organisations,05/03/2020,3711402-582,"21,911.00",WITHERSLACK GROUP LTD T/A ASHBROOKE SCHOOL.
Dedicated Schools Grant BG0015,DSG High Needs Block,Third Party Payments,425005,Rendered by Voluntary Organisations,05/03/2020,3711404-5059,"34,583.00",WITHERSLACK GROUP LTD.
Children and Young Peoples Services,Head of Education and Skills,Transport,230008,Contract Hire,05/03/2020,3711279-60,"1,273.05",MALCOLM CARR T/A CARLY CABS.
Children and Young Peoples Services,Head of Education and Skills,Transport,230010,Contract Hire,05/03/2020,3711382-WL20006,966.00,TRAVEL 6.
Children and Young Peoples Services,Head of Education and Skills,Transport,230010,Contract Hire,05/03/2020,3711382-WL40005,940.00,TRAVEL 6.
Children and Young Peoples Services,Head of Education and Skills,Supplies and Services,338027,Services,05/03/2020,3711203-4,"1,312.50",DAVID FIRTH T/A BARDON MILL EDUCATIONAL CONSULTANTS.
Children and Young Peoples Services,Head of Education and Skills,Supplies and Services,338027,Services,05/03/2020,3711203-4B,"1,312.50",DAVID FIRTH T/A BARDON MILL EDUCATIONAL CONSULTANTS.
Children and Young Peoples Services,Head of Education and Skills,Transport,230006,Contract Hire,05/03/2020,3711162-04098,577.60,ATLAS TAXIS CONSETT.
Children and Young Peoples Services,Head of Education and Skills,Transport,230007,Contract Hire,05/03/2020,3711254-5562,983.40,J YOUNG T/A VIP TAXIS.
Children and Young Peoples Services,Head of Education and Skills,Transport,230006,Contract Hire,05/03/2020,3711286-954,"1,023.16",MR AD HOWARD T/A TOFT HILL TAXIS.
Children and Young Peoples Services,Head of Education and Skills,Transport,230006,Contract Hire,05/03/2020,3711319-25/2,531.00,PETER NAYLOR.
Children and Young Peoples Services,Head of Education and Skills,Transport,230006,Contract Hire,05/03/2020,3711351-2030,783.96,SIMONS TAXIS.
Children and Young Peoples Services,Head of Education and Skills,Transport,230006,Contract Hire,05/03/2020,3711397-7327,666.00,WEARDALE PRIVATE HIRE.
Dedicated Schools Grant BG0015,DSG High Needs Block,Transport,230009,Contract Hire,05/03/2020,3711162-04093,"1,146.00",ATLAS TAXIS CONSETT.
Children and Young Peoples Services,Head of Childrens Social Care,Third Party Payments,425023,Rendered by Voluntary Organisations,05/03/2020,3711244-5347,"3,520.00",HOWARD HOUSE CARE LTD.
Children and Young Peoples Services,Head of Childrens Social Care,Third Party Payments,425023,Rendered by Voluntary Organisations,05/03/2020,3711403-1092,"86,775.00",WITHERSLACK GROUP LTD T/A HALL CLIFFE SCHOOL.
Children and Young Peoples Services,Head of Childrens Social Care,Third Party Payments,440046,Other third party payments E440,05/03/2020,3711396-INV-0088,"6,596.20",WE CARE RECRUITMENT SOLUTIONS LTD.
Children and Young Peoples Services,Head of Childrens Social Care,Third Party Payments,440046,Other third party payments E440,05/03/2020,3711396-INV-0095,976.00,WE CARE RECRUITMENT SOLUTIONS LTD.
Children and Young Peoples Services,Head of Childrens Social Care,Transport,230005,Contract Hire,05/03/2020,3711195-110076,796.50,CROFT BUSINESS SERVICES (UK) LTD T/A CROFT TAXIS.
Children and Young Peoples Services,Head of Childrens Social Care,Third Party Payments,425028,Rendered by Voluntary Organisations,05/03/2020,3711212-004-2019-20,"10,000.00",DURHAM AREA DISABILITY LEISURE GROUP (DADLG).
Non-Service Specific,Non Service Specific-Financing,Long Term Debtors,924001,Car loans,05/03/2020,3711159-116887,639.00,ARRIVA DURHAM COUNTY LTD.
Regeneration and Local Services,Environmental Services,Supplies and Services,304221,Equipment and Materials,06/03/2020,3711689-NSIN00030218,852.50,THOMAS OWEN & SONS (NEWCASTLE) LTD.
Regeneration and Local Services,Environmental Services,Supplies and Services,304221,Equipment and Materials,06/03/2020,3711508-32135,"1,003.15",FAWNS RECREATIONAL SERVICES LTD.
Regeneration and Local Services,Environmental Services,Supplies and Services,304259,Equipment and Materials,06/03/2020,3711649-00013834,545.00,ROBERT ACTON PRODUCT DEVELOPMENTS.
Regeneration and Local Services,Environmental Services,Third Party Payments,430100,Rendered by Private Contractors,06/03/2020,3711421-INV-3435,"2,204.98",ANNFIELD AUTO SERVICES.
Regeneration and Local Services,Environmental Services,Transport,210057,Repair and Maintenance of Vehicles,06/03/2020,3711486-96383587,818.38,DENNIS EAGLE LTD T/A TERBERG MATEC (UK) LTD.
Regeneration and Local Services,Environmental Services,Third Party Payments,430100,Rendered by Private Contractors,06/03/2020,3711660-96385944,"1,036.20",SIMON BAILES LTD.
Regeneration and Local Services,Culture Sport and Tourism,Premises,106082,Centrally Controlled Rep and Maint,06/03/2020,3711489-20148,550.00,DIGICON SOLUTIONS LTD.
Regeneration and Local Services,Community Protection,Supplies and Services,342051,Computers and Communications,06/03/2020,3711465-C/HR191862,"22,099.31",CIVICA UK LTD.
Regeneration and Local Services,Technical Services CM0300,Third Party Payments,460351,Contract Payments,06/03/2020,3711423-0000033689,825.00,AQUAJET DRAIN CLEANING LTD.
Regeneration and Local Services,Environmental Services,Third Party Payments,430100,Rendered by Private Contractors,06/03/2020,3711626-TYN12209,529.96,PIRTEK TYNE & WEAR.
Regeneration and Local Services,Environmental Services,Transport,230710,Contract Hire,06/03/2020,3711659-A8667888-X07,"2,927.81",SIEMENS FINANCIAL SERVICES LTD.
Regeneration and Local Services,Technical Services CM0300,Construction work A908,908105,Construction work,06/03/2020,3711546-23883,505.30,JACK COUPE & SONS LTD T/A COUPE LINE.
Resources BK0010,Digital and Customer Services,Supplies and Services,352001,Conference Expenses,06/03/2020,3711685-323662,"2,385.00",THE KNOWLEDGE ACADEMY LTD.
Regeneration and Local Services,Culture Sport and Tourism,Premises,106082,Centrally Controlled Rep and Maint,06/03/2020,3711545-CD200169613,"12,548.94",INTEGRATED WATER SERVICES LTD.
Regeneration and Local Services,Culture Sport and Tourism,Supplies and Services,304337,Equipment and Materials,06/03/2020,3711676-SWINV036740,507.20,SWIM ENGLAND TRADING LTD.
Regeneration and Local Services,Culture Sport and Tourism,Supplies and Services,328041,Clothing uniforms and laundry E328,06/03/2020,3711689-NSIN00030185,601.80,THOMAS OWEN & SONS (NEWCASTLE) LTD.
Regeneration and Local Services,Culture Sport and Tourism,Supplies and Services,304259,Equipment and Materials,06/03/2020,3711412-116365184,"1,545.52",AC ENTERTAINMENT TECHNOLOGIES.
Regeneration and Local Services,Corporate Property and Land,Premises,108099,Service Repairs and Maintenance,06/03/2020,3711535-7080808959,"1,383.18",HONEYWELL NOVAR SYSTEMS LTD.
Regeneration and Local Services,Corporate Property and Land,Premises,108099,Service Repairs and Maintenance,06/03/2020,3711706-1298,"1,127.85",VENTILATION HYGIENE SPECIALISTS (VHS) LTD.
Regeneration and Local Services,Corporate Property and Land,Premises,108099,Service Repairs and Maintenance,06/03/2020,3711535-7080809790,757.52,HONEYWELL NOVAR SYSTEMS LTD.
Regeneration and Local Services,Corporate Property and Land,Premises,108099,Service Repairs and Maintenance,06/03/2020,3711669-6015649,619.18,STORMSAVER LTD.
Regeneration and Local Services,Technical Services CM0300,Stock A926,926900,Stock in hand-Inventory system,06/03/2020,3711673-4757319,"1,590.80",SUPPLIES TEAM LTD NOW KNOWN AS BANNER GROUP LTD.
Regeneration and Local Services,Technical Services CM0300,Stock A926,926900,Stock in hand-Inventory system,06/03/2020,3711689-NSIN00030202,"2,007.38",THOMAS OWEN & SONS (NEWCASTLE) LTD.
Regeneration and Local Services,Technical Services CM0300,Supplies and Services,338027,Services,06/03/2020,3711502-NEI-EXP-02-2020-017A,968.00,ENVIRONMENT AGENCY.
Regeneration and Local Services,Technical Services CM0300,Supplies and Services,304221,Equipment and Materials,06/03/2020,3711417-29452805,593.40,AGGREGATE INDUSTRIES UK LTD.
Regeneration and Local Services,Technical Services CM0300,Supplies and Services,304221,Equipment and Materials,06/03/2020,3711417-29491981,616.00,AGGREGATE INDUSTRIES UK LTD.
Regeneration and Local Services,Technical Services CM0300,Supplies and Services,304221,Equipment and Materials,06/03/2020,3711417-29497384,"1,065.98",AGGREGATE INDUSTRIES UK LTD.
Regeneration and Local Services,Technical Services CM0300,Supplies and Services,304221,Equipment and Materials,06/03/2020,3711417-29503054,635.58,AGGREGATE INDUSTRIES UK LTD.
Regeneration and Local Services,Technical Services CM0300,Supplies and Services,304221,Equipment and Materials,06/03/2020,3711417-29503055,906.46,AGGREGATE INDUSTRIES UK LTD.
Regeneration and Local Services,Technical Services CM0300,Supplies and Services,304221,Equipment and Materials,06/03/2020,3711417-29503056,"1,218.78",AGGREGATE INDUSTRIES UK LTD.
Regeneration and Local Services,Technical Services CM0300,Supplies and Services,304221,Equipment and Materials,06/03/2020,3711417-29503057,723.26,AGGREGATE INDUSTRIES UK LTD.
Regeneration and Local Services,Technical Services CM0300,Supplies and Services,304221,Equipment and Materials,06/03/2020,3711417-29503059,720.26,AGGREGATE INDUSTRIES UK LTD.
Regeneration and Local Services,Technical Services CM0300,Supplies and Services,304221,Equipment and Materials,06/03/2020,3711417-29503948,"1,192.89",AGGREGATE INDUSTRIES UK LTD.
Regeneration and Local Services,Technical Services CM0300,Supplies and Services,304221,Equipment and Materials,06/03/2020,3711505-2002\103,"1,368.85",EPPLETON QUARRY PRODUCTS LTD.
Regeneration and Local Services,Technical Services CM0300,Supplies and Services,304221,Equipment and Materials,06/03/2020,3711521-1012312,540.00,GRAB & DELIVER LTD.
Regeneration and Local Services,Technical Services CM0300,Supplies and Services,304221,Equipment and Materials,06/03/2020,3711536-13313,"4,999.00",HOPKINS STEEL LTD.
Regeneration and Local Services,Technical Services CM0300,Supplies and Services,340001,Postages E340,06/03/2020,3711569-159573,"1,812.30",MALLATITE LTD T/A SIGNATURE.
Regeneration and Local Services,Technical Services CM0300,Supplies and Services,304221,Equipment and Materials,06/03/2020,3711727-145356705,"7,750.00",ZG LIGHTING (UK) LTD.
Regeneration and Local Services,Corporate Property and Land,Supplies and Services,304221,Equipment and Materials,06/03/2020,3711702-04020185,"3,149.60",UK ELECTRIC LTD.
Regeneration and Local Services,Corporate Property and Land,Supplies and Services,304221,Equipment and Materials,06/03/2020,3711646-0000055529,"1,080.00",RINNAI UK LTD.
Regeneration and Local Services,Corporate Property and Land,Supplies and Services,304221,Equipment and Materials,06/03/2020,3711529-4659328,539.31,HEADLAM (FLOORCOVERING DISTRIBUTORS) LTD.
Regeneration and Local Services,Corporate Property and Land,Supplies and Services,304221,Equipment and Materials,06/03/2020,3711619-351195,636.40,PEW ELECTRICAL DISTRIBUTORS LTD.
Regeneration and Local Services,Corporate Property and Land,Premises,108099,Service Repairs and Maintenance,06/03/2020,3711501-83982,960.50,EIAT UK LTD.
Regeneration and Local Services,Corporate Property and Land,Third Party Payments,430100,Rendered by Private Contractors,06/03/2020,3711514-16410,"2,718.00",FT LEISURE LTD.
Regeneration and Local Services,Business Durham CL0850,Supplies and Services,338094,Services,06/03/2020,3711648-6843,"1,046.00",RIVERSIDE EVENTS LLP.
Regeneration and Local Services,Environmental Services,Supplies and Services,384899,Miscellaneous Expenses,06/03/2020,3711725-SIN003752,"14,354.89",YORKSHIRE WILDLIFE TRUST.
Regeneration and Local Services,Environmental Services,Supplies and Services,384199,Miscellaneous Expenses,06/03/2020,3711554-LLFIO,"45,354.86",JW BAINBRIDGE CONTRACTORS LTD.
Regeneration and Local Services,Transport and Contracted Services,Supplies and Services,304245,Equipment and Materials,06/03/2020,3711445-57080,600.00,BUDDI.
Adult and Health Services,Head of Adults,Supplies and Services,338366,Services,06/03/2020,3711451-65549,"2,462.10",CARE ABILITY HEALTHCARE LTD.
Adult and Health Services,Head of Adults,Supplies and Services,338366,Services,06/03/2020,3711451-65569,622.35,CARE ABILITY HEALTHCARE LTD.
Adult and Health Services,Head of Adults,Supplies and Services,338366,Services,06/03/2020,3711451-65741,"1,292.15",CARE ABILITY HEALTHCARE LTD.
Adult and Health Services,Head of Adults,Supplies and Services,338366,Services,06/03/2020,3711451-65854,812.35,CARE ABILITY HEALTHCARE LTD.
Adult and Health Services,Head of Adults,Supplies and Services,304516,Equipment and Materials,06/03/2020,3711438-INV-332,730.00,BILL SCOTT TAXIS LTD.
Children and Young Peoples Services,Childrens Services Operational Support,Supplies and Services,338089,Services,06/03/2020,3711588-DPSW161964,"1,777.05",MRS A GLADMAN T/A SAFEGUARDING CHILDREN TRAINING & CONSULTANCY LTD.
Children and Young Peoples Services,Head of Education and Skills,Supplies and Services,312009,Newspapers books and periodicals E312,06/03/2020,3711428-6259975,507.92,ASKEWS & HOLTS LIBRARY SERVICES LTD.
Regeneration and Local Services,Culture Sport and Tourism,Supplies and Services,338047,Services,06/03/2020,3711623-INV09163,833.33,PICTUREHOUSE CINEMAS LTD.
Regeneration and Local Services,Culture Sport and Tourism,Supplies and Services,338047,Services,06/03/2020,3711577-FBC751,600.00,MEDIA EXCENTRIQUE.
Regeneration and Local Services,Culture Sport and Tourism,Premises,106083,Centrally Controlled Rep and Maint,06/03/2020,3711535-7080807145,589.72,HONEYWELL NOVAR SYSTEMS LTD.
Regeneration and Local Services,Culture Sport and Tourism,Premises,106083,Centrally Controlled Rep and Maint,06/03/2020,3711535-7080809520,549.34,HONEYWELL NOVAR SYSTEMS LTD.
Regeneration and Local Services,Culture Sport and Tourism,Supplies and Services,384700,Miscellaneous Expenses,06/03/2020,3711531-3345,"2,343.50",HIGHLIGHTS PRODUCTIONS LTD.
Resources BK0010,Finance & Transactional Services,Supplies and Services,332029,Printing Stationery and Gen Off Exps,06/03/2020,3711458-CS64372302,"3,155.60",CFH TOTAL DOCUMENT MANAGEMENT LTD.
Resources BK0010,Finance & Transactional Services,Supplies and Services,332029,Printing Stationery and Gen Off Exps,06/03/2020,3711458-CS64372402,"6,568.80",CFH TOTAL DOCUMENT MANAGEMENT LTD.
Resources BK0010,Digital and Customer Services,Vehicles Equipment Furniture and Fittings,912701,Computer equipment,06/03/2020,3711544-4724669,565.20,INSIGHT DIRECT (UK) LTD.
Resources BK0010,Digital and Customer Services,Supplies and Services,304303,Equipment and Materials,06/03/2020,3711723-KV84853,925.02,XMA LTD.
Resources BK0010,Digital and Customer Services,Supplies and Services,344015,Telephones,06/03/2020,3711710-NU48336,920.00,VODAFONE CORPORATE LTD.
Resources BK0010,Digital and Customer Services,Supplies and Services,344015,Telephones,06/03/2020,3711711-NU48337,"1,288.00",VODAFONE LTD.
Transformation and Partnerships,Business Support,Supplies and Services,340001,Postages E340,06/03/2020,3711651-9060376146,"18,154.56",ROYAL MAIL GROUP PLC.
Resources BK0010,Legal & Democratic Services,Supplies and Services,338043,Services,06/03/2020,3711493-157-0047384,"6,530.80",DWF LLP.
Children and Young Peoples Services,Head of Early Help Inclusion & Vulnerable Children.,Premises,108099,Service Repairs and Maintenance,06/03/2020,3711423-33790,965.00,AQUAJET DRAIN CLEANING LTD.
Children and Young Peoples Services,Head of Education and Skills,Transfer Payments,510028,School Children,06/03/2020,3711715-CAS-03-2020-016,"17,000.00",WAYMAN DEVELOPMENTS LTD T/A CHILDSPLAY PRIVATE NURSERY.
Dedicated Schools Grant BG0015,DSG Early Years Block,Transfer Payments,510030,School Children,06/03/2020,3711715-18027,"2,841.30",WAYMAN DEVELOPMENTS LTD T/A CHILDSPLAY PRIVATE NURSERY.
Dedicated Schools Grant BG0015,DSG Early Years Block,Transfer Payments,510032,School Children,06/03/2020,3711715-17793,"5,553.90",WAYMAN DEVELOPMENTS LTD T/A CHILDSPLAY PRIVATE NURSERY.
Children and Young Peoples Services,Head of Education and Skills,Construction work A908,908105,Construction work,06/03/2020,3711558-5597,"4,015.00",L & L BRAINES LTD.
Children and Young Peoples Services,Head of Education and Skills,Transport,230003,Contract Hire,06/03/2020,3711416-02/20A,780.00,ADVANCE TRAVEL.
Children and Young Peoples Services,Head of Education and Skills,Transport,230008,Contract Hire,06/03/2020,3711466-INV-037,"1,200.00",CLARE LYNSEY STEWART T/A K&C TAXIS.
Children and Young Peoples Services,Head of Education and Skills,Transport,230008,Contract Hire,06/03/2020,3711579-INV187,"1,080.00",MICHAEL COBB T/A HAIL TAXIS.
Dedicated Schools Grant BG0015,DSG High Needs Block,Supplies and Services,304259,Equipment and Materials,06/03/2020,3711566-INV-5970,955.38,LYNCH HEALTHCARE LTD.
Children and Young Peoples Services,Head of Education and Skills,Supplies and Services,338027,Services,06/03/2020,3711419-12/02/2020,725.00,AMANDA STEWART (CONSULTANT).
Children and Young Peoples Services,Head of Education and Skills,Supplies and Services,338027,Services,06/03/2020,3711581-1-AMENDMENT,"1,500.00",MISS CATHERINE ROBSON (EDUCATION CONSULTANT).
Children and Young Peoples Services,Head of Childrens Social Care,Third Party Payments,440038,Other third party payments E440,06/03/2020,3711650-5239,"11,080.36",ROC FAMILY SUPPORT LTD.
Children and Young Peoples Services,Head of Childrens Social Care,Transport,230005,Contract Hire,06/03/2020,3711667-SI-397,566.00,STEVEN PRATT T/A PTL TAXIS DURHAM.
Children and Young Peoples Services,Head of Early Help Inclusion & Vulnerable Children.,Employees,080025,Agency Staff,06/03/2020,3711635-51483532,674.25,PROTOCOL EDUCATION LTD.
Children and Young Peoples Services,Head of Early Help Inclusion & Vulnerable Children.,Employees,080025,Agency Staff,06/03/2020,3711679-2374264,"1,574.05",TEACHING PERSONNEL LTD.
Children and Young Peoples Services,Head of Early Help Inclusion & Vulnerable Children.,Supplies and Services,308011,Furniture,06/03/2020,3711724-SI-0135468,802.10,YORKSHIRE PURCHASING ORGANISATION.
Regeneration and Local Services,Environmental Services,Supplies and Services,304259,Equipment and Materials,09/03/2020,3712164-49986,800.95,SURE24 LTD.
Regeneration and Local Services,Environmental Services,Supplies and Services,304259,Equipment and Materials,09/03/2020,3711972-67,735.00,JH ORGANICS T/A P HUTCHINSON & SONS
Regeneration and Local Services,Environmental Services,Transport,215022,Running Costs of Vehicles,09/03/2020,3712068-553542,"1,496.50",OIL NRG LTD.
Regeneration and Local Services,Culture Sport and Tourism,Third Party Payments,430100,Rendered by Private Contractors,09/03/2020,3711839-PSINV04541,"4,191.05",COMPETITION LINE UK LTD T/A LIFESTYLE FITNESS.
Regeneration and Local Services,Culture Sport and Tourism,Third Party Payments,430100,Rendered by Private Contractors,09/03/2020,3711839-PSINV04540,"35,845.37",COMPETITION LINE UK LTD T/A LIFESTYLE FITNESS.
Regeneration and Local Services,Culture Sport and Tourism,Third Party Payments,430100,Rendered by Private Contractors,09/03/2020,3711839-PSINV04542,"24,747.78",COMPETITION LINE UK LTD T/A LIFESTYLE FITNESS.
Regeneration and Local Services,Culture Sport and Tourism,Third Party Payments,430100,Rendered by Private Contractors,09/03/2020,3711839-PSINV04539,"10,163.24",COMPETITION LINE UK LTD T/A LIFESTYLE FITNESS.
Regeneration and Local Services,Culture Sport and Tourism,Third Party Payments,430100,Rendered by Private Contractors,09/03/2020,3711838-PSINV04538,"50,275.71",COMPETITION LINE UK LTD T/A LIFESTYLE FITNESS.
Regeneration and Local Services,Environmental Services,Third Party Payments,430101,Rendered by Private Contractors,09/03/2020,3711868-IV1245425,709.69,DIRECT TYRE MANAGEMENT LTD (DTM).
Regeneration and Local Services,Technical Services CM0300,Third Party Payments,430127,Rendered by Private Contractors,09/03/2020,3712235-47729,"2,877.00",W MARLEY AGRICULTURAL CONTRACTORS LTD.
Regeneration and Local Services,Environmental Services,Supplies and Services,342215,Computers and Communications,09/03/2020,3712217-44730,"3,405.55",UK TELEMATICS LTD.
Regeneration and Local Services,Environmental Services,Third Party Payments,430100,Rendered by Private Contractors,09/03/2020,3711882-INV-617,"2,100.00",ECO ENTERPRISES LTD.
Regeneration and Local Services,Environmental Services,Supplies and Services,304259,Equipment and Materials,09/03/2020,3712116-00013837,720.00,ROBERT ACTON PRODUCT DEVELOPMENTS.
Regeneration and Local Services,Environmental Services,Supplies and Services,304999,Equipment and Materials,09/03/2020,3711751-8067,"4,770.00",ADMEC ENVIRONMENTAL SERVICES LTD.
Regeneration and Local Services,Environmental Services,Supplies and Services,304252,Equipment and Materials,09/03/2020,3712231-24762,"1,591.10",VIRIDIAN SYSTEMS LTD.
Regeneration and Local Services,Environmental Services,Third Party Payments,460305,Contract Payments,09/03/2020,3711833-5560,"1,170.00",CO-WHEELS CAR CLUB CIC.
Regeneration and Local Services,Culture Sport and Tourism,Supplies and Services,338047,Services,09/03/2020,3711761-42,750.00,ALICE HIGHET (GALLERY SUPPLIER).
Regeneration and Local Services,Culture Sport and Tourism,Premises,120037,Energy Costs,09/03/2020,3711823-3710628,"1,306.44",CERTAS ENERGY UK LTD.
Regeneration and Local Services,Culture Sport and Tourism,Third Party Payments,430100,Rendered by Private Contractors,09/03/2020,3711838-INV04S26,796.90,COMPETITION LINE UK LTD T/A LIFESTYLE FITNESS.
Regeneration and Local Services,Culture Sport and Tourism,Third Party Payments,430100,Rendered by Private Contractors,09/03/2020,3711838-PSINV04545,"21,576.16",COMPETITION LINE UK LTD T/A LIFESTYLE FITNESS.
Regeneration and Local Services,Culture Sport and Tourism,Third Party Payments,430100,Rendered by Private Contractors,09/03/2020,3711839-PSINV04S37,"33,658.21",COMPETITION LINE UK LTD T/A LIFESTYLE FITNESS.
Regeneration and Local Services,Culture Sport and Tourism,Third Party Payments,430100,Rendered by Private Contractors,09/03/2020,3711838-INV04525,750.75,COMPETITION LINE UK LTD T/A LIFESTYLE FITNESS.
Regeneration and Local Services,Culture Sport and Tourism,Supplies and Services,304259,Equipment and Materials,09/03/2020,3712218-US2853,560.00,ULTIMATE SUPPLIES (NORTH) LTD.
Regeneration and Local Services,Culture Sport and Tourism,Supplies and Services,338047,Services,09/03/2020,3712017-001435,"3,690.70",MARK LUNDQUIST MLM CONCERTS LTD.
Regeneration and Local Services,Technical Services CM0300,Stock A926,926900,Stock in hand-Inventory system,09/03/2020,3711902-131769,"13,530.93",FABRIKAT (NOTTINGHAM) LTD.
Regeneration and Local Services,Technical Services CM0300,Stock A926,926900,Stock in hand-Inventory system,09/03/2020,3711930-06/048088,703.48,GREENHAM TRADING LTD.
Regeneration and Local Services,Technical Services CM0300,Stock A926,926900,Stock in hand-Inventory system,09/03/2020,3711930-06/048425,"2,506.60",GREENHAM TRADING LTD.
Regeneration and Local Services,Technical Services CM0300,Stock A926,926900,Stock in hand-Inventory system,09/03/2020,3711971-9659,"1,156.00",JG UNIFORMS.
Regeneration and Local Services,Technical Services CM0300,Stock A926,926900,Stock in hand-Inventory system,09/03/2020,3712083-XL252434,"3,782.40",PARK ELECTRICAL DISTRIBUTORS LTD.
Regeneration and Local Services,Technical Services CM0300,Stock A926,926900,Stock in hand-Inventory system,09/03/2020,3712252-66488808,"1,824.00",WOLSELEY UK LTD.
Regeneration and Local Services,Technical Services CM0300,Third Party Payments,430100,Rendered by Private Contractors,09/03/2020,3711780-CSUKOU/INV/85257,568.38,BALFOUR BEATTY LIVING PLACES LTD.*
Regeneration and Local Services,Technical Services CM0300,Supplies and Services,304221,Equipment and Materials,09/03/2020,3711781-54411,"1,013.90",BARHALE CONSTRUCTION SERVICES LTD.
Regeneration and Local Services,Technical Services CM0300,Third Party Payments,430100,Rendered by Private Contractors,09/03/2020,3712064-DI20335202,827.04,NORTHERN POWERGRID (NORTHEAST) LTD.
Regeneration and Local Services,Technical Services CM0300,Third Party Payments,430100,Rendered by Private Contractors,09/03/2020,3712064-DI20336091,827.04,NORTHERN POWERGRID (NORTHEAST) LTD.
Regeneration and Local Services,Technical Services CM0300,Supplies and Services,304221,Equipment and Materials,09/03/2020,3712224-INV056123,"2,177.78",URBIS SCHREDER LTD.
Regeneration and Local Services,Technical Services CM0300,Supplies and Services,304221,Equipment and Materials,09/03/2020,3712224-INV056125,555.82,URBIS SCHREDER LTD.
Regeneration and Local Services,Technical Services CM0300,Supplies and Services,304221,Equipment and Materials,09/03/2020,3711756-29509122,"1,126.06",AGGREGATE INDUSTRIES UK LTD.
Regeneration and Local Services,Technical Services CM0300,Supplies and Services,304221,Equipment and Materials,09/03/2020,3711756-29509123,972.00,AGGREGATE INDUSTRIES UK LTD.
Regeneration and Local Services,Technical Services CM0300,Supplies and Services,304221,Equipment and Materials,09/03/2020,3711756-29509124,"1,966.00",AGGREGATE INDUSTRIES UK LTD.
Regeneration and Local Services,Technical Services CM0300,Supplies and Services,304221,Equipment and Materials,09/03/2020,3711756-29509125,725.34,AGGREGATE INDUSTRIES UK LTD.
Regeneration and Local Services,Technical Services CM0300,Supplies and Services,304221,Equipment and Materials,09/03/2020,3711756-29515921,869.16,AGGREGATE INDUSTRIES UK LTD.
Regeneration and Local Services,Technical Services CM0300,Supplies and Services,304221,Equipment and Materials,09/03/2020,3711895-2002\149,783.58,EPPLETON QUARRY PRODUCTS LTD.
Regeneration and Local Services,Technical Services CM0300,Supplies and Services,304221,Equipment and Materials,09/03/2020,3711895-2002\152,502.57,EPPLETON QUARRY PRODUCTS LTD.
Regeneration and Local Services,Technical Services CM0300,Supplies and Services,304357,Equipment and Materials,09/03/2020,3711918-DCC230220,"21,538.57",GAP GROUP LTD.
Regeneration and Local Services,Technical Services CM0300,Supplies and Services,304221,Equipment and Materials,09/03/2020,3711928-1012328,"1,260.00",GRAB & DELIVER LTD.
Regeneration and Local Services,Technical Services CM0300,Supplies and Services,304221,Equipment and Materials,09/03/2020,3712014-159887,990.52,MALLATITE LTD T/A SIGNATURE.
Regeneration and Local Services,Technical Services CM0300,Premises,150015,Apportioned Exps of Operational Blds,09/03/2020,3712028-7001561854,720.44,MOBILE MINI UK LTD.
Regeneration and Local Services,Technical Services CM0300,Supplies and Services,304221,Equipment and Materials,09/03/2020,3712044-0000087125,"2,770.52",NAL LTD.
Regeneration and Local Services,Technical Services CM0300,Supplies and Services,304221,Equipment and Materials,09/03/2020,3712058-025952,539.92,NORTH EAST CONCRETE LTD.
Regeneration and Local Services,Technical Services CM0300,Third Party Payments,430100,Rendered by Private Contractors,09/03/2020,3712148-7086,"25,145.00",ST ASTIER LTD.
Regeneration and Local Services,Technical Services CM0300,Third Party Payments,430100,Rendered by Private Contractors,09/03/2020,3712166-31357,550.00,SURVEY OPERATIONS LTD.
Regeneration and Local Services,Technical Services CM0300,Supplies and Services,304221,Equipment and Materials,09/03/2020,3712174-9041471203,542.10,TARMAC TRADING LTD.
Regeneration and Local Services,Technical Services CM0300,Supplies and Services,304221,Equipment and Materials,09/03/2020,3712174-9041477581,542.10,TARMAC TRADING LTD.
Regeneration and Local Services,Technical Services CM0300,Supplies and Services,304221,Equipment and Materials,09/03/2020,3712174-9041502147,613.50,TARMAC TRADING LTD.
Regeneration and Local Services,Technical Services CM0300,Supplies and Services,304221,Equipment and Materials,09/03/2020,3712174-9041508351,"1,667.40",TARMAC TRADING LTD.
Regeneration and Local Services,Technical Services CM0300,Supplies and Services,304221,Equipment and Materials,09/03/2020,3712224-INV056124,"2,592.90",URBIS SCHREDER LTD.
Regeneration and Local Services,Technical Services CM0300,Third Party Payments,430100,Rendered by Private Contractors,09/03/2020,3712229-1190,"5,751.66",VINOVIUM ASSOCIATES LTD.
Regeneration and Local Services,Corporate Property and Land,Third Party Payments,430100,Rendered by Private Contractors,09/03/2020,3711915-11279,"3,700.00",FROSTREE LTD.
Regeneration and Local Services,Corporate Property and Land,Third Party Payments,430100,Rendered by Private Contractors,09/03/2020,3712148-7079,"27,500.00",ST ASTIER LTD.
Regeneration and Local Services,Corporate Property and Land,Third Party Payments,430100,Rendered by Private Contractors,09/03/2020,3711821-6767,"2,890.07",CATHEDRAL LOCK & SAFE SERVICES LTD.
Regeneration and Local Services,Corporate Property and Land,Supplies and Services,304221,Equipment and Materials,09/03/2020,3711931-J7226,"8,802.54",GROVE REED.
Regeneration and Local Services,Corporate Property and Land,Supplies and Services,304221,Equipment and Materials,09/03/2020,3712137-36004029,631.82,SIG AIR HANDLING UK LTD T/A SK SALES.
Regeneration and Local Services,Corporate Property and Land,Supplies and Services,304221,Equipment and Materials,09/03/2020,3712228-6890327747,"28,932.05",VIESSMANN LTD.
Regeneration and Local Services,Corporate Property and Land,Supplies and Services,304221,Equipment and Materials,09/03/2020,3711907-0002/00030663,602.32,FLAME HEATING SPARES LTD.
Regeneration and Local Services,Corporate Property and Land,Third Party Payments,430100,Rendered by Private Contractors,09/03/2020,3712141-855,750.00,SON GAS SOLUTIONS LTD.
Regeneration and Local Services,Corporate Property and Land,Supplies and Services,328041,Clothing uniforms and laundry E328,09/03/2020,3712167-IN249400,676.00,SWIFT INDUSTRIAL SUPPLIES LTD.
Regeneration and Local Services,Corporate Property and Land,Supplies and Services,304221,Equipment and Materials,09/03/2020,3712216-04020260,662.40,UK ELECTRIC LTD.
Regeneration and Local Services,Corporate Property and Land,Third Party Payments,430100,Rendered by Private Contractors,09/03/2020,3711955-S113594605,579.95,ICI DULUX DECORATOR CENTRES.
Regeneration and Local Services,Corporate Property and Land,Supplies and Services,304221,Equipment and Materials,09/03/2020,3711885-059-260159,609.72,EDMUNDSON ELECTRICAL LTD.
Regeneration and Local Services,Corporate Property and Land,Supplies and Services,304221,Equipment and Materials,09/03/2020,3711885-059-260157,628.43,EDMUNDSON ELECTRICAL LTD.
Regeneration and Local Services,Corporate Property and Land,Third Party Payments,430100,Rendered by Private Contractors,09/03/2020,3712021-43678,864.00,MCVICKERS LTD.
Regeneration and Local Services,Corporate Property and Land,Third Party Payments,430100,Rendered by Private Contractors,09/03/2020,3712063-NW-41768,"1,950.00",NORTHERN DRIVES & CONTROLS LTD.
Regeneration and Local Services,Technical Services CM0300,Fees,901004,Capital - Detailed Design,09/03/2020,3712053-32520472,565.11,NEWSQUEST (YORKSHIRE & NORTH EAST) LTD.
Regeneration and Local Services,Environmental Services,Third Party Payments,430100,Rendered by Private Contractors,09/03/2020,3711754-28415865,"1,050.00",AECOM LTD.
Regeneration and Local Services,Environmental Services,Premises,120021,Energy Costs,09/03/2020,3711813-32632756,"1,340.20",CALOR GAS LTD.
Regeneration and Local Services,Development and Housing,Supplies and Services,384437,Miscellaneous Expenses,09/03/2020,3711923-GA0788,625.00,GEMARTS.
Regeneration and Local Services,Development and Housing,Supplies and Services,342053,Computers and Communications,09/03/2020,3711831-M/HB070759,"1,147.34",CIVICA UK LTD.
Regeneration and Local Services,Transport and Contracted Services,Premises,120009,Energy Costs,09/03/2020,3712064-DI20336014,713.00,NORTHERN POWERGRID (NORTHEAST) LTD.
Regeneration and Local Services,Transport and Contracted Services,Premises,120009,Energy Costs,09/03/2020,3712064-DI20336015,713.00,NORTHERN POWERGRID (NORTHEAST) LTD.
Regeneration and Local Services,Transport and Contracted Services,Premises,120009,Energy Costs,09/03/2020,3712064-DI20336016,713.00,NORTHERN POWERGRID (NORTHEAST) LTD.
Regeneration and Local Services,Transport and Contracted Services,Premises,120009,Energy Costs,09/03/2020,3712064-DI20336017,713.00,NORTHERN POWERGRID (NORTHEAST) LTD.
Regeneration and Local Services,Transport and Contracted Services,Premises,120009,Energy Costs,09/03/2020,3712064-DI20336026,713.00,NORTHERN POWERGRID (NORTHEAST) LTD.
Regeneration and Local Services,Transport and Contracted Services,Premises,120009,Energy Costs,09/03/2020,3712064-DI20336027,713.00,NORTHERN POWERGRID (NORTHEAST) LTD.
Regeneration and Local Services,Transport and Contracted Services,Premises,120009,Energy Costs,09/03/2020,3712064-DI20336028,713.00,NORTHERN POWERGRID (NORTHEAST) LTD.
Regeneration and Local Services,Transport and Contracted Services,Premises,120009,Energy Costs,09/03/2020,3712064-DI20336029,713.00,NORTHERN POWERGRID (NORTHEAST) LTD.
Regeneration and Local Services,Transport and Contracted Services,Premises,120009,Energy Costs,09/03/2020,3712064-DI20336030,713.00,NORTHERN POWERGRID (NORTHEAST) LTD.
Regeneration and Local Services,Transport and Contracted Services,Premises,120009,Energy Costs,09/03/2020,3712064-DI20B36025,713.00,NORTHERN POWERGRID (NORTHEAST) LTD.
Regeneration and Local Services,Transport and Contracted Services,Supplies and Services,338066,Services,09/03/2020,3711796-SIN013253,"89,043.28",BLOOM PROCUREMENT SERVICES LTD (FORMERLY NEPRO LTD).
Regeneration and Local Services,Transport and Contracted Services,Supplies and Services,384899,Miscellaneous Expenses,09/03/2020,3711858-3685540,"5,000.00",DARLINGTON BOROUGH COUNCIL.
Regeneration and Local Services,Transport and Contracted Services,Third Party Payments,430106,Rendered by Private Contractors,09/03/2020,3712243-15914,"30,052.00",WEARDALE MOTOR SERVICES LTD.
Regeneration and Local Services,Transport and Contracted Services,Construction work A908,908105,Construction work,09/03/2020,3712050-1260210,"147,805.21",NETWORK RAIL.
Adult and Health Services,Head of Adults,Transport,230005,Contract Hire,09/03/2020,3712201-950,882.00,TONYS TAXIS (A BIRCH).
Adult and Health Services,Head of Adults,Transport,230005,Contract Hire,09/03/2020,3711835-WV104/22020,581.49,COLVIN`S CABS.
Adult and Health Services,Head of Adults,Transport,230005,Contract Hire,09/03/2020,3711947-17408,553.68,HODGSONS COACH OPERATORS LTD.
Adult and Health Services,Head of Adults,Transport,230005,Contract Hire,09/03/2020,3712201-938,864.00,TONYS TAXIS (A BIRCH).
Adult and Health Services,Head of Adults,Supplies and Services,338365,Services,09/03/2020,3712115-SEN202221,"2,318.28",RNIB ENTERPRISES LTD.
Adult and Health Services,Head of Adults,Third Party Payments,478151,Purchase of Care,09/03/2020,3711778-D720002601,"4,122.72",AUTISM CARE UK (4) LTD.
Adult and Health Services,Head of Adults,Third Party Payments,478151,Purchase of Care,09/03/2020,3711891-WESTLEAPER11,"2,344.72",EMBRACING CARE.
Adult and Health Services,Head of Adults,Third Party Payments,478151,Purchase of Care,09/03/2020,3711898-20494,"2,543.88",ESSENTIAL CARE & SUPPORT LTD.
Adult and Health Services,Head of Adults,Third Party Payments,478151,Purchase of Care,09/03/2020,3711946-HLC156,"1,664.31",HIGHLEA CARE LTD.
Adult and Health Services,Head of Adults,Third Party Payments,478151,Purchase of Care,09/03/2020,3712143-20220,"2,030.62",SOVEREIGN CARE (NORTH EAST) LTD.
Adult and Health Services,Commissioning inc Supporting People,Supplies and Services,338089,Services,09/03/2020,3712244-1564,"1,440.00",WELL HANDLED LTD.
Children and Young Peoples Services,Childrens Services Operational Support,Supplies and Services,338094,Services,09/03/2020,3712256-1024,738.00,XCEL CONFERENCE & EVENTS (INNOVATE COUNTY DURHAM) LTD.
Children and Young Peoples Services,Childrens Services Operational Support,Supplies and Services,372009,Subscriptions E372,09/03/2020,3712194-664,"2,950.00",THE STAFF COLLEGE.
Regeneration and Local Services,Culture Sport and Tourism,Construction work A908,908105,Construction work,09/03/2020,3711729-1LIFE20114,"1,693.00",1LIFE MANAGEMENT SOLUTIONS LTD.
Regeneration and Local Services,Culture Sport and Tourism,Premises,108099,Service Repairs and Maintenance,09/03/2020,3711814-128IN130220,900.00,CAMPBELL SINCLAIR T/A NORTH EASTERN TREE COMPANY.
Regeneration and Local Services,Culture Sport and Tourism,Supplies and Services,338047,Services,09/03/2020,3712081-R2232644,537.50,PARAMOUNT PICTURES UK.
Regeneration and Local Services,Culture Sport and Tourism,Supplies and Services,338047,Services,09/03/2020,3712220-22314337020-1,516.67,UNIVERSAL PICTURES INTERNATIONAL UK & EIRE LTD.
Regeneration and Local Services,Culture Sport and Tourism,Supplies and Services,338047,Services,09/03/2020,3712220-22314337053-1,"1,366.98",UNIVERSAL PICTURES INTERNATIONAL UK & EIRE LTD.
Regeneration and Local Services,Culture Sport and Tourism,Supplies and Services,384302,Miscellaneous Expenses,09/03/2020,3711787-BEC-GS4100686038-13022020,625.00,BETHANY ELEN COYLE (MUSICIAN).
Adult and Health Services,Head of Adults,Supplies and Services,304259,Equipment and Materials,09/03/2020,3712118-134869,788.95,ROMPA LTD.
Adult and Health Services,Public Health CC0450,Third Party Payments,460803,Contract Payments,09/03/2020,3712212-SI-TPL-00037268,"1,631.00",TURNING POINT (SERVICES) LTD.
Transformation and Partnerships,Partnerships & Community Engagement Div.,Third Party Payments,460305,Contract Payments,09/03/2020,3711956-7028409,"8,450.00",IDOX SOFTWARE LTD.
Resources BK0010,Digital and Customer Services,Vehicles Equipment Furniture and Fittings,912701,Computer equipment,09/03/2020,3712259-KV86069,"11,250.00",XMA LTD.
Transformation and Partnerships,Business Support,Supplies and Services,332029,Printing Stationery and Gen Off Exps,09/03/2020,3712103-682014,"1,044.00",POTTS PRINTERS LTD.
Transformation and Partnerships,Business Support,Supplies and Services,332029,Printing Stationery and Gen Off Exps,09/03/2020,3712103-682022,505.00,POTTS PRINTERS LTD.
Resources BK0010,Digital and Customer Services,Supplies and Services,304303,Equipment and Materials,09/03/2020,3711933-INV0178301,"1,348.86",GV MULTIMEDIA LTD.
Resources BK0010,Digital and Customer Services,Supplies and Services,342033,Computers and Communications,09/03/2020,3712092-OP/I860521,"2,636.61",PHOENIX SOFTWARE LTD.
Resources BK0010,Digital and Customer Services,Supplies and Services,344015,Telephones,09/03/2020,3712234-NU63481,"1,168.00",VODAFONE LTD.
Resources BK0010,Legal & Democratic Services,Supplies and Services,344014,Telephones,09/03/2020,3712234-NU63480,692.35,VODAFONE LTD.
Resources BK0010,Legal & Democratic Services,Supplies and Services,338025,Services,09/03/2020,3711880-JANUARY2020,"1,040.00",EAST DURHAM FUNERAL SERVICE LTD.
Resources BK0010,Legal & Democratic Services,Supplies and Services,338025,Services,09/03/2020,3711981-JAN/FEB2020,520.00,JR DELANOY.
Resources BK0010,Legal & Democratic Services,Supplies and Services,338042,Services,09/03/2020,3712208-268053/INVPAN27,675.00,TRINITY CHAMBERS.
Resources BK0010,Corporate Finance & Commercial Services,Supplies and Services,352001,Conference Expenses,09/03/2020,3711959-INV004713,810.00,INSTITUTE OF SCHOOL BUSINESS LEADERSHIP (ISBL) TRADING LTD.
Resources BK0010,Corporate Finance & Commercial Services,Supplies and Services,338094,Services,09/03/2020,3712129-18261,"1,175.00",SCHOOLS NORTHEAST TRADING LTD.
Resources BK0010,Corporate Finance & Commercial Services,Supplies and Services,338045,Services,09/03/2020,3712253-3459850,"2,000.00",WOMBLE BOND DICKINSON (UK) LLP.
Resources BK0010,People & Talent Management,Supplies and Services,352001,Conference Expenses,09/03/2020,3712071-INVOICENUMBER,600.00,OM CHANGE & TRANSFORMATION LTD.
Children and Young Peoples Services,Head of Education and Skills,Supplies and Services,384199,Miscellaneous Expenses,09/03/2020,3711992-27/02/2020,550.00,KIDZ R FIT LTD.
Resources BK0010,Digital and Customer Services,Stock A926,926900,Stock in hand-Inventory system,09/03/2020,3711958-4726000,924.00,INSIGHT DIRECT (UK) LTD.
Resources BK0010,Digital and Customer Services,Supplies and Services,304639,Equipment and Materials,09/03/2020,3711869-147261894,779.17,DIVERSEY LTD.
Resources BK0010,Digital and Customer Services,Supplies and Services,304639,Equipment and Materials,09/03/2020,3712205-130094,560.00,TP ELECTRICAL SUPPLIES & FIXINGS LTD.
Children and Young Peoples Services,Head of Education and Skills,Supplies and Services,324117,Provisions E324,09/03/2020,3711964-7071,525.90,J MORAN LTD T/A CAFFE VINCI.
Children and Young Peoples Services,Head of Education and Skills,Construction work A908,908105,Construction work,09/03/2020,3712012-106427,"1,320.00",LUCION ENVIRONMENTAL LLP LTD.
Children and Young Peoples Services,Head of Education and Skills,Transport,230012,Contract Hire,09/03/2020,3711965-5563,680.80,J YOUNG T/A VIP TAXIS.
Children and Young Peoples Services,Head of Education and Skills,Transport,230012,Contract Hire,09/03/2020,3712201-944,813.70,TONYS TAXIS (A BIRCH).
Children and Young Peoples Services,Head of Education and Skills,Transport,230012,Contract Hire,09/03/2020,3712201-945,"1,498.35",TONYS TAXIS (A BIRCH).
Children and Young Peoples Services,Head of Education and Skills,Transport,230012,Contract Hire,09/03/2020,3712001-TA0220,"1,716.80",LEE`S TAXIS..
Children and Young Peoples Services,Head of Education and Skills,Transport,230007,Contract Hire,09/03/2020,3711939-HT458,"2,100.00",HARRY`S TAXI`S.
Dedicated Schools Grant BG0015,DSG High Needs Block,Central Support and Other Recharges,689989,Unclassified E690,09/03/2020,3712060-FEBRUARY2020TOPUP1,"1,040.82",NORTH EAST LEARNING TRUST (NELT).
Children and Young Peoples Services,Head of Early Help Inclusion & Vulnerable Children.,Supplies and Services,384899,Miscellaneous Expenses,09/03/2020,3711845-THK047,"1,105.00",COUNTY DURHAM FURNITURE HELP SCHEME (CDFHS).
Children and Young Peoples Services,Head of Education and Skills,Transport,230007,Contract Hire,09/03/2020,3711857-EAEDCFEB2001,"1,200.00",DALELINK PRIVATE HIRE.
Children and Young Peoples Services,Head of Education and Skills,Transport,230007,Contract Hire,09/03/2020,3711919-22134-4034,"1,981.80",GARNETTS LTD (COACHES).
Children and Young Peoples Services,Head of Education and Skills,Transport,230007,Contract Hire,09/03/2020,3711919-22134-4035,"1,826.70",GARNETTS LTD (COACHES).
Children and Young Peoples Services,Head of Education and Skills,Transport,230007,Contract Hire,09/03/2020,3711919-22134-4036,"1,981.80",GARNETTS LTD (COACHES).
Children and Young Peoples Services,Head of Education and Skills,Transport,230007,Contract Hire,09/03/2020,3711919-22134-4037,"3,653.70",GARNETTS LTD (COACHES).
Children and Young Peoples Services,Head of Education and Skills,Transport,230007,Contract Hire,09/03/2020,3711919-22134-4038,"1,826.70",GARNETTS LTD (COACHES).
Children and Young Peoples Services,Head of Education and Skills,Transport,230035,Contract Hire,09/03/2020,3711856-FBEC0220,504.40,D IRVING T/A BJ TAXIS.
Children and Young Peoples Services,Head of Education and Skills,Transport,230007,Contract Hire,09/03/2020,3712047-1FEBRUARY2020,"1,365.30",NC TAXI`S.
Children and Young Peoples Services,Head of Education and Skills,Transport,230007,Contract Hire,09/03/2020,3711947-17411,"1,405.95",HODGSONS COACH OPERATORS LTD.
Children and Young Peoples Services,Head of Education and Skills,Transport,230009,Contract Hire,09/03/2020,3712037-083,840.00,MR NEIL LEONARD T/A LENNY`S TAXIS.
Children and Young Peoples Services,Head of Education and Skills,Transport,230007,Contract Hire,09/03/2020,3712030-DJS02-20,"1,146.60",MR CT WALKER T/A CW TAXIS.
Children and Young Peoples Services,Head of Education and Skills,Transport,230034,Contract Hire,09/03/2020,3712158-037,"1,050.00",STEVEN HENDERSON T/A HENDYS TAXIS.
Children and Young Peoples Services,Head of Education and Skills,Transport,230012,Contract Hire,09/03/2020,3712033-094,"1,219.62",MR LJ TARRY T/A TARRY`S TAXI`S.
Children and Young Peoples Services,Head of Education and Skills,Transport,230003,Contract Hire,09/03/2020,3711919-22136-3301,"2,649.20",GARNETTS LTD (COACHES).
Children and Young Peoples Services,Head of Education and Skills,Transport,230003,Contract Hire,09/03/2020,3711919-22136-3302,"2,649.20",GARNETTS LTD (COACHES).
Children and Young Peoples Services,Head of Education and Skills,Transport,230003,Contract Hire,09/03/2020,3711919-22136-3303,"2,649.20",GARNETTS LTD (COACHES).
Children and Young Peoples Services,Head of Education and Skills,Transport,230007,Contract Hire,09/03/2020,3711939-HT456,"1,650.00",HARRY`S TAXI`S.
Children and Young Peoples Services,Head of Education and Skills,Transport,230006,Contract Hire,09/03/2020,3712156-2005,"1,850.00",STEPHEN REED T/A STEVE`S TAXIS.
Dedicated Schools Grant BG0015,DSG High Needs Block,Central Support and Other Recharges,689995,Unclassified E690,09/03/2020,3711945-FEBRUARY2020TOPUP1,"5,814.43",HERMITAGE ACADEMY (NORTH EAST LEARNING ACADEMY).
Dedicated Schools Grant BG0015,DSG High Needs Block,Central Support and Other Recharges,689995,Unclassified E690,09/03/2020,3711993-FEBRUARY2020TOPUP1,"1,546.39",KING JAMES I ACADEMY.
Children and Young Peoples Services,Head of Education and Skills,Supplies and Services,384199,Miscellaneous Expenses,09/03/2020,3712196-RITHIR/00016295,747.13,THIRTEEN HOUSING GROUP LTD.
Children and Young Peoples Services,Head of Education and Skills,Transport,230008,Contract Hire,09/03/2020,3711939-HT454,"1,120.00",HARRY`S TAXI`S.
Children and Young Peoples Services,Head of Education and Skills,Transport,230008,Contract Hire,09/03/2020,3712001-KC0220,"2,834.24",LEE`S TAXIS..
Children and Young Peoples Services,Head of Education and Skills,Transport,230008,Contract Hire,09/03/2020,3712091-0929,"1,905.94",PETER`S PRIVATE HIRE/PETER BEST.
Children and Young Peoples Services,Head of Education and Skills,Transport,230008,Contract Hire,09/03/2020,3712039-3120,"3,172.97",MR S BOWERS T/A DH7 TAXIS.
Children and Young Peoples Services,Head of Education and Skills,Transport,230008,Contract Hire,09/03/2020,3711810-W11209,"1,332.00",C & R TAXIS.
Children and Young Peoples Services,Head of Education and Skills,Transport,230008,Contract Hire,09/03/2020,3711943-6-W041,"1,806.70",HENRY FOREMAN T/A HENRY`S TAXIS.
Children and Young Peoples Services,Head of Education and Skills,Transport,230008,Contract Hire,09/03/2020,3711987-06-FEB20,"1,832.83",KD TAXIS.
Children and Young Peoples Services,Head of Education and Skills,Transport,230008,Contract Hire,09/03/2020,3712135-75424,"1,998.00",SHOTTON PRIVATE HIRE.
Children and Young Peoples Services,Head of Education and Skills,Transport,230008,Contract Hire,09/03/2020,3712248-148,"1,224.25",WHITTONSTALL TAXIS SERVICE.
Children and Young Peoples Services,Head of Education and Skills,Transport,230008,Contract Hire,09/03/2020,3711763-M002/FEB,"1,483.20",ANDREW PYGALL T/A ARP TAXIS.
Children and Young Peoples Services,Head of Education and Skills,Transport,230008,Contract Hire,09/03/2020,3711810-S00606,"1,295.96",C & R TAXIS.
Children and Young Peoples Services,Head of Education and Skills,Transport,230008,Contract Hire,09/03/2020,3711939-HT457,"1,950.00",HARRY`S TAXI`S.
Children and Young Peoples Services,Head of Education and Skills,Transport,230008,Contract Hire,09/03/2020,3711965-5561,710.40,J YOUNG T/A VIP TAXIS.
Children and Young Peoples Services,Head of Education and Skills,Transport,230008,Contract Hire,09/03/2020,3712016-INV/2019,"2,530.04",MARK & JOHN CHISHOLM T/A (CHEVRON).
Children and Young Peoples Services,Head of Education and Skills,Transport,230008,Contract Hire,09/03/2020,3712207-06/FEB,"1,760.60",TRIDENT TAXIS.
Children and Young Peoples Services,Head of Education and Skills,Transport,230008,Contract Hire,09/03/2020,3712037-080,"1,290.77",MR NEIL LEONARD T/A LENNY`S TAXIS.
Children and Young Peoples Services,Head of Education and Skills,Transport,230008,Contract Hire,09/03/2020,3712037-081,"1,401.60",MR NEIL LEONARD T/A LENNY`S TAXIS.
Children and Young Peoples Services,Head of Education and Skills,Transport,230008,Contract Hire,09/03/2020,3712039-3119,"1,825.00",MR S BOWERS T/A DH7 TAXIS.
Children and Young Peoples Services,Head of Education and Skills,Transport,230008,Contract Hire,09/03/2020,3711775-DCC18FEB20,"1,924.00",ATLAS TAXIS BISHOP AUCKLAND.
Children and Young Peoples Services,Head of Education and Skills,Transport,230008,Contract Hire,09/03/2020,3711775-DCC19FEB20,"1,924.00",ATLAS TAXIS BISHOP AUCKLAND.
Children and Young Peoples Services,Head of Education and Skills,Transport,230008,Contract Hire,09/03/2020,3711775-DCC7FEB20,"1,947.97",ATLAS TAXIS BISHOP AUCKLAND.
Children and Young Peoples Services,Head of Education and Skills,Transport,230008,Contract Hire,09/03/2020,3711775-DCC8FEB20,"2,068.00",ATLAS TAXIS BISHOP AUCKLAND.
Children and Young Peoples Services,Head of Education and Skills,Transport,230008,Contract Hire,09/03/2020,3711810-W03006,"1,612.73",C & R TAXIS.
Children and Young Peoples Services,Head of Education and Skills,Transport,230008,Contract Hire,09/03/2020,3711919-22141-S011,"2,353.20",GARNETTS LTD (COACHES).
Children and Young Peoples Services,Head of Education and Skills,Transport,230008,Contract Hire,09/03/2020,3711919-22141-W099,"2,738.00",GARNETTS LTD (COACHES).
Children and Young Peoples Services,Head of Education and Skills,Transport,230008,Contract Hire,09/03/2020,3711810-W04606,"1,776.00",C & R TAXIS.
Children and Young Peoples Services,Head of Education and Skills,Transport,230008,Contract Hire,09/03/2020,3712037-082,"1,466.00",MR NEIL LEONARD T/A LENNY`S TAXIS.
Dedicated Schools Grant BG0015,DSG High Needs Block,Third Party Payments,440080,Other third party payments E440,09/03/2020,3711897-10377,"50,121.76",ESPA RESEARCH LTD.
Dedicated Schools Grant BG0015,DSG High Needs Block,Third Party Payments,440080,Other third party payments E440,09/03/2020,3711944-SIN074912,"30,568.27",HENSHAWS SOCIETY FOR BLIND PEOPLE.
Dedicated Schools Grant BG0015,DSG High Needs Block,Third Party Payments,425005,Rendered by Voluntary Organisations,09/03/2020,3711951-5330,596.20,HOWARD HOUSE CARE LTD.
Dedicated Schools Grant BG0015,DSG High Needs Block,Third Party Payments,425005,Rendered by Voluntary Organisations,09/03/2020,3711951-5343,745.29,HOWARD HOUSE CARE LTD.
Dedicated Schools Grant BG0015,DSG High Needs Block,Third Party Payments,425005,Rendered by Voluntary Organisations,09/03/2020,3711951-5352,745.29,HOWARD HOUSE CARE LTD.
Dedicated Schools Grant BG0015,DSG High Needs Block,Third Party Payments,425005,Rendered by Voluntary Organisations,09/03/2020,3711951-5361,745.29,HOWARD HOUSE CARE LTD.
Dedicated Schools Grant BG0015,DSG High Needs Block,Third Party Payments,425005,Rendered by Voluntary Organisations,09/03/2020,3711951-5370,745.29,HOWARD HOUSE CARE LTD.
Dedicated Schools Grant BG0015,DSG High Needs Block,Third Party Payments,440080,Other third party payments E440,09/03/2020,3712056-0000051885,"27,244.17",NORTH EAST AUTISM SOCIETY.
Dedicated Schools Grant BG0015,DSG High Needs Block,Third Party Payments,425005,Rendered by Voluntary Organisations,09/03/2020,3712056-0000051886,"14,040.00",NORTH EAST AUTISM SOCIETY.
Dedicated Schools Grant BG0015,DSG High Needs Block,Third Party Payments,425005,Rendered by Voluntary Organisations,09/03/2020,3712056-0000061760,"14,040.00",NORTH EAST AUTISM SOCIETY.
Dedicated Schools Grant BG0015,DSG High Needs Block,Third Party Payments,410037,Rendered by Other Local Authorities,09/03/2020,3712066-INV-0704,"1,002.00",NUDGE EDUCATION LTD.
Dedicated Schools Grant BG0015,DSG High Needs Block,Third Party Payments,410037,Rendered by Other Local Authorities,09/03/2020,3712066-INV-0789,"1,800.00",NUDGE EDUCATION LTD.
Dedicated Schools Grant BG0015,DSG High Needs Block,Third Party Payments,410037,Rendered by Other Local Authorities,09/03/2020,3712066-INV0700,"1,367.50",NUDGE EDUCATION LTD.
Dedicated Schools Grant BG0015,DSG High Needs Block,Third Party Payments,440080,Other third party payments E440,09/03/2020,3712261-05807,"13,520.00",YOUNG FOUNDATIONS LTD.
Dedicated Schools Grant BG0015,DSG High Needs Block,Third Party Payments,425005,Rendered by Voluntary Organisations,09/03/2020,3712261-05808,"12,416.40",YOUNG FOUNDATIONS LTD.
Children and Young Peoples Services,Head of Education and Skills,Transport,230008,Contract Hire,09/03/2020,3711805-1-FEB,"1,918.20",BRIAN PURVIS T/A BJ`S TAXIS.
Children and Young Peoples Services,Head of Education and Skills,Transport,230008,Contract Hire,09/03/2020,3712125-151,"1,680.00",SAM MONTAGUE T/A 8 SEATER TRAVEL.
Children and Young Peoples Services,Head of Education and Skills,Transport,230006,Contract Hire,09/03/2020,3712037-084,"1,500.00",MR NEIL LEONARD T/A LENNY`S TAXIS.
Children and Young Peoples Services,Head of Education and Skills,Transport,230010,Contract Hire,09/03/2020,3711763-B032-FEB,518.70,ANDREW PYGALL T/A ARP TAXIS.
Children and Young Peoples Services,Head of Education and Skills,Transport,230010,Contract Hire,09/03/2020,3711954-WOOD006-FEB,"1,219.66",IAN SOULSBY.
Children and Young Peoples Services,Head of Education and Skills,Transport,230010,Contract Hire,09/03/2020,3711985-1055,"1,480.00",K & R TAXIS (STANLEY).
Children and Young Peoples Services,Head of Education and Skills,Transport,230010,Contract Hire,09/03/2020,3712035-BL021/327-FEB,750.00,MR MARK WILE T/A HARRY`S TAXIS.
Children and Young Peoples Services,Head of Education and Skills,Transport,230010,Contract Hire,09/03/2020,3712035-BL023/433-FEB,"1,500.00",MR MARK WILE T/A HARRY`S TAXIS.
Children and Young Peoples Services,Head of Education and Skills,Transport,230010,Contract Hire,09/03/2020,3712158-038,650.00,STEVEN HENDERSON T/A HENDYS TAXIS.
Children and Young Peoples Services,Head of Education and Skills,Transport,230010,Contract Hire,09/03/2020,3712176-DCC/2020/010,"2,164.60",TAYLOR`S TAXIS.
Children and Young Peoples Services,Head of Education and Skills,Transport,230008,Contract Hire,09/03/2020,3711939-HT459,"1,800.00",HARRY`S TAXI`S.
Children and Young Peoples Services,Head of Education and Skills,Supplies and Services,338027,Services,09/03/2020,3711784-0022,"1,012.50",BERNARD CLARK (CONSULTANT).
Children and Young Peoples Services,Head of Education and Skills,Transport,230006,Contract Hire,09/03/2020,3711764-6,924.00,ANDREW ROBSON`S TAXI.
Children and Young Peoples Services,Head of Education and Skills,Transport,230006,Contract Hire,09/03/2020,3711764-6-F805,666.00,ANDREW ROBSON`S TAXI.
Children and Young Peoples Services,Head of Education and Skills,Transport,230006,Contract Hire,09/03/2020,3711857-HCFEB2001,900.00,DALELINK PRIVATE HIRE.
Children and Young Peoples Services,Head of Education and Skills,Transport,230006,Contract Hire,09/03/2020,3711952-353,895.50,I CLYDESDALE T/A BURNOPFIELD TAXIS.
Children and Young Peoples Services,Head of Education and Skills,Transport,230006,Contract Hire,09/03/2020,3711965-5559,638.04,J YOUNG T/A VIP TAXIS.
Children and Young Peoples Services,Head of Education and Skills,Transport,230006,Contract Hire,09/03/2020,3711968-DCC0017,540.00,JANICE BRADSHAW T/A JAN PRIVATE HIRE.
Children and Young Peoples Services,Head of Education and Skills,Transport,230006,Contract Hire,09/03/2020,3711977-6,996.30,JOHN BELL TAXI.
Children and Young Peoples Services,Head of Education and Skills,Transport,230006,Contract Hire,09/03/2020,3712093-34198,"1,195.00",PHOENIX TAXIS T/A PRATT`S TAXIS.
Children and Young Peoples Services,Head of Education and Skills,Transport,230006,Contract Hire,09/03/2020,3712135-75432,525.54,SHOTTON PRIVATE HIRE.
Children and Young Peoples Services,Head of Education and Skills,Transport,230006,Contract Hire,09/03/2020,3712236-F702/FEB,"1,176.00",WAINE SANDERSON T/A 1A CAB.
Children and Young Peoples Services,Head of Education and Skills,Supplies and Services,384199,Miscellaneous Expenses,09/03/2020,3712126-SSES3,"1,390.00",SANDRA STEPHENSON T/A SS ENTERPRISE SOLUTIONS.
Children and Young Peoples Services,Head of Education and Skills,Third Party Payments,440999,Other third party payments E440,09/03/2020,3712059-4084,"1,534.00",NORTH EAST DANCE CIC.
Children and Young Peoples Services,Head of Education and Skills,Supplies and Services,338094,Services,09/03/2020,3711901-0000000234,541.25,EXCEL ACADEMY PARTNERSHIP T/A FRAMWELLGATE SCHOOL DURHAM.
Dedicated Schools Grant BG0015,DSG High Needs Block,Third Party Payments,440080,Other third party payments E440,09/03/2020,3711790-FEBRUARY2020TOPUP2,"84,853.32",BISHOP AUCKLAND COLLEGE NURSERY.
Dedicated Schools Grant BG0015,DSG High Needs Block,Transport,230009,Contract Hire,09/03/2020,3711980-0005-FEB,"1,496.23",JORA SINGH TAXIS.
Children and Young Peoples Services,Head of Childrens Social Care,Third Party Payments,440046,Other third party payments E440,09/03/2020,3712241-INV-1618,517.15,WE CARE RECRUITMENT SOLUTIONS LTD.
Children and Young Peoples Services,Head of Childrens Social Care,Third Party Payments,440046,Other third party payments E440,09/03/2020,3712241-INV-1864,"4,250.48",WE CARE RECRUITMENT SOLUTIONS LTD.
Children and Young Peoples Services,Head of Childrens Social Care,Third Party Payments,440046,Other third party payments E440,09/03/2020,3712241-INV-2066,"6,373.28",WE CARE RECRUITMENT SOLUTIONS LTD.
Children and Young Peoples Services,Head of Childrens Social Care,Supplies and Services,338045,Services,09/03/2020,3711750-6732/6733,533.40,ABBOTT ASSOCIATES.
Children and Young Peoples Services,Head of Childrens Social Care,Supplies and Services,338044,Services,09/03/2020,3711909-4100686845,"1,709.23",FOCUS MENTAL HEALTH.
Children and Young Peoples Services,Head of Early Help Inclusion & Vulnerable Children.,Supplies and Services,308011,Furniture,09/03/2020,3712097-SI/64615,"1,154.30",PINEAPPLE CONTRACTS.
Non-Service Specific,Non Service Specific-Financing,Long Term Debtors,924001,Car loans,09/03/2020,3711772-116912,639.00,ARRIVA DURHAM COUNTY LTD.
Regeneration and Local Services,Environmental Services,Third Party Payments,430100,Rendered by Private Contractors,10/03/2020,3713117-2747,"5,855.50",IAN C LIDDLE T/A IC LIDDLE SERVICES.
Regeneration and Local Services,Environmental Services,Third Party Payments,430100,Rendered by Private Contractors,10/03/2020,3713032-236430,639.28,CHATFIELDS T/A EVANS HALSHAW.
Regeneration and Local Services,Environmental Services,Third Party Payments,430100,Rendered by Private Contractors,10/03/2020,3713066-96386209,640.63,DENNIS EAGLE LTD T/A TERBERG MATEC (UK) LTD.
Regeneration and Local Services,Environmental Services,Third Party Payments,430100,Rendered by Private Contractors,10/03/2020,3713312-124121,749.08,ZOELLER WASTE SYSTEMS LTD.
Regeneration and Local Services,Environmental Services,Transport,215005,Running Costs of Vehicles,10/03/2020,3713209-554259,"9,479.79",OIL NRG LTD.
Regeneration and Local Services,Environmental Services,Transport,215005,Running Costs of Vehicles,10/03/2020,3713209-555501,"17,085.10",OIL NRG LTD.
Regeneration and Local Services,Technical Services CM0300,Third Party Payments,430127,Rendered by Private Contractors,10/03/2020,3713117-2742,850.00,IAN C LIDDLE T/A IC LIDDLE SERVICES.
Regeneration and Local Services,Technical Services CM0300,Third Party Payments,430127,Rendered by Private Contractors,10/03/2020,3713117-2743,850.00,IAN C LIDDLE T/A IC LIDDLE SERVICES.
Regeneration and Local Services,Technical Services CM0300,Third Party Payments,430128,Rendered by Private Contractors,10/03/2020,3713119-1682/2019,"2,055.00",J & JG GILL & SONS LTD.
Regeneration and Local Services,Technical Services CM0300,Third Party Payments,430127,Rendered by Private Contractors,10/03/2020,3713120-5305836,"2,323.50",JA GILSON (AGRICULTURAL CONTRACTORS) LTD.
Regeneration and Local Services,Technical Services CM0300,Third Party Payments,430127,Rendered by Private Contractors,10/03/2020,3713120-5305839,937.50,JA GILSON (AGRICULTURAL CONTRACTORS) LTD.
Regeneration and Local Services,Technical Services CM0300,Third Party Payments,430128,Rendered by Private Contractors,10/03/2020,3713161-5890,537.50,MAKEPEACE MOTORS.
Regeneration and Local Services,Environmental Services,Third Party Payments,430100,Rendered by Private Contractors,10/03/2020,3713010-36126276,"1,797.13",BELL TRUCK SALES LTD T/A BELL TRUCK & VAN.
Regeneration and Local Services,Environmental Services,Third Party Payments,430100,Rendered by Private Contractors,10/03/2020,3713123-79445,"1,575.00",JCB FINANCE (LEASING) LTD.*
Regeneration and Local Services,Environmental Services,Third Party Payments,430100,Rendered by Private Contractors,10/03/2020,3713127-124461,"1,877.23",JG PAXTON & SONS LTD.
Regeneration and Local Services,Environmental Services,Third Party Payments,430100,Rendered by Private Contractors,10/03/2020,3713127-124662,"3,011.49",JG PAXTON & SONS LTD.
Regeneration and Local Services,Culture Sport and Tourism,Third Party Payments,430131,Rendered by Private Contractors,10/03/2020,3713129-08,"1,440.00",JOANNE DAVIE (TEACHER).
Regeneration and Local Services,Technical Services CM0300,Supplies and Services,338066,Services,10/03/2020,3713222-5852,"1,426.74",PINKNEY BUILDING CONTRACTORS LTD.
Regeneration and Local Services,Technical Services CM0300,Supplies and Services,338066,Services,10/03/2020,3713222-5853,"1,415.56",PINKNEY BUILDING CONTRACTORS LTD.
Regeneration and Local Services,Technical Services CM0300,Supplies and Services,338066,Services,10/03/2020,3713222-5854,"1,570.36",PINKNEY BUILDING CONTRACTORS LTD.
Regeneration and Local Services,Technical Services CM0300,Supplies and Services,304358,Equipment and Materials,10/03/2020,3713103-76234,"2,589.00",GEORGE VARDY HAULAGE.
Regeneration and Local Services,Technical Services CM0300,Supplies and Services,304358,Equipment and Materials,10/03/2020,3713103-76235,532.00,GEORGE VARDY HAULAGE.
Regeneration and Local Services,Technical Services CM0300,Supplies and Services,304358,Equipment and Materials,10/03/2020,3713120-5305838,885.00,JA GILSON (AGRICULTURAL CONTRACTORS) LTD.
Regeneration and Local Services,Technical Services CM0300,Supplies and Services,304358,Equipment and Materials,10/03/2020,3713160-MS2015,"1,089.00",M SPENCE SURFACING LTD.
Regeneration and Local Services,Technical Services CM0300,Supplies and Services,304358,Equipment and Materials,10/03/2020,3713244-1909,999.75,S & R LANDSCAPES.
Regeneration and Local Services,Technical Services CM0300,Supplies and Services,304358,Equipment and Materials,10/03/2020,3713244-1910,"1,795.50",S & R LANDSCAPES.
Regeneration and Local Services,Corporate Property and Land,Third Party Payments,430100,Rendered by Private Contractors,10/03/2020,3713212-2290,"1,475.00",PARAMOUNT CEILINGS & PARTITIONS.
Regeneration and Local Services,Corporate Property and Land,Supplies and Services,304221,Equipment and Materials,10/03/2020,3713190-722476,"4,192.00",NATIONWIDE CHIMNEY COMPONENTS LTD.
Regeneration and Local Services,Corporate Property and Land,Third Party Payments,430100,Rendered by Private Contractors,10/03/2020,3713184-DCC122,"1,600.00",MR WILLIAM MAGUIRE T/A VALLUM LIFTS.
Regeneration and Local Services,Corporate Property and Land,Third Party Payments,430100,Rendered by Private Contractors,10/03/2020,3713184-DCC123,"1,920.00",MR WILLIAM MAGUIRE T/A VALLUM LIFTS.
Regeneration and Local Services,Business Durham CL0850,Supplies and Services,340001,Postages E340,10/03/2020,3713195-RED-03-2020-057,500.00,NEOPOST CREDIFON.
Regeneration and Local Services,Business Durham CL0850,Construction work A908,908105,Construction work,10/03/2020,3713000-168640,"20,293.70",ALBANY OFFICE EQUIPMENT (WHOLESALE) LTD.
Regeneration and Local Services,Development and Housing,Cap Exp on Grants & Other Financial Assistance (REFCUS),918004,Contributions to other bodies 918004,10/03/2020,3713230-RED-03-2020-079,"12,496.91",QUEENSWAY ORTHODONTICS LTD.
Regeneration and Local Services,Development and Housing,Cap Exp on Grants & Other Financial Assistance (REFCUS),918004,Contributions to other bodies 918004,10/03/2020,3713268-RED-03-2020-064,"5,000.00",STEADMAN-LLOYD LTD T/A HUNTERS HOUSING SOLUTIONS.
Adult and Health Services,Head of Adults,Transport,230005,Contract Hire,10/03/2020,3713014-0278,600.40,BIRDS TAXIS LTD.
Adult and Health Services,Head of Adults,Transport,230005,Contract Hire,10/03/2020,3713076-29022020/03,"2,496.00",EAST DURHAM TAXIS.
Adult and Health Services,Head of Adults,Transport,230005,Contract Hire,10/03/2020,3713175-202008,579.00,MR JR FORT T/A JRF TAXIS.
Adult and Health Services,Head of Adults,Transport,230005,Contract Hire,10/03/2020,3713014-0275,658.00,BIRDS TAXIS LTD.
Adult and Health Services,Head of Adults,Transport,230005,Contract Hire,10/03/2020,3713014-0276,752.40,BIRDS TAXIS LTD.
Adult and Health Services,Head of Adults,Transport,230005,Contract Hire,10/03/2020,3713175-202007,636.48,MR JR FORT T/A JRF TAXIS.
Adult and Health Services,Head of Adults,Transport,230005,Contract Hire,10/03/2020,3712997-0030,"1,188.16",AIRPORT TAXIS 4U.
Adult and Health Services,Head of Adults,Transport,230005,Contract Hire,10/03/2020,3713215-EAS150FEB,"1,200.00",PAUL GREEN T/A GREEN TAXIS.
Adult and Health Services,Head of Adults,Transport,230005,Contract Hire,10/03/2020,3713014-0277,"1,940.40",BIRDS TAXIS LTD.
Adult and Health Services,Head of Adults,Transport,230005,Contract Hire,10/03/2020,3713150-1814,"1,447.60",LD TAXIS.
Regeneration and Local Services,Culture Sport and Tourism,Supplies and Services,324117,Provisions E324,10/03/2020,3713237-8234,584.49,RETAIL LEISURE UK LTD T/A EMPIRE POPCORN.*
Regeneration and Local Services,Culture Sport and Tourism,Supplies and Services,384199,Miscellaneous Expenses,10/03/2020,3713260-INV-S009471,"3,186.00",SPEKTRIX LTD.
Regeneration and Local Services,Culture Sport and Tourism,Supplies and Services,338047,Services,10/03/2020,3713208-66290,"5,349.33",OFF THE KERB PRODUCTIONS LTD.
Adult and Health Services,Public Health CC0450,Supplies and Services,338066,Services,10/03/2020,3713018-SIN013415,"54,460.00",BLOOM PROCUREMENT SERVICES LTD (FORMERLY NEPRO LTD).
Adult and Health Services,Public Health CC0450,Third Party Payments,460803,Contract Payments,10/03/2020,3713295-SI-TPL-00038709,"1,631.00",TURNING POINT (SERVICES) LTD.
Transformation and Partnerships,Partnerships & Community Engagement Div.,Supplies and Services,308011,Furniture,10/03/2020,3713049-AG0908,"1,245.00",COUNTY DURHAM FURNITURE HELP SCHEME (CDFHS).
Resources BK0010,Corporate Finance & Commercial Services,Supplies and Services,372009,Subscriptions E372,10/03/2020,3713152-6003061,"5,340.00",LG FUTURES.
Resources BK0010,Legal & Democratic Services,Supplies and Services,384199,Miscellaneous Expenses,10/03/2020,3713288-1920-056,805.00,THE REDHILLS APPEAL.
Children and Young Peoples Services,Head of Education and Skills,Transfer Payments,510025,School Children,10/03/2020,3713023-FEBRUARY2020/TOPUP,"1,036.58",BRIGHT STAR NURSERY.
Children and Young Peoples Services,Head of Education and Skills,Transfer Payments,510027,School Children,10/03/2020,3713050-130,"1,007.64",CRAGHEAD DEVELOPMENT TRUST.
Children and Young Peoples Services,Head of Education and Skills,Transfer Payments,510025,School Children,10/03/2020,3713092-FEBRUARY2020/TOPUP,"1,295.72",EXPLORERS DAY CARE.
Children and Young Peoples Services,Head of Education and Skills,Transfer Payments,510025,School Children,10/03/2020,3713238-FEBRUARY2020/TOPUP2,"1,074.07",RIBBON ACADEMY TRUST.
Children and Young Peoples Services,Head of Education and Skills,Transfer Payments,510027,School Children,10/03/2020,3713276-FEBRUARY2020/TOPUP,"1,382.10",SUNSHINE DAY NURSERY LTD.
Children and Young Peoples Services,Head of Education and Skills,Transfer Payments,510025,School Children,10/03/2020,3713276-FEBRUARY2020/TOPUP1,"1,141.47",SUNSHINE DAY NURSERY LTD.
Children and Young Peoples Services,Head of Education and Skills,Transfer Payments,510026,School Children,10/03/2020,3713276-FEBRUARY2020TOPUP2,"2,694.28",SUNSHINE DAY NURSERY LTD.
Children and Young Peoples Services,Head of Education and Skills,Transfer Payments,510027,School Children,10/03/2020,3713276-FEBRUARY2020TOPUP3,"4,849.70",SUNSHINE DAY NURSERY LTD.
Children and Young Peoples Services,Head of Education and Skills,Transport,230007,Contract Hire,10/03/2020,3713266-55337,713.40,STANLEY TRAVEL (NORTH EAST) LTD.
Children and Young Peoples Services,Head of Education and Skills,Transport,230007,Contract Hire,10/03/2020,3713233-4062,"1,152.78",RAYNERS COACHES.
Children and Young Peoples Services,Head of Education and Skills,Transport,230012,Contract Hire,10/03/2020,3713076-290220/05,"1,665.60",EAST DURHAM TAXIS.
Children and Young Peoples Services,Head of Education and Skills,Transport,230034,Contract Hire,10/03/2020,3713132-22/2,"1,184.00",JOHN GARLAND.
Children and Young Peoples Services,Head of Education and Skills,Transport,230007,Contract Hire,10/03/2020,3713218-1861,"1,776.00",PAUL WATSON TRAVEL.
Children and Young Peoples Services,Head of Education and Skills,Transport,230007,Contract Hire,10/03/2020,3713165-0276,"1,055.38",MICKS TAXIS - MURTON.
Children and Young Peoples Services,Head of Education and Skills,Transport,230034,Contract Hire,10/03/2020,3713165-0275,"1,036.00",MICKS TAXIS - MURTON.
Dedicated Schools Grant BG0015,DSG High Needs Block,Central Support and Other Recharges,689995,Unclassified E690,10/03/2020,3713041-FEBRUARY2020/TOPUP,549.77,CLEVES CROSS LEARNING TRUST.
Dedicated Schools Grant BG0015,DSG High Needs Block,Central Support and Other Recharges,689989,Unclassified E690,10/03/2020,3713041-FEBRUARY2020/TOPUP1,"3,904.41",CLEVES CROSS LEARNING TRUST.
Dedicated Schools Grant BG0015,DSG High Needs Block,Central Support and Other Recharges,689988,Unclassified E690,10/03/2020,3713064-FEBRUARY2020/TOPUP,"6,457.49",DENE HOUSE PRIMARY SCHOOL (ACADEMY).
Dedicated Schools Grant BG0015,DSG High Needs Block,Central Support and Other Recharges,689989,Unclassified E690,10/03/2020,3713203-FEBRUARY2020/TOPUP,"1,912.66",NORTH EAST LEARNING TRUST (NELT).
Children and Young Peoples Services,Head of Education and Skills,Transport,230007,Contract Hire,10/03/2020,3713165-0272,947.20,MICKS TAXIS - MURTON.
Children and Young Peoples Services,Head of Education and Skills,Transport,230034,Contract Hire,10/03/2020,3713165-0271,"1,272.80",MICKS TAXIS - MURTON.
Children and Young Peoples Services,Head of Education and Skills,Transport,230007,Contract Hire,10/03/2020,3713098-1494,907.05,FMR SILVA PITA.
Children and Young Peoples Services,Head of Education and Skills,Transport,230007,Contract Hire,10/03/2020,3713011-5-FEB,873.20,BENNETTS TAXIS.
Children and Young Peoples Services,Head of Education and Skills,Transport,230003,Contract Hire,10/03/2020,3713033-47007,"4,186.00",CHRISTOPHER JAMES GRIERSON T/A GRIERSONS COACHES.
Children and Young Peoples Services,Head of Education and Skills,Transport,230007,Contract Hire,10/03/2020,3713173-128,857.66,MR JOHN ALLINSON T/A AALPHA TAXIS.
Children and Young Peoples Services,Head of Education and Skills,Transport,230007,Contract Hire,10/03/2020,3713269-6520,"1,472.60",STEPHEN MAUDE LTD T/A MAUDES COACHES.
Children and Young Peoples Services,Head of Education and Skills,Construction work A908,908105,Construction work,10/03/2020,3713225-900873767.,"132,305.97",PORTAKABIN LTD.
Children and Young Peoples Services,Head of Education and Skills,Transport,230035,Contract Hire,10/03/2020,3713008-6/3356,538.20,B&C YELLOWCAB TAXI`S.
Children and Young Peoples Services,Head of Education and Skills,Transport,230006,Contract Hire,10/03/2020,3713174-39,"1,820.00",MR JOHN KNIGHTON T/A JK TAXIS.
Children and Young Peoples Services,Head of Education and Skills,Transport,230007,Contract Hire,10/03/2020,3713128-29616,"2,738.00",JIM HUGHES COACHES LTD.
Children and Young Peoples Services,Head of Education and Skills,Transport,230007,Contract Hire,10/03/2020,3713233-26C-FEB4005,"3,171.64",RAYNERS COACHES.
Children and Young Peoples Services,Head of Education and Skills,Transport,230007,Contract Hire,10/03/2020,3713233-79E,"1,821.44",RAYNERS COACHES.
Children and Young Peoples Services,Head of Education and Skills,Transport,230009,Contract Hire,10/03/2020,3713125-1714,608.85,JDS PRIVATE HIRE DURHAM.
Children and Young Peoples Services,Head of Education and Skills,Transport,230009,Contract Hire,10/03/2020,3713125-1715,"1,050.00",JDS PRIVATE HIRE DURHAM.
Children and Young Peoples Services,Head of Education and Skills,Transport,230007,Contract Hire,10/03/2020,3713035-5287/01,"1,460.00",CHRISTOPHER MADDISON (TAXI).
Children and Young Peoples Services,Head of Education and Skills,Transport,230007,Contract Hire,10/03/2020,3713033-47009,"1,782.34",CHRISTOPHER JAMES GRIERSON T/A GRIERSONS COACHES.
Children and Young Peoples Services,Head of Education and Skills,Transport,230007,Contract Hire,10/03/2020,3713033-47010,"1,737.12",CHRISTOPHER JAMES GRIERSON T/A GRIERSONS COACHES.
Children and Young Peoples Services,Head of Education and Skills,Transport,230012,Contract Hire,10/03/2020,3713172-0220,712.03,MR DEREK HENDERSON.
Children and Young Peoples Services,Head of Education and Skills,Transport,230007,Contract Hire,10/03/2020,3713033-47011,"3,500.00",CHRISTOPHER JAMES GRIERSON T/A GRIERSONS COACHES.
Children and Young Peoples Services,Head of Education and Skills,Transport,230003,Contract Hire,10/03/2020,3713033-47012,"2,240.00",CHRISTOPHER JAMES GRIERSON T/A GRIERSONS COACHES.
Children and Young Peoples Services,Head of Education and Skills,Transport,230003,Contract Hire,10/03/2020,3713033-47013,"2,170.00",CHRISTOPHER JAMES GRIERSON T/A GRIERSONS COACHES.
Children and Young Peoples Services,Head of Education and Skills,Transport,230003,Contract Hire,10/03/2020,3713033-47014,"2,310.00",CHRISTOPHER JAMES GRIERSON T/A GRIERSONS COACHES.
Children and Young Peoples Services,Head of Education and Skills,Transport,230003,Contract Hire,10/03/2020,3713072-7649,"2,008.50",DURHAM CITY COACHES.
Children and Young Peoples Services,Head of Education and Skills,Transport,230003,Contract Hire,10/03/2020,3713072-7649-4015,"2,101.65",DURHAM CITY COACHES.
Children and Young Peoples Services,Head of Education and Skills,Transport,230003,Contract Hire,10/03/2020,3713072-7649-4019,"2,939.40",DURHAM CITY COACHES.
Children and Young Peoples Services,Head of Education and Skills,Transport,230003,Contract Hire,10/03/2020,3713072-7649/4019,570.00,DURHAM CITY COACHES.
Children and Young Peoples Services,Head of Education and Skills,Transport,230003,Contract Hire,10/03/2020,3713128-29617,"3,225.00",JIM HUGHES COACHES LTD.
Children and Young Peoples Services,Head of Education and Skills,Transport,230007,Contract Hire,10/03/2020,3713005-0553770,"1,591.59",ANTHONY HOBSON (TAXI).
Children and Young Peoples Services,Head of Education and Skills,Transport,230008,Contract Hire,10/03/2020,3713035-A140/06,769.60,CHRISTOPHER MADDISON (TAXI).
Children and Young Peoples Services,Head of Education and Skills,Transport,230009,Contract Hire,10/03/2020,3713098-1495,570.00,FMR SILVA PITA.
Children and Young Peoples Services,Head of Education and Skills,Transport,230008,Contract Hire,10/03/2020,3713125-1716,"1,723.26",JDS PRIVATE HIRE DURHAM.
Children and Young Peoples Services,Head of Education and Skills,Transport,230008,Contract Hire,10/03/2020,3713132-21/2,900.00,JOHN GARLAND.
Children and Young Peoples Services,Head of Education and Skills,Transport,230008,Contract Hire,10/03/2020,3713132-24/2,"2,400.00",JOHN GARLAND.
Children and Young Peoples Services,Head of Education and Skills,Transport,230006,Contract Hire,10/03/2020,3713148-4B-FEB,"2,270.00",L & R PRIVATE HIRE.
Children and Young Peoples Services,Head of Education and Skills,Transport,230008,Contract Hire,10/03/2020,3713150-1813,"1,601.70",LD TAXIS.
Children and Young Peoples Services,Head of Education and Skills,Transport,230008,Contract Hire,10/03/2020,3713150-1815,"1,400.00",LD TAXIS.
Children and Young Peoples Services,Head of Education and Skills,Transport,230006,Contract Hire,10/03/2020,3713165-0274,710.40,MICKS TAXIS - MURTON.
Children and Young Peoples Services,Head of Education and Skills,Transport,230034,Contract Hire,10/03/2020,3713168-AT211,700.00,MR AG WILSON T/A ALAN`S TAXIS (DURHAM CITY).
Children and Young Peoples Services,Head of Education and Skills,Transport,230006,Contract Hire,10/03/2020,3713182-0044,"1,430.00",MR PM MULLEN T/A CATHEDRAL TAXIS.
Dedicated Schools Grant BG0015,DSG High Needs Block,Central Support and Other Recharges,689988,Unclassified E690,10/03/2020,3713079-FEBRUARY2020/TOPUP,"2,647.32",EDEN LEARNING TRUST T/A FERRYHILL BUSINESS & ENTERPRISE COLLEGE.
Dedicated Schools Grant BG0015,DSG High Needs Block,Central Support and Other Recharges,689988,Unclassified E690,10/03/2020,3713111-FEBRUARY2020/TOPUP,"4,882.30",HERMITAGE ACADEMY (NORTH EAST LEARNING ACADEMY).
Dedicated Schools Grant BG0015,DSG High Needs Block,Central Support and Other Recharges,689988,Unclassified E690,10/03/2020,3713143-FEBRUARY2020/TOPUP,"4,306.39",KING JAMES I ACADEMY.
Children and Young Peoples Services,Head of Education and Skills,Transport,230008,Contract Hire,10/03/2020,3713058-3540,"1,450.40",DAVES MINIBUSES.
Children and Young Peoples Services,Head of Education and Skills,Transport,230008,Contract Hire,10/03/2020,3713076-29022020/09,"2,012.80",EAST DURHAM TAXIS.
Children and Young Peoples Services,Head of Education and Skills,Transport,230008,Contract Hire,10/03/2020,3713098-1492,"1,268.96",FMR SILVA PITA.
Children and Young Peoples Services,Head of Education and Skills,Transport,230008,Contract Hire,10/03/2020,3713279-5/01/20,"1,845.05",TAILORMADE TRAVEL.
Children and Young Peoples Services,Head of Education and Skills,Transport,230008,Contract Hire,10/03/2020,3713076-29022020/08,"2,723.20",EAST DURHAM TAXIS.
Children and Young Peoples Services,Head of Education and Skills,Transport,230008,Contract Hire,10/03/2020,3713022-BZ00335,861.30,BREZ`S TAXIS.
Children and Young Peoples Services,Head of Education and Skills,Transport,230008,Contract Hire,10/03/2020,3713022-BZ00336,884.70,BREZ`S TAXIS.
Children and Young Peoples Services,Head of Education and Skills,Transport,230008,Contract Hire,10/03/2020,3713076-28022020/01,"1,921.20",EAST DURHAM TAXIS.
Children and Young Peoples Services,Head of Education and Skills,Transport,230008,Contract Hire,10/03/2020,3713076-28022020/02,"2,849.25",EAST DURHAM TAXIS.
Children and Young Peoples Services,Head of Education and Skills,Transport,230008,Contract Hire,10/03/2020,3713026-BIL0186,774.39,CA MUSGROVE.
Children and Young Peoples Services,Head of Education and Skills,Transport,230008,Contract Hire,10/03/2020,3713058-3538,"1,316.62",DAVES MINIBUSES.
